Department Family,Entity,Date,Expense Type,Expense Area,Supplier,Transaction Number,Amount,VAT Registration Number
Department of Health,East Sussex Hospitals NHS Trust,07/08/2013,CONSULTANT - RECHARGED,Planned Care,MINISTRY OF DEFENCE,0000136677,106.80,
Department of Health,East Sussex Hospitals NHS Trust,07/08/2013,CONSULTANT - RECHARGED,Planned Care,MINISTRY OF DEFENCE,0000136677,427.20,
Department of Health,East Sussex Hospitals NHS Trust,07/08/2013,YEAR END NRVS JV GENERAL CRS,NHS Creditors,MINISTRY OF DEFENCE,0000136677,86040.00,
Department of Health,East Sussex Hospitals NHS Trust,07/08/2013,NHS SUPPLY CHAIN CREDITORS,Cross Site,NHS SUPPLY CHAIN,0000137136,172780.65,
Department of Health,East Sussex Hospitals NHS Trust,07/08/2013,AGENCY SPECIALIST REG,Urgent Care,LOCUM PEOPLE LTD,0000288905,2352.67,
Department of Health,East Sussex Hospitals NHS Trust,07/08/2013,AGENCY MLSO,Integrated Care,DAY WEBSTER LTD,0000289096,1239.38,
Department of Health,East Sussex Hospitals NHS Trust,07/08/2013,AGENCY SPECIALIST REG,Urgent Care,LOCUM PEOPLE LTD,0000289098,5881.68,
Department of Health,East Sussex Hospitals NHS Trust,07/08/2013,AGENCY RADIOGRAPHY STAFF,Integrated Care,RIG MEDICAL RECRUIT LTD,0000289274,1003.80,
Department of Health,East Sussex Hospitals NHS Trust,07/08/2013,AGENCY RADIOGRAPHY STAFF,Integrated Care,RIG MEDICAL RECRUIT LTD,0000289276,539.28,
Department of Health,East Sussex Hospitals NHS Trust,07/08/2013,AGENCY RADIOGRAPHY STAFF,Integrated Care,RIG MEDICAL RECRUIT LTD,0000289277,630.00,
Department of Health,East Sussex Hospitals NHS Trust,07/08/2013,AGENCY OCC THERAPY STAFF,Integrated Care,RIG MEDICAL RECRUIT LTD,0000289278,1579.50,
Department of Health,East Sussex Hospitals NHS Trust,07/08/2013,AGENCY RADIOGRAPHY STAFF,Integrated Care,RIG MEDICAL RECRUIT LTD,0000289280,808.92,
Department of Health,East Sussex Hospitals NHS Trust,07/08/2013,AGENCY MLSO,Integrated Care,DAY WEBSTER LTD,0000289415,1604.33,
Department of Health,East Sussex Hospitals NHS Trust,07/08/2013,AGENCY MLSO,Integrated Care,DAY WEBSTER LTD,0000289416,1451.20,
Department of Health,East Sussex Hospitals NHS Trust,07/08/2013,AGENCY MLSO,Integrated Care,DAY WEBSTER LTD,0000289417,1656.67,
Department of Health,East Sussex Hospitals NHS Trust,07/08/2013,AGENCY REGISTRAR,Planned Care,PROMEDICAL PERSONNEL LTD,0000289490,3562.35
Department of Health,East Sussex Hospitals NHS Trust,07/08/2013,AGENCY SPECIALIST REG,Urgent Care,PROMEDICAL PERSONNEL LTD,0000289491,648.00
Department of Health,East Sussex Hospitals NHS Trust,07/08/2013,AGENCY MLSO,Integrated Care,ATLANTIS MEDICAL LTD,0000289492,1399.08
Department of Health,East Sussex Hospitals NHS Trust,07/08/2013,AGENCY SPECIALIST REG,Urgent Care,MEDACS HEALTHCARE SERVICES LTD,0000289557,1251.86
Department of Health,East Sussex Hospitals NHS Trust,07/08/2013,AGENCY MLSO,Integrated Care,DAY WEBSTER LTD,0000289568,1572.76
Department of Health,East Sussex Hospitals NHS Trust,07/08/2013,AGENCY MLSO,Integrated Care,DAY WEBSTER LTD,0000289569,1677.72
Department of Health,East Sussex Hospitals NHS Trust,07/08/2013,AGENCY STAFF GRADE,Urgent Care,TOTAL ASSIST RECRUITMENT LTD,0000289571,797.89
Department of Health,East Sussex Hospitals NHS Trust,07/08/2013,AGENCY RADIOGRAPHY STAFF,Integrated Care,RIG MEDICAL RECRUIT LTD,0000289582,504.00
Department of Health,East Sussex Hospitals NHS Trust,07/08/2013,AGENCY NURSE - QUALIFIED,Urgent Care,AMBITION,0000289647,1215.86
Department of Health,East Sussex Hospitals NHS Trust,07/08/2013,AGENCY SHO,Urgent Care,AMBITION,0000289656,957.60
Department of Health,East Sussex Hospitals NHS Trust,07/08/2013,AGENCY STAFF GRADE,Urgent Care,TOTAL ASSIST RECRUITMENT LTD,0000289708,1595.77
Department of Health,East Sussex Hospitals NHS Trust,07/08/2013,AGENCY RADIOGRAPHY STAFF,Integrated Care,RIG MEDICAL RECRUIT LTD,0000289724,670.32
Department of Health,East Sussex Hospitals NHS Trust,07/08/2013,AGENCY OCC THERAPY STAFF,Integrated Care,RIG MEDICAL RECRUIT LTD,0000289725,947.70
Department of Health,East Sussex Hospitals NHS Trust,07/08/2013,AGENCY NURSE - QUALIFIED,Urgent Care,AMBITION,0000289774,918.91
Department of Health,East Sussex Hospitals NHS Trust,07/08/2013,AGENCY NURSE - QUALIFIED,Urgent Care,AMBITION,0000289775,934.03
Department of Health,East Sussex Hospitals NHS Trust,07/08/2013,AGENCY STAFF GRADE,Urgent Care,TOTAL ASSIST RECRUITMENT LTD,0000289827,2740.92
Department of Health,East Sussex Hospitals NHS Trust,07/08/2013,AGENCY NURSE - QUALIFIED,Urgent Care,THE ARROWS GROUP LTD,0000289832,516.15
Department of Health,East Sussex Hospitals NHS Trust,07/08/2013,AGENCY NURSE - QUALIFIED,Urgent Care,THE ARROWS GROUP LTD,0000289850,861.47
Department of Health,East Sussex Hospitals NHS Trust,07/08/2013,AGENCY SPECIALIST REG,Planned Care,PURE MEDICAL HEALTHCARE SOLUTIONS LTD,0000289879,7380.00
Department of Health,East Sussex Hospitals NHS Trust,07/08/2013,AGENCY STAFF GRADE,Urgent Care,TOTAL ASSIST RECRUITMENT LTD,0000290022,1411.68
Department of Health,East Sussex Hospitals NHS Trust,07/08/2013,AGENCY STAFF GRADE,Urgent Care,TOTAL ASSIST RECRUITMENT LTD,0000290023,1224.00
Department of Health,East Sussex Hospitals NHS Trust,07/08/2013,AGENCY STAFF GRADE,Urgent Care,TOTAL ASSIST RECRUITMENT LTD,0000290025,952.20
Department of Health,East Sussex Hospitals NHS Trust,07/08/2013,AGENCY STAFF GRADE,Urgent Care,TOTAL ASSIST RECRUITMENT LTD,0000290026,3105.00
Department of Health,East Sussex Hospitals NHS Trust,07/08/2013,AGENCY SPECIALIST REG,Urgent Care,TOTAL ASSIST RECRUITMENT LTD,0000290027,1595.77
Department of Health,East Sussex Hospitals NHS Trust,07/08/2013,AGENCY STAFF GRADE,Urgent Care,TOTAL ASSIST RECRUITMENT LTD,0000290028,1931.45
Department of Health,East Sussex Hospitals NHS Trust,07/08/2013,AGENCY NURSE - QUALIFIED,Urgent Care,AMBITION,0000290051,757.06
Department of Health,East Sussex Hospitals NHS Trust,07/08/2013,AGENCY SPECIALIST REG,Planned Care,PURE MEDICAL HEALTHCARE SOLUTIONS LTD,0000290094,4500.00
Department of Health,East Sussex Hospitals NHS Trust,07/08/2013,AGENCY SPECIALIST REG,Planned Care,PROMEDICAL PERSONNEL LTD,0000290097,1005.84
Department of Health,East Sussex Hospitals NHS Trust,07/08/2013,AGENCY STAFF GRADE,Urgent Care,TOTAL ASSIST RECRUITMENT LTD,0000290120,1914.00
Department of Health,East Sussex Hospitals NHS Trust,07/08/2013,AGENCY SPECIALIST REG,Urgent Care,MEDACS HEALTHCARE SERVICES LTD,0000290134,2266.88
Department of Health,East Sussex Hospitals NHS Trust,07/08/2013,AGENCY SpR A&E SUPPORT,Integrated Care,GENERAL MEDICINE GROUP,0000290196,5704.18
Department of Health,East Sussex Hospitals NHS Trust,07/08/2013,AGENCY STAFF GRADE,Integrated Care,GENERAL MEDICINE GROUP,0000290197,3144.00
Department of Health,East Sussex Hospitals NHS Trust,07/08/2013,AGENCY NURSE - QUALIFIED,Urgent Care,AMBITION,0000290230,774.30
Department of Health,East Sussex Hospitals NHS Trust,07/08/2013,AGENCY NURSE - QUALIFIED,Urgent Care,AMBITION,0000290232,879.83
Department of Health,East Sussex Hospitals NHS Trust,07/08/2013,AGENCY NURSE - QUALIFIED,Urgent Care,AMBITION,0000290233,1447.34
Department of Health,East Sussex Hospitals NHS Trust,07/08/2013,AGENCY NURSE - UNQUALIFIED,Urgent Care,PREMIERCARE NETWORK LTD,0000290327,1868.86
Department of Health,East Sussex Hospitals NHS Trust,07/08/2013,AGENCY NURSE - QUALIFIED,Urgent Care,AMBITION,0000290384,1314.70
Department of Health,East Sussex Hospitals NHS Trust,07/08/2013,AGENCY NURSE - QUALIFIED,Urgent Care,AMBITION,0000290385,774.30
Department of Health,East Sussex Hospitals NHS Trust,07/08/2013,AGENCY NURSE - QUALIFIED,Urgent Care,AMBITION,0000290390,1938.99
Department of Health,East Sussex Hospitals NHS Trust,07/08/2013,AGENCY SPECIALIST REG,Urgent Care,TOTAL ASSIST RECRUITMENT LTD,0000290457,1595.77
Department of Health,East Sussex Hospitals NHS Trust,07/08/2013,AGENCY STAFF GRADE,Urgent Care,TOTAL ASSIST RECRUITMENT LTD,0000290458,1939.73
Department of Health,East Sussex Hospitals NHS Trust,07/08/2013,AGENCY NURSE - QUALIFIED,Urgent Care,PREMIERCARE NETWORK LTD,0000290470,1261.72
Department of Health,East Sussex Hospitals NHS Trust,07/08/2013,AGENCY NURSE - QUALIFIED,Urgent Care,PREMIERCARE NETWORK LTD,0000290471,1431.75
Department of Health,East Sussex Hospitals NHS Trust,07/08/2013,AGENCY STAFF GRADE,Urgent Care,TOTAL ASSIST RECRUITMENT LTD,0000290478,2083.58
Department of Health,East Sussex Hospitals NHS Trust,07/08/2013,AGENCY DRIVERS,Commercial,GRAFTERS RECRUITMENT CONSULTANTS LTD,0000290503,1447.34
Department of Health,East Sussex Hospitals NHS Trust,07/08/2013,AGENCY SPECIALIST REG,Planned Care,PURE MEDICAL HEALTHCARE SOLUTIONS LTD,0000290506,4230.00
Department of Health,East Sussex Hospitals NHS Trust,07/08/2013,AGENCY CONSULTANT,Planned Care,MEDACS HEALTHCARE SERVICES LTD,0000290519,3217.10
Department of Health,East Sussex Hospitals NHS Trust,07/08/2013,AGENCY CONSULTANT,Planned Care,MEDACS HEALTHCARE SERVICES LTD,0000290520,11991.02
Department of Health,East Sussex Hospitals NHS Trust,07/08/2013,AGENCY NURSE - QUALIFIED,Urgent Care,PREMIERCARE NETWORK LTD,0000290536,1732.19
Department of Health,East Sussex Hospitals NHS Trust,07/08/2013,AGENCY NURSE - QUALIFIED,Urgent Care,PREMIERCARE NETWORK LTD,0000290538,1598.51
Department of Health,East Sussex Hospitals NHS Trust,07/08/2013,AGENCY NURSE - UNQUALIFIED,Urgent Care,PREMIERCARE NETWORK LTD,0000290539,2029.87
Department of Health,East Sussex Hospitals NHS Trust,07/08/2013,AGENCY NURSE - UNQUALIFIED,Urgent Care,PREMIERCARE NETWORK LTD,0000290543,3885.58
Department of Health,East Sussex Hospitals NHS Trust,07/08/2013,AGENCY STAFF GRADE,Planned Care,MEDACS HEALTHCARE SERVICES LTD,0000290544,3374.75
Department of Health,East Sussex Hospitals NHS Trust,07/08/2013,AGENCY SPECIALIST REG,Urgent Care,MEDACS HEALTHCARE SERVICES LTD,0000290545,899.59
Department of Health,East Sussex Hospitals NHS Trust,07/08/2013,AGENCY SPECIALIST REG,Urgent Care,MEDACS HEALTHCARE SERVICES LTD,0000290546,2818.68
Department of Health,East Sussex Hospitals NHS Trust,07/08/2013,AGENCY SPECIALIST REG,Planned Care,MEDACS HEALTHCARE SERVICES LTD,0000290547,2688.80
Department of Health,East Sussex Hospitals NHS Trust,07/08/2013,AGENCY ANCILLARY,Commercial,INTERWORK RECRUITMENT CONSULTANTS LTD,0000290551,5534.78
Department of Health,East Sussex Hospitals NHS Trust,07/08/2013,AGENCY DRIVERS,Commercial,GRAFTERS RECRUITMENT CONSULTANTS LTD,0000290558,1714.25
Department of Health,East Sussex Hospitals NHS Trust,07/08/2013,AGENCY STAFF GRADE,Urgent Care,TOTAL ASSIST RECRUITMENT LTD,0000290564,621.00
Department of Health,East Sussex Hospitals NHS Trust,07/08/2013,AGENCY SPECIALIST REG,Urgent Care,TOTAL ASSIST RECRUITMENT LTD,0000290565,1224.00
Department of Health,East Sussex Hospitals NHS Trust,07/08/2013,AGENCY STAFF GRADE,Urgent Care,TOTAL ASSIST RECRUITMENT LTD,0000290566,4005.96
Department of Health,East Sussex Hospitals NHS Trust,07/08/2013,AGENCY STAFF GRADE,Urgent Care,TOTAL ASSIST RECRUITMENT LTD,0000290567,1595.54
Department of Health,East Sussex Hospitals NHS Trust,07/08/2013,AGENCY STAFF GRADE,Urgent Care,TOTAL ASSIST RECRUITMENT LTD,0000290568,797.77
Department of Health,East Sussex Hospitals NHS Trust,07/08/2013,AGENCY CONSULTANT,Planned Care,MEDACS HEALTHCARE SERVICES LTD,0000290576,6970.40
Department of Health,East Sussex Hospitals NHS Trust,07/08/2013,AGENCY SHO,Planned Care,MEDACS HEALTHCARE SERVICES LTD,0000290577,2522.03
Department of Health,East Sussex Hospitals NHS Trust,07/08/2013,AGENCY - GENERAL GRADES,Commercial,INTERWORK RECRUITMENT CONSULTANTS LTD,0000290624,1535.27
Department of Health,East Sussex Hospitals NHS Trust,07/08/2013,AGENCY ANCILLARY,Commercial,INTERWORK RECRUITMENT CONSULTANTS LTD,0000290627,1487.28
Department of Health,East Sussex Hospitals NHS Trust,07/08/2013,AGENCY SPECIALIST REG,Planned Care,MEDACS HEALTHCARE SERVICES LTD,0000290692,2230.48
Department of Health,East Sussex Hospitals NHS Trust,07/08/2013,AGENCY TECHNICIAN,Urgent Care,ABSOLUTE ACCOUNTING & TAX SOLS LTD,0000290693,1155.00
Department of Health,East Sussex Hospitals NHS Trust,07/08/2013,AGENCY NURSE - QUALIFIED,Urgent Care,AMBITION,0000290717,771.60
Department of Health,East Sussex Hospitals NHS Trust,07/08/2013,AGENCY ANCILLARY,Commercial,INTERWORK RECRUITMENT CONSULTANTS LTD,0000290777,5615.01
Department of Health,East Sussex Hospitals NHS Trust,07/08/2013,AGENCY - GENERAL GRADES,Commercial,INTERWORK RECRUITMENT CONSULTANTS LTD,0000290784,1111.12
Department of Health,East Sussex Hospitals NHS Trust,07/08/2013,AGENCY ANCILLARY,Commercial,INTERWORK RECRUITMENT CONSULTANTS LTD,0000290791,1385.05
Department of Health,East Sussex Hospitals NHS Trust,07/08/2013,AGENCY DRIVERS,Commercial,GRAFTERS RECRUITMENT CONSULTANTS LTD,0000290853,1589.40
Department of Health,East Sussex Hospitals NHS Trust,07/08/2013,AGENCY STAFF GRADE,Planned Care,MEDACS HEALTHCARE SERVICES LTD,0000290863,3461.28
Department of Health,East Sussex Hospitals NHS Trust,07/08/2013,SC-CONQUEST UNIT WORKS,Commercial,STATIC SYSTEMS GROUP PLC,0000361951,1251.00
Department of Health,East Sussex Hospitals NHS Trust,07/08/2013,SC-CONQUEST UNIT WORKS,Commercial,STATIC SYSTEMS GROUP PLC,0000361952,563.10
Department of Health,East Sussex Hospitals NHS Trust,07/08/2013,ENGINEER CONTRACT - REPAIR,Commercial,STATIC SYSTEMS GROUP PLC,0000362019,730.08
Department of Health,East Sussex Hospitals NHS Trust,07/08/2013,CONTRACT WINDOW CLEANING,Commercial,HI  SPEC FACILITIES SERVICE PLC,0000362029,2603.00
Department of Health,East Sussex Hospitals NHS Trust,07/08/2013,CAPITAL EXPENDITURE,Other Central,BOOKER & BEST LIMITED,0000362263,71763.53
Department of Health,East Sussex Hospitals NHS Trust,07/08/2013,PROFESSIONAL FEES,Commercial,NIGEL HOLLAND,0000362313,2781.20
Department of Health,East Sussex Hospitals NHS Trust,07/08/2013,PROFESSIONAL FEES,Commercial,MARK HEMSLEY,0000362314,812.50
Department of Health,East Sussex Hospitals NHS Trust,07/08/2013,PROFESSIONAL FEES,Commercial,MARK HEMSLEY,0000362315,3587.50
Department of Health,East Sussex Hospitals NHS Trust,07/08/2013,PROFESSIONAL FEES,Commercial,RICHARD WILES ASSOCIATES LTD,0000362316,859.25
Department of Health,East Sussex Hospitals NHS Trust,07/08/2013,PHADIA,Integrated Care,PHADIA LTD,0000622169,1698.45
Department of Health,East Sussex Hospitals NHS Trust,07/08/2013,POSTAGE - MAINTENANCE STOCK,Commercial,BMM WESTON LTD,0000622353,19.20
Department of Health,East Sussex Hospitals NHS Trust,07/08/2013,EDGH BLDING & ENGINEERING MATS,Commercial,BMM WESTON LTD,0000622353,1015.42
Department of Health,East Sussex Hospitals NHS Trust,07/08/2013,OFFICE EQUIPMENT,Corporate Services,VIDEO SOUTH MEDICAL TELEVISION,0000622438,7590.00
Department of Health,East Sussex Hospitals NHS Trust,07/08/2013,CONTRACT ENGINEERING MAINT,Commercial,TAYLOR & GOODMAN LTD,0000622621,1595.00
Department of Health,East Sussex Hospitals NHS Trust,07/08/2013,OFFICE EQUIPMENT,Corporate Services,VIDEO SOUTH MEDICAL TELEVISION,0000622632,-1562.00
Department of Health,East Sussex Hospitals NHS Trust,07/08/2013,PATS APPL - LEG SUPPORTS,Integrated Care,T&S ORTHOFAB LTD,0000755288,658.82
Department of Health,East Sussex Hospitals NHS Trust,07/08/2013,PATS APPL - FOOTWARE,Integrated Care,KENWARD ORTHOPAEDICS LTD,0000755442,486.70
Department of Health,East Sussex Hospitals NHS Trust,07/08/2013,PATS APPL - FOOTWARE,Integrated Care,KENWARD ORTHOPAEDICS LTD,0000755676,535.54
Department of Health,East Sussex Hospitals NHS Trust,07/08/2013,PATS APPL - FOOTWARE,Integrated Care,KENWARD ORTHOPAEDICS LTD,0000755677,514.18
Department of Health,East Sussex Hospitals NHS Trust,07/08/2013,SUTURES,Planned Care,ARTHREX LTD,0000897446,822.00
Department of Health,East Sussex Hospitals NHS Trust,07/08/2013,PROSTHESIS - LENS,Planned Care,ALCON EYE CARE UK LTD,0000897506,1785.60
Department of Health,East Sussex Hospitals NHS Trust,07/08/2013,M&S GENERAL SUPPLIES-OTHER,Planned Care,HAEMONETICS LTD,0000897556,578.30
Department of Health,East Sussex Hospitals NHS Trust,07/08/2013,PROSTHESIS - LENS,Planned Care,ALCON EYE CARE UK LTD,0000897565,595.20
Department of Health,East Sussex Hospitals NHS Trust,07/08/2013,M&S GENERAL SUPPLIES-OTHER,Planned Care,DELTEX MEDICAL,0000897576,512.40
Department of Health,East Sussex Hospitals NHS Trust,07/08/2013,PROSTHESIS - LENS,Planned Care,ALCON EYE CARE UK LTD,0000897606,1190.40
Department of Health,East Sussex Hospitals NHS Trust,07/08/2013,PROCEDURE PACKS,Planned Care,ALCON EYE CARE UK LTD,0000897607,1497.60
Department of Health,East Sussex Hospitals NHS Trust,07/08/2013,M&S GENERAL SUPPLIES-OTHER,Planned Care,ALCON EYE CARE UK LTD,0000897607,7872.00
Department of Health,East Sussex Hospitals NHS Trust,07/08/2013,PROSTHESES-HIP,Planned Care,LIMA ORTHOPAEDICS UK LIMITED,0000897686,735.60
Department of Health,East Sussex Hospitals NHS Trust,07/08/2013,PROSTHESES-OTHER,Planned Care,LIMA ORTHOPAEDICS UK LIMITED,0000897686,910.80
Department of Health,East Sussex Hospitals NHS Trust,07/08/2013,PROSTHESES-HIP,Planned Care,LIMA ORTHOPAEDICS UK LIMITED,0000897760,424.80
Department of Health,East Sussex Hospitals NHS Trust,07/08/2013,PROSTHESES-OTHER,Planned Care,LIMA ORTHOPAEDICS UK LIMITED,0000897760,165.60
Department of Health,East Sussex Hospitals NHS Trust,07/08/2013,M&S GENERAL SUPPLIES-OTHER,Planned Care,DELTEX MEDICAL,0000897930,512.40
Department of Health,East Sussex Hospitals NHS Trust,07/08/2013,UTETEROSCOPY CONSUMABLES,Planned Care,BOSTON SCIENTIFIC LTD,0000898173,1800.00
Department of Health,East Sussex Hospitals NHS Trust,07/08/2013,M&S GENERAL SUPPLIES-OTHER,Planned Care,BOSTON SCIENTIFIC LTD,0000898173,84.00
Department of Health,East Sussex Hospitals NHS Trust,07/08/2013,INTERVENTIONAL DISPOSABLES,Planned Care,BOSTON SCIENTIFIC LTD,0000898173,138.00
Department of Health,East Sussex Hospitals NHS Trust,07/08/2013,RENAL STENTS,Planned Care,BOSTON SCIENTIFIC LTD,0000898173,175.92
Department of Health,East Sussex Hospitals NHS Trust,07/08/2013,M&S GENERAL SUPPLIES-OTHER,Planned Care,DELTEX MEDICAL,0000898263,512.40
Department of Health,East Sussex Hospitals NHS Trust,07/08/2013,LASER/LAPARASCOPIC EQUIPMENT,Planned Care,BOSTON SCIENTIFIC LTD,0000898276,1800.00
Department of Health,East Sussex Hospitals NHS Trust,07/08/2013,M&S GENERAL SUPPLIES-OTHER,Planned Care,FEMCARE-NIKOMED LIMITED,0000898312,685.85
Department of Health,East Sussex Hospitals NHS Trust,07/08/2013,M&S GENERAL SUPPLIES-OTHER,Planned Care,BOSTON SCIENTIFIC LTD,0000898337,546.00
Department of Health,East Sussex Hospitals NHS Trust,07/08/2013,INTERVENTIONAL DISPOSABLES,Planned Care,BOSTON SCIENTIFIC LTD,0000898337,840.00
Department of Health,East Sussex Hospitals NHS Trust,07/08/2013,RENAL STENTS,Planned Care,BOSTON SCIENTIFIC LTD,0000898337,390.00
Department of Health,East Sussex Hospitals NHS Trust,07/08/2013,M&S EQUIPMENT - OTHER,Planned Care,JOHNSON & JOHNSON MEDICAL LTD,0000898338,309.34
Department of Health,East Sussex Hospitals NHS Trust,07/08/2013,PROSTHESES-HIP,Planned Care,JOHNSON & JOHNSON MEDICAL LTD,0000898338,711.28
Department of Health,East Sussex Hospitals NHS Trust,07/08/2013,PROSTHESES-HIP,Planned Care,JOHNSON & JOHNSON MEDICAL LTD,0000898339,711.28
Department of Health,East Sussex Hospitals NHS Trust,07/08/2013,M&S EQUIPMENT - OTHER,Planned Care,JOHNSON & JOHNSON MEDICAL LTD,0000898340,-195.92
Department of Health,East Sussex Hospitals NHS Trust,07/08/2013,PROSTHESES-HIP,Planned Care,JOHNSON & JOHNSON MEDICAL LTD,0000898340,1198.27
Department of Health,East Sussex Hospitals NHS Trust,07/08/2013,PROSTHESES-HIP,Planned Care,JOHNSON & JOHNSON MEDICAL LTD,0000898341,569.52
Department of Health,East Sussex Hospitals NHS Trust,07/08/2013,NATIONAL JOINT REGISTRY LEVY,Planned Care,JOHNSON & JOHNSON MEDICAL LTD,0000898341,20.00
Department of Health,East Sussex Hospitals NHS Trust,07/08/2013,M&S EQUIPMENT - OTHER,Planned Care,JOHNSON & JOHNSON MEDICAL LTD,0000898342,-195.92
Department of Health,East Sussex Hospitals NHS Trust,07/08/2013,PROSTHESES-HIP,Planned Care,JOHNSON & JOHNSON MEDICAL LTD,0000898342,1622.26
Department of Health,East Sussex Hospitals NHS Trust,07/08/2013,NATIONAL JOINT REGISTRY LEVY,Planned Care,JOHNSON & JOHNSON MEDICAL LTD,0000898342,20.00
Department of Health,East Sussex Hospitals NHS Trust,07/08/2013,PROSTHESES-HIP,Planned Care,JOHNSON & JOHNSON MEDICAL LTD,0000898343,711.28
Department of Health,East Sussex Hospitals NHS Trust,07/08/2013,M&S GENERAL SUPPLIES-OTHER,Integrated Care,JOHNSON & JOHNSON MEDICAL LTD,0000898345,1339.83
Department of Health,East Sussex Hospitals NHS Trust,07/08/2013,PROSTHESES-HIP,Planned Care,JOHNSON & JOHNSON MEDICAL LTD,0000898346,711.28
Department of Health,East Sussex Hospitals NHS Trust,07/08/2013,PROSTHESES-HIP,Planned Care,JOHNSON & JOHNSON MEDICAL LTD,0000898347,856.82
Department of Health,East Sussex Hospitals NHS Trust,07/08/2013,M&S EQUIPMENT - OTHER,Planned Care,JOHNSON & JOHNSON MEDICAL LTD,0000898348,309.34
Department of Health,East Sussex Hospitals NHS Trust,07/08/2013,PROSTHESES-HIP,Planned Care,JOHNSON & JOHNSON MEDICAL LTD,0000898348,1002.35
Department of Health,East Sussex Hospitals NHS Trust,07/08/2013,STAPLING DEVICES,Planned Care,JOHNSON & JOHNSON MEDICAL LTD,0000898349,955.68
Department of Health,East Sussex Hospitals NHS Trust,07/08/2013,STOCK-ASCRIBE CONQUEST,Pharmacy Stock,ALCON EYE CARE UK LTD,0001211374,1152.00
Department of Health,East Sussex Hospitals NHS Trust,07/08/2013,STOCK-ASCRIBE CONQUEST,Pharmacy Stock,BRISTOL-MYERS SQUIBB PHARMACEUTICAL,0001211685,4064.16
Department of Health,East Sussex Hospitals NHS Trust,07/08/2013,STOCK-ASCRIBE CONQUEST,Pharmacy Stock,DIAGMED HEALTHCARE LTD,0001211951,535.68
Department of Health,East Sussex Hospitals NHS Trust,07/08/2013,STOCK-ASCRIBE CONQUEST,Pharmacy Stock,BIO PRODUCTS LABORATORY,0001212830,619.00
Department of Health,East Sussex Hospitals NHS Trust,07/08/2013,STOCK-ASCRIBE CONQUEST,Pharmacy Stock,CHIESI  LTD,0001212935,2700.00
Department of Health,East Sussex Hospitals NHS Trust,07/08/2013,STOCK-ASCRIBE CONQUEST,Pharmacy Stock,ROCHE PRODUCTS LTD,0001213786,3098.16
Department of Health,East Sussex Hospitals NHS Trust,07/08/2013,STOCK-ASCRIBE CONQUEST,Pharmacy Stock,ROCHE PRODUCTS LTD,0001213846,560.30
Department of Health,East Sussex Hospitals NHS Trust,07/08/2013,STOCK-ASCRIBE CONQUEST,Pharmacy Stock,ROCHE PRODUCTS LTD,0001213847,8622.00
Department of Health,East Sussex Hospitals NHS Trust,07/08/2013,STOCK-ASCRIBE CONQUEST,Pharmacy Stock,BAYER PLC,0001214016,2682.42
Department of Health,East Sussex Hospitals NHS Trust,07/08/2013,STOCK-ASCRIBE CONQUEST,Pharmacy Stock,NOVARTIS PHARMACEUTICALS UK LTD,0001214751,22873.66
Department of Health,East Sussex Hospitals NHS Trust,07/08/2013,STOCK-ASCRIBE CONQUEST,Pharmacy Stock,PHOENIX HEALTHCARE DISTRIBUTION LTD,0001214899,1075.32
Department of Health,East Sussex Hospitals NHS Trust,07/08/2013,STOCK-ASCRIBE CONQUEST,Pharmacy Stock,AAH PHARMACEUTICALS LTD,0001215180,1177.32
Department of Health,East Sussex Hospitals NHS Trust,07/08/2013,STOCK-ASCRIBE CONQUEST,Pharmacy Stock,AAH PHARMACEUTICALS LTD,0001215183,659.02
Department of Health,East Sussex Hospitals NHS Trust,07/08/2013,STOCK-ASCRIBE CONQUEST,Pharmacy Stock,AAH PHARMACEUTICALS LTD,0001215205,585.23
Department of Health,East Sussex Hospitals NHS Trust,07/08/2013,STOCK-ASCRIBE CONQUEST,Pharmacy Stock,AAH PHARMACEUTICALS LTD,0001215210,513.06
Department of Health,East Sussex Hospitals NHS Trust,07/08/2013,STOCK-ASCRIBE CONQUEST,Pharmacy Stock,AAH PHARMACEUTICALS LTD,0001215216,902.88
Department of Health,East Sussex Hospitals NHS Trust,07/08/2013,STOCK-ASCRIBE CONQUEST,Pharmacy Stock,AAH PHARMACEUTICALS LTD,0001215217,684.00
Department of Health,East Sussex Hospitals NHS Trust,07/08/2013,STOCK-ASCRIBE CONQUEST,Pharmacy Stock,AAH PHARMACEUTICALS LTD,0001215219,655.28
Department of Health,East Sussex Hospitals NHS Trust,07/08/2013,STOCK-ASCRIBE CONQUEST,Pharmacy Stock,AAH PHARMACEUTICALS LTD,0001215220,519.85
Department of Health,East Sussex Hospitals NHS Trust,07/08/2013,STOCK-ASCRIBE CONQUEST,Pharmacy Stock,AAH PHARMACEUTICALS LTD,0001215221,551.81
Department of Health,East Sussex Hospitals NHS Trust,07/08/2013,STOCK-ASCRIBE CONQUEST,Pharmacy Stock,AAH PHARMACEUTICALS LTD,0001215229,1143.12
Department of Health,East Sussex Hospitals NHS Trust,07/08/2013,STOCK-ASCRIBE CONQUEST,Pharmacy Stock,AAH PHARMACEUTICALS LTD,0001215242,612.00
Department of Health,East Sussex Hospitals NHS Trust,07/08/2013,STOCK-ASCRIBE CONQUEST,Pharmacy Stock,AAH PHARMACEUTICALS LTD,0001215259,602.16
Department of Health,East Sussex Hospitals NHS Trust,07/08/2013,STOCK-ASCRIBE CONQUEST,Pharmacy Stock,AAH PHARMACEUTICALS LTD,0001215261,507.82
Department of Health,East Sussex Hospitals NHS Trust,07/08/2013,STOCK-ASCRIBE CONQUEST,Pharmacy Stock,AAH PHARMACEUTICALS LTD,0001215265,601.92
Department of Health,East Sussex Hospitals NHS Trust,07/08/2013,STOCK-ASCRIBE CONQUEST,Pharmacy Stock,AAH PHARMACEUTICALS LTD,0001215271,616.55
Department of Health,East Sussex Hospitals NHS Trust,07/08/2013,STOCK-ASCRIBE CONQUEST,Pharmacy Stock,AAH PHARMACEUTICALS LTD,0001215275,908.47
Department of Health,East Sussex Hospitals NHS Trust,07/08/2013,STOCK-ASCRIBE CONQUEST,Pharmacy Stock,BIOVENTUS COOPERATIEF UA,0001215408,6336.00
Department of Health,East Sussex Hospitals NHS Trust,07/08/2013,STOCK-ASCRIBE CONQUEST,Pharmacy Stock,AAH PHARMACEUTICALS LTD,0001215422,1080.00
Department of Health,East Sussex Hospitals NHS Trust,07/08/2013,STOCK-ASCRIBE CONQUEST,Pharmacy Stock,AAH PHARMACEUTICALS LTD,0001215433,1186.98
Department of Health,East Sussex Hospitals NHS Trust,07/08/2013,STOCK-ASCRIBE CONQUEST,Pharmacy Stock,AAH PHARMACEUTICALS LTD,0001215435,846.00
Department of Health,East Sussex Hospitals NHS Trust,07/08/2013,STOCK-ASCRIBE CONQUEST,Pharmacy Stock,AAH PHARMACEUTICALS LTD,0001215436,544.30
Department of Health,East Sussex Hospitals NHS Trust,07/08/2013,STOCK-ASCRIBE CONQUEST,Pharmacy Stock,AAH PHARMACEUTICALS LTD,0001215447,659.21
Department of Health,East Sussex Hospitals NHS Trust,07/08/2013,STOCK-ASCRIBE CONQUEST,Pharmacy Stock,AAH PHARMACEUTICALS LTD,0001215463,609.59
Department of Health,East Sussex Hospitals NHS Trust,07/08/2013,STOCK-ASCRIBE CONQUEST,Pharmacy Stock,AAH PHARMACEUTICALS LTD,0001215470,612.00
Department of Health,East Sussex Hospitals NHS Trust,07/08/2013,STOCK-ASCRIBE CONQUEST,Pharmacy Stock,AAH PHARMACEUTICALS LTD,0001215488,559.43
Department of Health,East Sussex Hospitals NHS Trust,07/08/2013,STOCK-ASCRIBE CONQUEST,Pharmacy Stock,AAH PHARMACEUTICALS LTD,0001215499,2073.90
Department of Health,East Sussex Hospitals NHS Trust,07/08/2013,FURNITURE & FITTINGS,Planned Care,BEAVER HEALTHCARE EQUIPMENT,0001421831,787.00
Department of Health,East Sussex Hospitals NHS Trust,07/08/2013,ESPERANCE - SERVICES RECEIVED,Urgent Care,BMI HEALTHCARE COLLECTIONS,0001422212,570.00
Department of Health,East Sussex Hospitals NHS Trust,07/08/2013,ESPERANCE - SERVICES RECEIVED,Urgent Care,BMI HEALTHCARE COLLECTIONS,0001422260,2750.00
Department of Health,East Sussex Hospitals NHS Trust,07/08/2013,ESPERANCE - SERVICES RECEIVED,Planned Care,BMI HEALTHCARE COLLECTIONS,0001422261,37785.62
Department of Health,East Sussex Hospitals NHS Trust,07/08/2013,ESPERANCE - SERVICES RECEIVED,Integrated Care,BMI HEALTHCARE COLLECTIONS,0001422262,6756.00
Department of Health,East Sussex Hospitals NHS Trust,07/08/2013,SUSPENSE(ACCRUALS NOT ACCRUED),Corporate Services,AAH PHARMACEUTICALS LTD,0001422289,704.28
Department of Health,East Sussex Hospitals NHS Trust,07/08/2013,SUSPENSE(ACCRUALS NOT ACCRUED),Corporate Services,AAH PHARMACEUTICALS LTD,0001422291,715.00
Department of Health,East Sussex Hospitals NHS Trust,07/08/2013,SUSPENSE(ACCRUALS NOT ACCRUED),Corporate Services,AAH PHARMACEUTICALS LTD,0001422302,-616.20
Department of Health,East Sussex Hospitals NHS Trust,07/08/2013,SUSPENSE(ACCRUALS NOT ACCRUED),Corporate Services,AAH PHARMACEUTICALS LTD,0001422303,-4401.00
Department of Health,East Sussex Hospitals NHS Trust,07/08/2013,TRAINING FEES - NURSE CONT ED,Corporate Services,N S P C C HOME COUNTIES,0001422360,1038.80
Department of Health,East Sussex Hospitals NHS Trust,07/08/2013,DRUGS-LENALIDOMIDE,Integrated Care,JANSSEN-CILAG LTD,0001422362,16467.41
Department of Health,East Sussex Hospitals NHS Trust,07/08/2013,TRAINING COURSE FEES-OTHER,Commercial,LITS,0001422365,480.80
Department of Health,East Sussex Hospitals NHS Trust,07/08/2013,TRAINING COURSE FEES-OTHER,Commercial,LITS,0001422365,422.80
Department of Health,East Sussex Hospitals NHS Trust,07/08/2013,H/CARE PURCH COM - SPIRE,Planned Care,SPIRE HEALTHCARE FINANCE,0001422369,19496.00
Department of Health,East Sussex Hospitals NHS Trust,07/08/2013,CAPITAL EXPENDITURE,Other Central,CHRISTOPHER R PYE,0001422394,3166.60
Department of Health,East Sussex Hospitals NHS Trust,07/08/2013,PROFESSIONAL FEES,Planned Care,SCRIBETECH,0001525324,34.91
Department of Health,East Sussex Hospitals NHS Trust,07/08/2013,PROFESSIONAL FEES,Planned Care,SCRIBETECH,0001525324,15.07
Department of Health,East Sussex Hospitals NHS Trust,07/08/2013,PROFESSIONAL FEES,Planned Care,SCRIBETECH,0001525324,271.76
Department of Health,East Sussex Hospitals NHS Trust,07/08/2013,PROFESSIONAL FEES,Planned Care,SCRIBETECH,0001525324,22.52
Department of Health,East Sussex Hospitals NHS Trust,07/08/2013,PROFESSIONAL FEES,Planned Care,SCRIBETECH,0001525324,500.42
Department of Health,East Sussex Hospitals NHS Trust,07/08/2013,PROFESSIONAL FEES,Planned Care,SCRIBETECH,0001525324,440.56
Department of Health,East Sussex Hospitals NHS Trust,07/08/2013,PROFESSIONAL FEES,Planned Care,SCRIBETECH,0001525324,730.54
Department of Health,East Sussex Hospitals NHS Trust,07/08/2013,PROFESSIONAL FEES,Planned Care,SCRIBETECH,0001525324,0.49
Department of Health,East Sussex Hospitals NHS Trust,07/08/2013,PROFESSIONAL FEES,Planned Care,SCRIBETECH,0001525324,1509.84
Department of Health,East Sussex Hospitals NHS Trust,07/08/2013,PROFESSIONAL FEES,Planned Care,SCRIBETECH,0001525324,918.54
Department of Health,East Sussex Hospitals NHS Trust,07/08/2013,PROFESSIONAL FEES,Planned Care,SCRIBETECH,0001525324,638.04
Department of Health,East Sussex Hospitals NHS Trust,07/08/2013,PROFESSIONAL FEES,Planned Care,SCRIBETECH,0001525324,526.74
Department of Health,East Sussex Hospitals NHS Trust,07/08/2013,PROFESSIONAL FEES,Planned Care,SCRIBETECH,0001525324,930.04
Department of Health,East Sussex Hospitals NHS Trust,07/08/2013,PROFESSIONAL FEES,Planned Care,SCRIBETECH,0001525324,113.72
Department of Health,East Sussex Hospitals NHS Trust,07/08/2013,PROFESSIONAL FEES,Planned Care,SCRIBETECH,0001525324,154.63
Department of Health,East Sussex Hospitals NHS Trust,07/08/2013,PROFESSIONAL FEES,Planned Care,SCRIBETECH,0001525324,936.36
Department of Health,East Sussex Hospitals NHS Trust,07/08/2013,PROFESSIONAL FEES,Planned Care,SCRIBETECH,0001525324,700.17
Department of Health,East Sussex Hospitals NHS Trust,07/08/2013,PROFESSIONAL FEES,Planned Care,SCRIBETECH,0001525324,749.66
Department of Health,East Sussex Hospitals NHS Trust,07/08/2013,PROFESSIONAL FEES,Planned Care,SCRIBETECH,0001525324,324.65
Department of Health,East Sussex Hospitals NHS Trust,07/08/2013,PROFESSIONAL FEES,Planned Care,SCRIBETECH,0001525324,47.63
Department of Health,East Sussex Hospitals NHS Trust,07/08/2013,PROFESSIONAL FEES,Planned Care,SCRIBETECH,0001527874,8.51
Department of Health,East Sussex Hospitals NHS Trust,07/08/2013,PROFESSIONAL FEES,Planned Care,SCRIBETECH,0001527874,58.89
Department of Health,East Sussex Hospitals NHS Trust,07/08/2013,PROFESSIONAL FEES,Planned Care,SCRIBETECH,0001527874,1.22
Department of Health,East Sussex Hospitals NHS Trust,07/08/2013,PROFESSIONAL FEES,Planned Care,SCRIBETECH,0001527874,482.52
Department of Health,East Sussex Hospitals NHS Trust,07/08/2013,PROFESSIONAL FEES,Planned Care,SCRIBETECH,0001527874,125.63
Department of Health,East Sussex Hospitals NHS Trust,07/08/2013,PROFESSIONAL FEES,Planned Care,SCRIBETECH,0001527874,557.52
Department of Health,East Sussex Hospitals NHS Trust,07/08/2013,PROFESSIONAL FEES,Planned Care,SCRIBETECH,0001527874,28.43
Department of Health,East Sussex Hospitals NHS Trust,07/08/2013,PROFESSIONAL FEES,Planned Care,SCRIBETECH,0001527874,318.17
Department of Health,East Sussex Hospitals NHS Trust,07/08/2013,PROFESSIONAL FEES,Planned Care,SCRIBETECH,0001527874,749.49
Department of Health,East Sussex Hospitals NHS Trust,07/08/2013,PROFESSIONAL FEES,Planned Care,SCRIBETECH,0001527874,666.87
Department of Health,East Sussex Hospitals NHS Trust,07/08/2013,PROFESSIONAL FEES,Planned Care,SCRIBETECH,0001527874,606.61
Department of Health,East Sussex Hospitals NHS Trust,07/08/2013,PROFESSIONAL FEES,Urgent Care,SCRIBETECH,0001527874,443.88
Department of Health,East Sussex Hospitals NHS Trust,07/08/2013,PROFESSIONAL FEES,Planned Care,SCRIBETECH,0001527874,207.20
Department of Health,East Sussex Hospitals NHS Trust,07/08/2013,PROFESSIONAL FEES,Planned Care,SCRIBETECH,0001527874,196.91
Department of Health,East Sussex Hospitals NHS Trust,07/08/2013,PROFESSIONAL FEES,Planned Care,SCRIBETECH,0001527874,588.87
Department of Health,East Sussex Hospitals NHS Trust,07/08/2013,PROFESSIONAL FEES,Planned Care,SCRIBETECH,0001527874,1017.93
Department of Health,East Sussex Hospitals NHS Trust,07/08/2013,PROFESSIONAL FEES,Planned Care,SCRIBETECH,0001527874,880.71
Department of Health,East Sussex Hospitals NHS Trust,07/08/2013,PROFESSIONAL FEES,Planned Care,SCRIBETECH,0001527874,196.10
Department of Health,East Sussex Hospitals NHS Trust,07/08/2013,PROFESSIONAL FEES,Planned Care,SCRIBETECH,0001527874,306.99
Department of Health,East Sussex Hospitals NHS Trust,07/08/2013,PROFESSIONAL FEES,Planned Care,SCRIBETECH,0001527874,815.35
Department of Health,East Sussex Hospitals NHS Trust,07/08/2013,AGENCY SPECIALIST REG,Urgent Care,CUSTODIAL MEDICAL SERVICES LTD,0001528224,6453.00
Department of Health,East Sussex Hospitals NHS Trust,07/08/2013,AGENCY SPECIALIST REG,Urgent Care,CUSTODIAL MEDICAL SERVICES LTD,0001528225,6453.00
Department of Health,East Sussex Hospitals NHS Trust,07/08/2013,AGENCY SPECIALIST REG,Urgent Care,CUSTODIAL MEDICAL SERVICES LTD,0001528226,6453.00
Department of Health,East Sussex Hospitals NHS Trust,07/08/2013,CONTRACT-SECURITY,Commercial,CARDINAL SECURITY LTD,0001528384,2088.65
Department of Health,East Sussex Hospitals NHS Trust,07/08/2013,LEASE CARS,Cross Site,ARNOLD CLARK FINANCE LTD,0001528388,896.14
Department of Health,East Sussex Hospitals NHS Trust,07/08/2013,PROFESSIONAL FEES,Planned Care,SCRIBETECH,0001528503,3.40
Department of Health,East Sussex Hospitals NHS Trust,07/08/2013,PROFESSIONAL FEES,Planned Care,SCRIBETECH,0001528503,17.33
Department of Health,East Sussex Hospitals NHS Trust,07/08/2013,PROFESSIONAL FEES,Planned Care,SCRIBETECH,0001528503,3.65
Department of Health,East Sussex Hospitals NHS Trust,07/08/2013,PROFESSIONAL FEES,Planned Care,SCRIBETECH,0001528503,260.25
Department of Health,East Sussex Hospitals NHS Trust,07/08/2013,PROFESSIONAL FEES,Planned Care,SCRIBETECH,0001528503,157.46
Department of Health,East Sussex Hospitals NHS Trust,07/08/2013,PROFESSIONAL FEES,Planned Care,SCRIBETECH,0001528503,455.63
Department of Health,East Sussex Hospitals NHS Trust,07/08/2013,PROFESSIONAL FEES,Planned Care,SCRIBETECH,0001528503,29.48
Department of Health,East Sussex Hospitals NHS Trust,07/08/2013,PROFESSIONAL FEES,Planned Care,SCRIBETECH,0001528503,408.24
Department of Health,East Sussex Hospitals NHS Trust,07/08/2013,PROFESSIONAL FEES,Planned Care,SCRIBETECH,0001528503,641.68
Department of Health,East Sussex Hospitals NHS Trust,07/08/2013,PROFESSIONAL FEES,Planned Care,SCRIBETECH,0001528503,446.63
Department of Health,East Sussex Hospitals NHS Trust,07/08/2013,PROFESSIONAL FEES,Planned Care,SCRIBETECH,0001528503,447.69
Department of Health,East Sussex Hospitals NHS Trust,07/08/2013,PROFESSIONAL FEES,Planned Care,SCRIBETECH,0001528503,272.81
Department of Health,East Sussex Hospitals NHS Trust,07/08/2013,PROFESSIONAL FEES,Planned Care,SCRIBETECH,0001528503,209.30
Department of Health,East Sussex Hospitals NHS Trust,07/08/2013,PROFESSIONAL FEES,Planned Care,SCRIBETECH,0001528503,84.24
Department of Health,East Sussex Hospitals NHS Trust,07/08/2013,PROFESSIONAL FEES,Planned Care,SCRIBETECH,0001528503,690.04
Department of Health,East Sussex Hospitals NHS Trust,07/08/2013,PROFESSIONAL FEES,Planned Care,SCRIBETECH,0001528503,965.36
Department of Health,East Sussex Hospitals NHS Trust,07/08/2013,PROFESSIONAL FEES,Planned Care,SCRIBETECH,0001528503,707.78
Department of Health,East Sussex Hospitals NHS Trust,07/08/2013,PROFESSIONAL FEES,Planned Care,SCRIBETECH,0001528503,175.20
Department of Health,East Sussex Hospitals NHS Trust,07/08/2013,PROFESSIONAL FEES,Planned Care,SCRIBETECH,0001528503,237.90
Department of Health,East Sussex Hospitals NHS Trust,07/08/2013,PROFESSIONAL FEES,Planned Care,SCRIBETECH,0001528503,955.07
Department of Health,East Sussex Hospitals NHS Trust,07/08/2013,PROFESSIONAL FEES,Urgent Care,SCRIBETECH,0001528504,7120.55
Department of Health,East Sussex Hospitals NHS Trust,07/08/2013,TESTS SENT TO NON NHS LABS,Integrated Care,UCL ADVANCED DIAGNOSTICS,0001528540,600.00
Department of Health,East Sussex Hospitals NHS Trust,07/08/2013,PROFESSIONAL FEES,Corporate Services,CRS VAT CONSULTING,0001528896,628.96
Department of Health,East Sussex Hospitals NHS Trust,07/08/2013,AGENCY SPECIALIST REG,Urgent Care,CUSTODIAL MEDICAL SERVICES LTD,0001529038,6453.00
Department of Health,East Sussex Hospitals NHS Trust,07/08/2013,PROFESSIONAL FEES,Corporate Services,SUSSEX 4X4 RESPONSE,0001529055,540.80
Department of Health,East Sussex Hospitals NHS Trust,07/08/2013,DRUGS-OTHER,Integrated Care,AAH PHARMACEUTICALS LTD,0001529089,5792.22
Department of Health,East Sussex Hospitals NHS Trust,07/08/2013,LEASE OF LAND,Commercial,RYE WINCHELSEA & DISTRICT MEM HOSP LTD,0001529173,25000.00
Department of Health,East Sussex Hospitals NHS Trust,07/08/2013,GENERAL PRACTITIONERS,Urgent Care,SAXONBURY HOUSE MEDICAL GROUP,0001529177,5050.80
Department of Health,East Sussex Hospitals NHS Trust,07/08/2013,DRUGS-OTHER,Integrated Care,AAH PHARMACEUTICALS LTD,0001529267,607.82
Department of Health,East Sussex Hospitals NHS Trust,07/08/2013,AGENCY CONSULTANT,Integrated Care,UNIVERSITY OF SUSSEX,0001529274,2439.29
Department of Health,East Sussex Hospitals NHS Trust,07/08/2013,AGENCY CONSULTANT,Integrated Care,UNIVERSITY OF SUSSEX,0001529275,2251.11
Department of Health,East Sussex Hospitals NHS Trust,07/08/2013,COURIER SERVICES,Commercial,STREETWISE COURIERS SUSSEX LTD,0001529304,1367.08
Department of Health,East Sussex Hospitals NHS Trust,07/08/2013,COURIER SERVICES,Commercial,STREETWISE COURIERS SUSSEX LTD,0001529305,472.94
Department of Health,East Sussex Hospitals NHS Trust,07/08/2013,COURIER SERVICES,Commercial,STREETWISE COURIERS SUSSEX LTD,0001529306,553.80
Department of Health,East Sussex Hospitals NHS Trust,07/08/2013,COURIER SERVICES,Commercial,STREETWISE COURIERS SUSSEX LTD,0001529307,968.81
Department of Health,East Sussex Hospitals NHS Trust,07/08/2013,PROFESSIONAL FEES,Corporate Services,CRS VAT CONSULTING,0001529424,3198.07
Department of Health,East Sussex Hospitals NHS Trust,07/08/2013,TAXI - OTHER,Commercial,EASTBOURNE & COUNTRY TAXIS LTD,0001529472,2263.20
Department of Health,East Sussex Hospitals NHS Trust,07/08/2013,DRUGS-OTHER,Integrated Care,AAH PHARMACEUTICALS LTD,0001529551,716.52
Department of Health,East Sussex Hospitals NHS Trust,07/08/2013,DRUGS-OTHER,Integrated Care,AAH PHARMACEUTICALS LTD,0001529552,506.52
Department of Health,East Sussex Hospitals NHS Trust,07/08/2013,DRUGS-OTHER,Integrated Care,AAH PHARMACEUTICALS LTD,0001529554,577.71
Department of Health,East Sussex Hospitals NHS Trust,07/08/2013,PROFESSIONAL FEES,Planned Care,SYNERTEC LTD,0001529589,5625.98
Department of Health,East Sussex Hospitals NHS Trust,07/08/2013,SAMPLE TRANSPORT COST,Integrated Care,ARIEL DYNAMIC CARRIERS,0001529592,490.00
Department of Health,East Sussex Hospitals NHS Trust,07/08/2013,SAMPLE TRANSPORT COST,Integrated Care,ARIEL DYNAMIC CARRIERS,0001529594,510.00
Department of Health,East Sussex Hospitals NHS Trust,07/08/2013,LECTURE FEES,Corporate Services,ETC,0001529651,550.00
Department of Health,East Sussex Hospitals NHS Trust,07/08/2013,TRADE EFFLUENT,Commercial,SOUTHERN WATER SERVICES LTD,0001529731,1496.09
Department of Health,East Sussex Hospitals NHS Trust,07/08/2013,DRUGS-OTHER,Commercial,BAXTER HEALTHCARE (BERKSHIRE)LTD,0001614404,809.71
Department of Health,East Sussex Hospitals NHS Trust,07/08/2013,DRUGS-OTHER,Commercial,JANSSEN-CILAG LTD,0001614434,6570.00
Department of Health,East Sussex Hospitals NHS Trust,07/08/2013,DRUGS-OTHER,Commercial,ABBVIE LTD,0001614507,13699.68
Department of Health,East Sussex Hospitals NHS Trust,07/08/2013,DRUGS-OTHER,Commercial,GILEAD SCIENCES LTD,0001614517,10179.46
Department of Health,East Sussex Hospitals NHS Trust,07/08/2013,DRUGS-OTHER,Commercial,AAH PHARMACEUTICALS LTD,0001614527,648.72
Department of Health,East Sussex Hospitals NHS Trust,07/08/2013,DRUGS-OTHER,Commercial,M & A PHARMACHEM LTD,0001614543,984.00
Department of Health,East Sussex Hospitals NHS Trust,07/08/2013,LAB-CONTAINERS/BOTTLES & CAPS,Commercial,NEVILLE & MORE LTD,0001614722,605.76
Department of Health,East Sussex Hospitals NHS Trust,07/08/2013,DRUGS-OTHER,Commercial,CHERWELL LABORATORIES,0001614756,804.64
Department of Health,East Sussex Hospitals NHS Trust,07/08/2013,LAB-CONTAINERS/BOTTLES & CAPS,Commercial,NEVILLE & MORE LTD,0001614794,689.52
Department of Health,East Sussex Hospitals NHS Trust,07/08/2013,LAB-CONTAINERS/BOTTLES & CAPS,Commercial,NEVILLE & MORE LTD,0001614876,3899.15
Department of Health,East Sussex Hospitals NHS Trust,07/08/2013,DRUGS-OTHER,Commercial,AAH PHARMACEUTICALS LTD,0001614921,1654.85
Department of Health,East Sussex Hospitals NHS Trust,07/08/2013,DRUGS-OTHER,Commercial,AAH PHARMACEUTICALS LTD,0001614922,3200.69
Department of Health,East Sussex Hospitals NHS Trust,07/08/2013,DRUGS-OTHER,Commercial,AAH PHARMACEUTICALS LTD,0001614947,630.00
Department of Health,East Sussex Hospitals NHS Trust,07/08/2013,DRUGS-OTHER,Commercial,AAH PHARMACEUTICALS LTD,0001614948,591.00
Department of Health,East Sussex Hospitals NHS Trust,07/08/2013,DRUGS-OTHER,Commercial,AAH PHARMACEUTICALS LTD,0001614949,596.23
Department of Health,East Sussex Hospitals NHS Trust,07/08/2013,DRUGS-OTHER,Commercial,AAH PHARMACEUTICALS LTD,0001614950,3466.42
Department of Health,East Sussex Hospitals NHS Trust,07/08/2013,DRUGS-OTHER,Commercial,AAH PHARMACEUTICALS LTD,0001614955,541.62
Department of Health,East Sussex Hospitals NHS Trust,07/08/2013,DRUGS-OTHER,Commercial,AAH PHARMACEUTICALS LTD,0001614958,718.32
Department of Health,East Sussex Hospitals NHS Trust,07/08/2013,DRUGS-OTHER,Commercial,AAH PHARMACEUTICALS LTD,0001614963,750.00
Department of Health,East Sussex Hospitals NHS Trust,07/08/2013,DRUGS-OTHER,Commercial,AAH PHARMACEUTICALS LTD,0001614986,1999.20
Department of Health,East Sussex Hospitals NHS Trust,07/08/2013,DRUGS-OTHER,Commercial,AAH PHARMACEUTICALS LTD,0001614997,576.00
Department of Health,East Sussex Hospitals NHS Trust,07/08/2013,DRUGS-OTHER,Commercial,AAH PHARMACEUTICALS LTD,0001615001,1064.34
Department of Health,East Sussex Hospitals NHS Trust,07/08/2013,PHOTOCOPIER HIRE,Corporate Services,RICOH UK LTD,0001704904,586.27
Department of Health,East Sussex Hospitals NHS Trust,07/08/2013,TELEPHONES-RENTAL&CALLS,Commercial,BRITISH TELECOM,0001705041,1623.87
Department of Health,East Sussex Hospitals NHS Trust,07/08/2013,TELEPHONES-RENTAL&CALLS,Commercial,BRITISH TELECOM,0001705045,565.27
Department of Health,East Sussex Hospitals NHS Trust,07/08/2013,PHOTOCOPIER HIRE,Commercial,RICOH UK LTD,0001705048,582.66
Department of Health,East Sussex Hospitals NHS Trust,07/08/2013,PHOTOCOPIER HIRE,Commercial,RICOH UK LTD,0001705056,430.85
Department of Health,East Sussex Hospitals NHS Trust,07/08/2013,PHOTOCOPIER HIRE,Urgent Care,RICOH UK LTD,0001705061,435.63
Department of Health,East Sussex Hospitals NHS Trust,07/08/2013,PHOTOCOPIER HIRE,Urgent Care,RICOH UK LTD,0001705066,785.75
Department of Health,East Sussex Hospitals NHS Trust,07/08/2013,PHOTOCOPIER HIRE,Integrated Care,RICOH UK LTD,0001705070,782.01
Department of Health,East Sussex Hospitals NHS Trust,07/08/2013,PHOTOCOPIER HIRE,Corporate Services,RICOH UK LTD,0001705079,430.19
Department of Health,East Sussex Hospitals NHS Trust,07/08/2013,WHEELCHAIR,Integrated Care,SOUTHWEST SEATING & REHAB LTD,0001814660,1174.50
Department of Health,East Sussex Hospitals NHS Trust,07/08/2013,OTHER STATIONERY,Integrated Care,WHITELEYS OFFICE SUPPLIES LTD,0001814715,365.59
Department of Health,East Sussex Hospitals NHS Trust,07/08/2013,FURNITURE & FITTINGS,Integrated Care,WHITELEYS OFFICE SUPPLIES LTD,0001814715,423.55
Department of Health,East Sussex Hospitals NHS Trust,07/08/2013,M&S GENERAL SUPPLIES-OTHER,Planned Care,AMBU LIMITED,0001814941,625.14
Department of Health,East Sussex Hospitals NHS Trust,07/08/2013,WHEELCHAIR REPAIRS,Integrated Care,AJ MOBILITY LTD,0001814961,3786.20
Department of Health,East Sussex Hospitals NHS Trust,07/08/2013,CLEANING CONTRACT,Commercial,CLEAN FOR SUSSEX,0001815139,539.69
Department of Health,East Sussex Hospitals NHS Trust,07/08/2013,OTHER STATIONERY,Integrated Care,SUSSEX PROMOTIONS LTD,0001815181,988.68
Department of Health,East Sussex Hospitals NHS Trust,07/08/2013,M&S GENERAL SUPPLIES-OTHER,Planned Care,FEMCARE-NIKOMED LIMITED,0001815253,1310.40
Department of Health,East Sussex Hospitals NHS Trust,07/08/2013,CONTRACT-SECURITY,Commercial,EAST SUSSEX SECURITY,0001815340,450.19
Department of Health,East Sussex Hospitals NHS Trust,07/08/2013,PROVISIONS,Commercial,THE BESPOKE COFFEE CO LTD,0001905315,1285.14
Department of Health,East Sussex Hospitals NHS Trust,07/08/2013,PROVISIONS,Commercial,THE BESPOKE COFFEE CO LTD,0001905315,960.50
Department of Health,East Sussex Hospitals NHS Trust,07/08/2013,HARDWARE & CROCKERY,Commercial,THE BESPOKE COFFEE CO LTD,0001905315,350.93
Department of Health,East Sussex Hospitals NHS Trust,07/08/2013,PROVISIONS,Commercial,DAIRY CREST LTD,0001906013,1432.61
Department of Health,East Sussex Hospitals NHS Trust,07/08/2013,PROVISIONS,Commercial,DAIRY CREST LTD,0001906054,1796.79
Department of Health,East Sussex Hospitals NHS Trust,07/08/2013,PROVISIONS,Commercial,THE BESPOKE COFFEE CO LTD,0001906185,871.54
Department of Health,East Sussex Hospitals NHS Trust,07/08/2013,PROVISIONS,Commercial,N H CASE LTD,0001906394,842.86
Department of Health,East Sussex Hospitals NHS Trust,07/08/2013,PROVISIONS,Commercial,J R WHOLESALE,0001906637,512.18
Department of Health,East Sussex Hospitals NHS Trust,07/08/2013,FURNITURE & FITTINGS,Commercial,POSHCHAIR MEDICAL LTD,0002117528,804.00
Department of Health,East Sussex Hospitals NHS Trust,07/08/2013,PROSTHESIS -BREAST IMPLANTS,Planned Care,JOHNSON & JOHNSON MEDICAL LTD,0002118049,1104.67
Department of Health,East Sussex Hospitals NHS Trust,07/08/2013,M&S GENERAL SUPPLIES-OTHER,Planned Care,HAEMONETICS LTD,0002118425,653.95
Department of Health,East Sussex Hospitals NHS Trust,07/08/2013,PATS APPL - LEG SUPPORTS,Planned Care,TALAR-MADE LTD,0002118445,508.38
Department of Health,East Sussex Hospitals NHS Trust,07/08/2013,CARDIOLOGY CATHETERS,Urgent Care,TERUMO UK,0002118456,2160.00
Department of Health,East Sussex Hospitals NHS Trust,07/08/2013,INTERVENTIONAL DISPOSABLES,Urgent Care,ABBOTT VASCULAR,0002118457,540.00
Department of Health,East Sussex Hospitals NHS Trust,07/08/2013,INTERVENTIONAL DISPOSABLES,Integrated Care,MANA-TECH LTD,0002118461,600.00
Department of Health,East Sussex Hospitals NHS Trust,07/08/2013,GENERAL LAB. CONSUMABLES,Integrated Care,DIAGNOSTIC REAGENTS LTD,0002118468,436.04
Department of Health,East Sussex Hospitals NHS Trust,07/08/2013,LAB MATERIALS - NEQAS,Integrated Care,DIAGNOSTIC REAGENTS LTD,0002118468,24.00
Department of Health,East Sussex Hospitals NHS Trust,07/08/2013,LAB MATERIALS - ANTICOAGULATN,Integrated Care,DIAGNOSTIC REAGENTS LTD,0002118468,669.96
Department of Health,East Sussex Hospitals NHS Trust,07/08/2013,M&S GENERAL SUPPLIES-OTHER,Planned Care,DELTEX MEDICAL,0002118497,938.40
Department of Health,East Sussex Hospitals NHS Trust,07/08/2013,CAPITAL EXPENDITURE,Other Central,CISILION LTD,0002118631,872.40
Department of Health,East Sussex Hospitals NHS Trust,07/08/2013,M&S GENERAL SUPPLIES-OTHER,Planned Care,WRIGHT MEDICAL UK LTD,0002118655,661.20
Department of Health,East Sussex Hospitals NHS Trust,07/08/2013,M&S GENERAL SUPPLIES-OTHER,Integrated Care,DISTINCTIVE MEDICAL PRODUCTS,0002118662,731.58
Department of Health,East Sussex Hospitals NHS Trust,07/08/2013,CARDIOLOGY STENTS,Urgent Care,ABBOTT VASCULAR,0002118664,2772.00
Department of Health,East Sussex Hospitals NHS Trust,07/08/2013,INTERVENTIONAL DISPOSABLES,Urgent Care,ABBOTT VASCULAR,0002118665,270.00
Department of Health,East Sussex Hospitals NHS Trust,07/08/2013,CARDIOLOGY CATHETERS,Urgent Care,ABBOTT VASCULAR,0002118665,432.00
Department of Health,East Sussex Hospitals NHS Trust,07/08/2013,SECURICOR CASH TRANSIT CHARGES,Corporate Services,G4S CASH SERVICES,0002118702,593.21
Department of Health,East Sussex Hospitals NHS Trust,07/08/2013,M&S GENERAL SUPPLIES-OTHER,Urgent Care,ST JUDE MEDICAL UK LIMITED,0002118722,1998.72
Department of Health,East Sussex Hospitals NHS Trust,07/08/2013,M&S GENERAL SUPPLIES-OTHER,Planned Care,REMSERVE MEDICAL SUPPLIES LIMITED,0002118736,1098.00
Department of Health,East Sussex Hospitals NHS Trust,07/08/2013,BREAST CARE PROTHESIS,Planned Care,AMOENA (UK) LTD,0002118738,613.54
Department of Health,East Sussex Hospitals NHS Trust,07/08/2013,LAB MATERIALS - PRO-LAB,Integrated Care,PRO-LAB DIAGNOSTICS,0002118768,544.98
Department of Health,East Sussex Hospitals NHS Trust,07/08/2013,INTERVENTIONAL DISPOSABLES,Urgent Care,UK MEDICAL LTD,0002118780,810.00
Department of Health,East Sussex Hospitals NHS Trust,07/08/2013,INTERVENTIONAL DISPOSABLES,Urgent Care,VASCULAR PERSECTIVES LTD,0002118781,594.00
Department of Health,East Sussex Hospitals NHS Trust,07/08/2013,INTERVENTIONAL DISPOSABLES,Urgent Care,VASCULAR PERSECTIVES LTD,0002118782,564.00
Department of Health,East Sussex Hospitals NHS Trust,07/08/2013,CARDIOLOGY STENTS,Urgent Care,TERUMO UK,0002118793,828.00
Department of Health,East Sussex Hospitals NHS Trust,07/08/2013,PROSTHESIS - LENS,Planned Care,ALCON EYE CARE UK LTD,0002118796,2157.60
Department of Health,East Sussex Hospitals NHS Trust,07/08/2013,CATARACT CONSUMABLES,Planned Care,ALCON EYE CARE UK LTD,0002118797,1887.48
Department of Health,East Sussex Hospitals NHS Trust,07/08/2013,LAB MATS - SYSMEX HAEM CONS,Integrated Care,SYSMEX UK LTD,0002118843,5301.84
Department of Health,East Sussex Hospitals NHS Trust,07/08/2013,CAPITAL EXPENDITURE,Other Central,BYTES SOFTWARE SERVICES LTD,0002118990,575.02
Department of Health,East Sussex Hospitals NHS Trust,07/08/2013,M&S EQUIPMENT - OTHER,Planned Care,JOHNSON & JOHNSON MEDICAL LTD,0002119028,309.34
Department of Health,East Sussex Hospitals NHS Trust,07/08/2013,PROSTHESES-HIP,Planned Care,JOHNSON & JOHNSON MEDICAL LTD,0002119028,281.62
Department of Health,East Sussex Hospitals NHS Trust,07/08/2013,PROSTHESES-OTHER,Planned Care,JOHNSON & JOHNSON MEDICAL LTD,0002119028,123.60
Department of Health,East Sussex Hospitals NHS Trust,07/08/2013,COMPUTER SOFTWARE,Urgent Care,BYTES SOFTWARE SERVICES LTD,0002119076,575.02
Department of Health,East Sussex Hospitals NHS Trust,07/08/2013,COMPUTER SOFTWARE,Urgent Care,BYTES SOFTWARE SERVICES LTD,0002119087,575.02
Department of Health,East Sussex Hospitals NHS Trust,07/08/2013,PROSTHESES-HIP,Planned Care,LIMA ORTHOPAEDICS UK LIMITED,0002119128,2067.60
Department of Health,East Sussex Hospitals NHS Trust,07/08/2013,NATIONAL JOINT REGISTRY LEVY,Planned Care,LIMA ORTHOPAEDICS UK LIMITED,0002119128,20.00
Department of Health,East Sussex Hospitals NHS Trust,07/08/2013,PROSTHESES-HIP,Planned Care,LIMA ORTHOPAEDICS UK LIMITED,0002119159,556.80
Department of Health,East Sussex Hospitals NHS Trust,07/08/2013,PROSTHESES-OTHER,Planned Care,LIMA ORTHOPAEDICS UK LIMITED,0002119159,82.80
Department of Health,East Sussex Hospitals NHS Trust,07/08/2013,M&S GENERAL SUPPLIES-OTHER,Planned Care,DELTEX MEDICAL,0002119174,938.40
Department of Health,East Sussex Hospitals NHS Trust,07/08/2013,GENERAL LAB. CONSUMABLES,Integrated Care,GENTA MEDICAL,0002119314,4983.44
Department of Health,East Sussex Hospitals NHS Trust,07/08/2013,STORAGE - EXTERNAL FACILITIES,Commercial,RESTORE PLC,0002119354,578.71
Department of Health,East Sussex Hospitals NHS Trust,07/08/2013,FURNITURE & FITTINGS,Commercial,RESTORE PLC,0002119354,121.26
Department of Health,East Sussex Hospitals NHS Trust,07/08/2013,POSTAGE - FRANKING MACHINE,Commercial,NEOPOST LTD,0002119420,1492.42
Department of Health,East Sussex Hospitals NHS Trust,07/08/2013,STORAGE - EXTERNAL FACILITIES,Commercial,RESTORE PLC,0002119475,9390.64
Department of Health,East Sussex Hospitals NHS Trust,07/08/2013,WASTE DISPOSAL SERVICES,Commercial,VEOLIA ENVIRONMENTAL SERVICES (UK) PLC,0002119497,499.80
Department of Health,East Sussex Hospitals NHS Trust,07/08/2013,CARDIOLOGY CATHETERS,Urgent Care,ACROSTAK-UK,0002119511,1182.00
Department of Health,East Sussex Hospitals NHS Trust,07/08/2013,M&S GENERAL SUPPLIES-OTHER,Planned Care,FEMCARE-NIKOMED LIMITED,0002119674,822.00
Department of Health,East Sussex Hospitals NHS Trust,07/08/2013,GENERAL LAB. CONSUMABLES,Integrated Care,SYSMEX UK LTD,0002119755,12.42
Department of Health,East Sussex Hospitals NHS Trust,07/08/2013,LAB MATS - SYSMEX HAEM CONS,Integrated Care,SYSMEX UK LTD,0002119755,880.15
Department of Health,East Sussex Hospitals NHS Trust,07/08/2013,PROFESSIONAL FEES,Commercial,GREEN & KASSAB,0002119857,4800.00
Department of Health,East Sussex Hospitals NHS Trust,07/08/2013,ENDOSCOPY CONSUMABLES,Planned Care,BOSTON SCIENTIFIC LTD,0002119872,540.00
Department of Health,East Sussex Hospitals NHS Trust,07/08/2013,M&S GENERAL SUPPLIES-OTHER,Planned Care,BOSTON SCIENTIFIC LTD,0002119872,220.80
Department of Health,East Sussex Hospitals NHS Trust,07/08/2013,BILIARY STENTS,Planned Care,BOSTON SCIENTIFIC LTD,0002119872,36.00
Department of Health,East Sussex Hospitals NHS Trust,07/08/2013,BILIARY STENTS,Planned Care,BOSTON SCIENTIFIC LTD,0002119873,780.00
Department of Health,East Sussex Hospitals NHS Trust,07/08/2013,ENDOSCOPY CONSUMABLES,Planned Care,BOSTON SCIENTIFIC LTD,0002119874,894.00
Department of Health,East Sussex Hospitals NHS Trust,07/08/2013,M&S GENERAL SUPPLIES-OTHER,Planned Care,BOSTON SCIENTIFIC LTD,0002119874,300.00
Department of Health,East Sussex Hospitals NHS Trust,07/08/2013,M&S GENERAL SUPPLIES-OTHER,Urgent Care,BOSTON SCIENTIFIC LTD,0002119876,90.00
Department of Health,East Sussex Hospitals NHS Trust,07/08/2013,INTERVENTIONAL DISPOSABLES,Urgent Care,BOSTON SCIENTIFIC LTD,0002119876,480.00
Department of Health,East Sussex Hospitals NHS Trust,07/08/2013,MAINT-GE MED SY NHS LOGISTICS,Integrated Care,GE MEDICAL SYSTEMS LTD,0002119918,916.00
Department of Health,East Sussex Hospitals NHS Trust,07/08/2013,BLOOD PRODUCTS - BPL,Integrated Care,BIO PRODUCTS LABORATORY,0002119956,1818.00
Department of Health,East Sussex Hospitals NHS Trust,07/08/2013,M&S GENERAL SUPPLIES-OTHER,Planned Care,BOSTON SCIENTIFIC LTD,0002119978,522.00
Department of Health,East Sussex Hospitals NHS Trust,07/08/2013,STAPLING DEVICES,Planned Care,JOHNSON & JOHNSON MEDICAL LTD,0002120026,863.81
Department of Health,East Sussex Hospitals NHS Trust,07/08/2013,ENDOSCOPY CONSUMABLES,Planned Care,BOSTON SCIENTIFIC LTD,0002120043,360.00
Department of Health,East Sussex Hospitals NHS Trust,07/08/2013,M&S GENERAL SUPPLIES-OTHER,Planned Care,BOSTON SCIENTIFIC LTD,0002120043,342.00
Department of Health,East Sussex Hospitals NHS Trust,07/08/2013,BILIARY STENTS,Planned Care,BOSTON SCIENTIFIC LTD,0002120043,72.00
Department of Health,East Sussex Hospitals NHS Trust,07/08/2013,CARDIOLOGY STENTS,Urgent Care,BOSTON SCIENTIFIC LTD,0002120044,576.00
Department of Health,East Sussex Hospitals NHS Trust,07/08/2013,M&S GENERAL SUPPLIES-OTHER,Integrated Care,JOHNSON & JOHNSON MEDICAL LTD,0002120147,2009.73
Department of Health,East Sussex Hospitals NHS Trust,07/08/2013,STAPLING DEVICES,Planned Care,JOHNSON & JOHNSON MEDICAL LTD,0002120148,955.68
Department of Health,East Sussex Hospitals NHS Trust,07/08/2013,PROSTHESES-HIP,Planned Care,JOHNSON & JOHNSON MEDICAL LTD,0002120149,1673.92
Department of Health,East Sussex Hospitals NHS Trust,07/08/2013,COLPOSCOPY CONSUMABLES,Planned Care,JOHNSON & JOHNSON MEDICAL LTD,0002120150,1285.20
Department of Health,East Sussex Hospitals NHS Trust,07/08/2013,M&S EQUIPMENT - OTHER,Planned Care,JOHNSON & JOHNSON MEDICAL LTD,0002120151,309.34
Department of Health,East Sussex Hospitals NHS Trust,07/08/2013,PROSTHESES-HIP,Planned Care,JOHNSON & JOHNSON MEDICAL LTD,0002120151,711.28
Department of Health,East Sussex Hospitals NHS Trust,07/08/2013,PROSTHESES-HIP,Planned Care,JOHNSON & JOHNSON MEDICAL LTD,0002120155,2191.80
Department of Health,East Sussex Hospitals NHS Trust,07/08/2013,M&S GENERAL SUPPLIES-OTHER,Planned Care,JOHNSON & JOHNSON MEDICAL LTD,0002120182,988.80
Department of Health,East Sussex Hospitals NHS Trust,07/08/2013,PROSTHESES-HIP,Planned Care,JOHNSON & JOHNSON MEDICAL LTD,0002120186,1944.00
Department of Health,East Sussex Hospitals NHS Trust,07/08/2013,PROSTHESES-HIP,Planned Care,JOHNSON & JOHNSON MEDICAL LTD,0002120259,856.82
Department of Health,East Sussex Hospitals NHS Trust,07/08/2013,M&S EQUIPMENT - OTHER,Planned Care,JOHNSON & JOHNSON MEDICAL LTD,0002120263,309.34
Department of Health,East Sussex Hospitals NHS Trust,07/08/2013,PROSTHESES-HIP,Planned Care,JOHNSON & JOHNSON MEDICAL LTD,0002120263,1280.80
Department of Health,East Sussex Hospitals NHS Trust,07/08/2013,NATIONAL JOINT REGISTRY LEVY,Planned Care,JOHNSON & JOHNSON MEDICAL LTD,0002120263,20.00
Department of Health,East Sussex Hospitals NHS Trust,07/08/2013,SURGICAL INSTRUMENTS,Planned Care,BOSTON SCIENTIFIC LTD,0002120286,1045.61
Department of Health,East Sussex Hospitals NHS Trust,07/08/2013,CARDIOLOGY CATHETERS,Urgent Care,ACROSTAK-UK,0002120434,504.00
Department of Health,East Sussex Hospitals NHS Trust,07/08/2013,M&S GENERAL SUPPLIES-OTHER,Planned Care,FEMCARE-NIKOMED LIMITED,0002120470,850.25
Department of Health,East Sussex Hospitals NHS Trust,07/08/2013,HIRE OF SPECIAL BEDS,Urgent Care,BENMOR MEDICAL LTD,0002120519,2418.00
Department of Health,East Sussex Hospitals NHS Trust,07/08/2013,HIRE OF SPECIAL BEDS,Urgent Care,BENMOR MEDICAL LTD,0002120521,2184.00
Department of Health,East Sussex Hospitals NHS Trust,07/08/2013,FOETAL FIBRONECTIN SYS CONSUMS,Integrated Care,HOLOGIC UK LTD,0002121025,1092.00
Department of Health,East Sussex Hospitals NHS Trust,07/08/2013,PROSTHESES-HIP,Planned Care,JOHNSON & JOHNSON MEDICAL LTD,0002121061,-1704.00
Department of Health,East Sussex Hospitals NHS Trust,07/08/2013,CONTRACT VEHICLE MAINTENANCE,Commercial,C BREWER & SONS LTD,0002121779,575.80
Department of Health,East Sussex Hospitals NHS Trust,07/08/2013,M&S EQUIPMENT - OTHER,Planned Care,PULSION MEDICAL UK LTD,0002215576,24.00
Department of Health,East Sussex Hospitals NHS Trust,07/08/2013,M&S GENERAL SUPPLIES-OTHER,Planned Care,PULSION MEDICAL UK LTD,0002215576,3117.48
Department of Health,East Sussex Hospitals NHS Trust,07/08/2013,LAB MATERIALS - OXOID,Integrated Care,OXOID LIMITED,0002216105,1063.44
Department of Health,East Sussex Hospitals NHS Trust,07/08/2013,LAB MATERIALS - OXOID,Integrated Care,OXOID LIMITED,0002216324,757.03
Department of Health,East Sussex Hospitals NHS Trust,07/08/2013,LAB MATERIALS - OXOID,Integrated Care,OXOID LIMITED,0002216443,505.88
Department of Health,East Sussex Hospitals NHS Trust,07/08/2013,ROCHE 2010 REAGENTS,Integrated Care,ROCHE DIAGNOSTICS LTD,0002216461,1139.26
Department of Health,East Sussex Hospitals NHS Trust,07/08/2013,LAB MATERIALS - MAIN ANALYSER,Integrated Care,ALPHA LABORATORIES LTD,0002216463,77.40
Department of Health,East Sussex Hospitals NHS Trust,07/08/2013,LAB.REAGENTS-MISCELLANEOUS,Integrated Care,ALPHA LABORATORIES LTD,0002216463,465.84
Department of Health,East Sussex Hospitals NHS Trust,07/08/2013,INTERVENTIONAL DISPOSABLES,Integrated Care,TERUMO UK,0002216468,756.00
Department of Health,East Sussex Hospitals NHS Trust,07/08/2013,ENGINEERING MATERIALS,Commercial,KANNEGIESSER UK LTD,0002216472,1117.08
Department of Health,East Sussex Hospitals NHS Trust,07/08/2013,M&S GENERAL SUPPLIES-OTHER,Urgent Care,TERUMO UK,0002216490,528.00
Department of Health,East Sussex Hospitals NHS Trust,07/08/2013,M&S GENERAL SUPPLIES-OTHER,Planned Care,MEDICAL INNOVATIONS LTD,0002216491,600.00
Department of Health,East Sussex Hospitals NHS Trust,07/08/2013,CARDIOLOGY STENTS,Urgent Care,ABBOTT VASCULAR,0002216564,972.00
Department of Health,East Sussex Hospitals NHS Trust,07/08/2013,CARDIOLOGY CATHETERS,Urgent Care,ABBOTT VASCULAR,0002216565,144.00
Department of Health,East Sussex Hospitals NHS Trust,07/08/2013,CARDIOLOGY STENTS,Urgent Care,ABBOTT VASCULAR,0002216565,462.00
Department of Health,East Sussex Hospitals NHS Trust,07/08/2013,INTERVENTIONAL DISPOSABLES,Urgent Care,ABBOTT VASCULAR,0002216566,1080.00
Department of Health,East Sussex Hospitals NHS Trust,07/08/2013,ENGINEERING MATERIALS,Commercial,KANNEGIESSER UK LTD,0002216624,1130.26
Department of Health,East Sussex Hospitals NHS Trust,07/08/2013,PROSTHESES-OTHER,Planned Care,KLS MARTIN UK LIMITED,0002216637,929.53
Department of Health,East Sussex Hospitals NHS Trust,07/08/2013,M&S GENERAL SUPPLIES-OTHER,Urgent Care,ST JUDE MEDICAL UK LIMITED,0002216644,1200.00
Department of Health,East Sussex Hospitals NHS Trust,07/08/2013,M&S GENERAL SUPPLIES-OTHER,Commercial,UNISURGE INTERNATIONAL LTD,0002216647,573.72
Department of Health,East Sussex Hospitals NHS Trust,07/08/2013,PRE-STERILE COMMERCIAL PACKS,Commercial,UNISURGE INTERNATIONAL LTD,0002216647,1310.22
Department of Health,East Sussex Hospitals NHS Trust,07/08/2013,M&S GENERAL SUPPLIES-OTHER,Commercial,UNISURGE INTERNATIONAL LTD,0002216648,353.30
Department of Health,East Sussex Hospitals NHS Trust,07/08/2013,PRE-STERILE COMMERCIAL PACKS,Commercial,UNISURGE INTERNATIONAL LTD,0002216648,190.56
Department of Health,East Sussex Hospitals NHS Trust,07/08/2013,PROCEDURE PACKS,Commercial,MEDLINE INDUSTRIES LIMITED,0002216651,9562.09
Department of Health,East Sussex Hospitals NHS Trust,07/08/2013,VAC WOUND M&S SUPPLIES,Urgent Care,SMITH & NEPHEW HEALTHCARE LTD,0002216653,630.00
Department of Health,East Sussex Hospitals NHS Trust,07/08/2013,LAB MATERIALS - PRO-LAB,Integrated Care,PRO-LAB DIAGNOSTICS,0002216657,594.90
Department of Health,East Sussex Hospitals NHS Trust,07/08/2013,GENERAL CHEMICALS,Integrated Care,PRO-LAB DIAGNOSTICS,0002216657,11.64
Department of Health,East Sussex Hospitals NHS Trust,07/08/2013,LAB.REAGENTS-MISCELLANEOUS,Integrated Care,VITECH SCIENTIFIC LTD,0002216675,638.40
Department of Health,East Sussex Hospitals NHS Trust,07/08/2013,TSSU INSTRUMENTATION,Commercial,SMITH & NEPHEW ENDOSCOPY,0002216685,1148.40
Department of Health,East Sussex Hospitals NHS Trust,07/08/2013,M&S GENERAL SUPPLIES-OTHER,Commercial,OMNIMED LIMITED,0002216686,630.00
Department of Health,East Sussex Hospitals NHS Trust,07/08/2013,THEATRE LINEN,Commercial,BUCKLEY LAMB LTD,0002216687,636.00
Department of Health,East Sussex Hospitals NHS Trust,07/08/2013,OFFICE EQUIPMENT,Integrated Care,BUSINESS DICTATION LTD,0002216693,1029.59
Department of Health,East Sussex Hospitals NHS Trust,07/08/2013,PRE-STERILE COMMERCIAL PACKS,Commercial,UNIFIED MEDICAL PRODUCTS LTD,0002216698,782.26
Department of Health,East Sussex Hospitals NHS Trust,07/08/2013,LAB MATERIALS - OXOID,Integrated Care,OXOID LIMITED,0002216707,960.76
Department of Health,East Sussex Hospitals NHS Trust,07/08/2013,M&S GENERAL SUPPLIES-OTHER,Integrated Care,UK MEDICAL LTD,0002216726,1122.00
Department of Health,East Sussex Hospitals NHS Trust,07/08/2013,M&S GENERAL SUPPLIES-OTHER,Integrated Care,UK MEDICAL LTD,0002216727,1102.92
Department of Health,East Sussex Hospitals NHS Trust,07/08/2013,INTERVENTIONAL DISPOSABLES,Integrated Care,MANA-TECH LTD,0002216787,1800.00
Department of Health,East Sussex Hospitals NHS Trust,07/08/2013,M & S EQUIP REPAIR MATERIALS,Planned Care,GE MEDICAL SYSTEMS LTD,0002216800,926.45
Department of Health,East Sussex Hospitals NHS Trust,07/08/2013,M&S EQUIPMENT - OTHER,Commercial,GE MEDICAL SYSTEMS LTD,0002216800,141.96
Department of Health,East Sussex Hospitals NHS Trust,07/08/2013,SURGICAL INSTRUMENTS,Integrated Care,MANA-TECH LTD,0002216891,828.00
Department of Health,East Sussex Hospitals NHS Trust,07/08/2013,M&S GENERAL SUPPLIES-OTHER,Commercial,WESTFIELD MEDICAL LTD,0002216959,1401.67
Department of Health,East Sussex Hospitals NHS Trust,07/08/2013,VEHICLE DEPOT EQUIPMENT,Commercial,DEALLOW LIMITED,0002216962,425.00
Department of Health,East Sussex Hospitals NHS Trust,07/08/2013,ACCREDITATION FEES,Integrated Care,CLINICAL PATHOLOGY ACCREDITATION,0002217073,2800.00
Department of Health,East Sussex Hospitals NHS Trust,07/08/2013,DISPOSAL OF CONFIDENTIAL WASTE,Commercial,VEOLIA ENVIRONMENTAL SERVICES (UK) PLC,0002217257,2100.00
Department of Health,East Sussex Hospitals NHS Trust,07/08/2013,WASTE DISPOSAL SERVICES,Commercial,VEOLIA ENVIRONMENTAL SERVICES (UK) PLC,0002217259,2910.36
Department of Health,East Sussex Hospitals NHS Trust,07/08/2013,WASTE DISPOSAL SERVICES,Commercial,VEOLIA ENVIRONMENTAL SERVICES (UK) PLC,0002217286,2933.70
Department of Health,East Sussex Hospitals NHS Trust,07/08/2013,M&S GENERAL SUPPLIES-OTHER,Commercial,WESTFIELD MEDICAL LTD,0002217378,883.74
Department of Health,East Sussex Hospitals NHS Trust,07/08/2013,CARDIOLOGY CATHETERS,Urgent Care,BOSTON SCIENTIFIC LTD,0002217524,300.00
Department of Health,East Sussex Hospitals NHS Trust,07/08/2013,CARDIOLOGY STENTS,Urgent Care,BOSTON SCIENTIFIC LTD,0002217524,420.00
Department of Health,East Sussex Hospitals NHS Trust,07/08/2013,CARDIOLOGY CATHETERS,Urgent Care,BOSTON SCIENTIFIC LTD,0002217673,432.00
Department of Health,East Sussex Hospitals NHS Trust,07/08/2013,CARDIOLOGY STENTS,Urgent Care,BOSTON SCIENTIFIC LTD,0002217673,840.00
Department of Health,East Sussex Hospitals NHS Trust,07/08/2013,CARDIOLOGY STENTS,Urgent Care,BOSTON SCIENTIFIC LTD,0002217675,840.00
Department of Health,East Sussex Hospitals NHS Trust,07/08/2013,INTERVENTIONAL DISPOSABLES,Urgent Care,BOSTON SCIENTIFIC LTD,0002217679,1032.00
Department of Health,East Sussex Hospitals NHS Trust,07/08/2013,CARDIOLOGY CATHETERS,Urgent Care,BOSTON SCIENTIFIC LTD,0002217679,66.00
Department of Health,East Sussex Hospitals NHS Trust,07/08/2013,M&S GENERAL SUPPLIES-OTHER,Commercial,OMNIMED LIMITED,0002217680,630.00
Department of Health,East Sussex Hospitals NHS Trust,07/08/2013,M&S GENERAL SUPPLIES-OTHER,Integrated Care,JOHNSON & JOHNSON MEDICAL LTD,0002217685,876.00
Department of Health,East Sussex Hospitals NHS Trust,07/08/2013,SURGICAL INSTRUMENTS,Planned Care,JOHNSON & JOHNSON MEDICAL LTD,0002217701,960.00
Department of Health,East Sussex Hospitals NHS Trust,07/08/2013,CARDIOLOGY CATHETERS,Urgent Care,BOSTON SCIENTIFIC LTD,0002217715,366.00
Department of Health,East Sussex Hospitals NHS Trust,07/08/2013,CARDIOLOGY STENTS,Urgent Care,BOSTON SCIENTIFIC LTD,0002217715,420.00
Department of Health,East Sussex Hospitals NHS Trust,07/08/2013,PROCEDURE PACKS,Commercial,ROCIALLE INHEALTH,0002217732,34.88
Department of Health,East Sussex Hospitals NHS Trust,07/08/2013,PRE-STERILE COMMERCIAL PACKS,Commercial,ROCIALLE INHEALTH,0002217732,921.70
Department of Health,East Sussex Hospitals NHS Trust,07/08/2013,M&S GENERAL SUPPLIES-OTHER,Integrated Care,BOSTON SCIENTIFIC LTD,0002217746,540.00
Department of Health,East Sussex Hospitals NHS Trust,07/08/2013,INTERVENTIONAL DISPOSABLES,Urgent Care,JOHNSON & JOHNSON MEDICAL LTD,0002217819,706.50
Department of Health,East Sussex Hospitals NHS Trust,07/08/2013,CARDIOLOGY CATHETERS,Urgent Care,JOHNSON & JOHNSON MEDICAL LTD,0002217820,3960.00
Department of Health,East Sussex Hospitals NHS Trust,07/08/2013,ENGINEERING MATERIALS,Commercial,THE SOUTHERN VALVE & FITTING CO LTD,0002217843,995.49
Department of Health,East Sussex Hospitals NHS Trust,07/08/2013,TELEPHONES-WIRING & EQUIPMENT,Commercial,ROCOM,0002217850,1486.09
Department of Health,East Sussex Hospitals NHS Trust,07/08/2013,TSSU INSTRUMENTATION,Commercial,HOSPITAL INNOVATIONS LTD,0002217856,2523.60
Department of Health,East Sussex Hospitals NHS Trust,07/08/2013,CARDIOLOGY CATHETERS,Urgent Care,JOHNSON & JOHNSON MEDICAL LTD,0002217893,5130.00
Department of Health,East Sussex Hospitals NHS Trust,07/08/2013,ENDOSCOPY CONSUMABLES,Planned Care,BOSTON SCIENTIFIC LTD,0002217926,96.00
Department of Health,East Sussex Hospitals NHS Trust,07/08/2013,M&S GENERAL SUPPLIES-OTHER,Planned Care,BOSTON SCIENTIFIC LTD,0002217926,414.00
Department of Health,East Sussex Hospitals NHS Trust,07/08/2013,ENDOSCOPY CONSUMABLES,Planned Care,BOSTON SCIENTIFIC LTD,0002217928,540.00
Department of Health,East Sussex Hospitals NHS Trust,07/08/2013,M&S GENERAL SUPPLIES-OTHER,Planned Care,BOSTON SCIENTIFIC LTD,0002217928,513.60
Department of Health,East Sussex Hospitals NHS Trust,07/08/2013,ENGINEERING MATERIALS,Commercial,BMM WESTON LTD,0002218009,4285.10
Department of Health,East Sussex Hospitals NHS Trust,07/08/2013,PROCEDURE PACKS,Commercial,ROCIALLE INHEALTH,0002218163,174.42
Department of Health,East Sussex Hospitals NHS Trust,07/08/2013,PRE-STERILE COMMERCIAL PACKS,Commercial,ROCIALLE INHEALTH,0002218163,1189.91
Department of Health,East Sussex Hospitals NHS Trust,07/08/2013,PACEMAKERS,Urgent Care,BIOTRONIK UK LTD,0002218228,10260.00
Department of Health,East Sussex Hospitals NHS Trust,07/08/2013,IMPLANTABLE DEFIBRILLATOR,Urgent Care,BIOTRONIK UK LTD,0002218229,15862.78
Department of Health,East Sussex Hospitals NHS Trust,07/08/2013,IMPLANTABLE DEFIBRILLATOR,Urgent Care,BIOTRONIK UK LTD,0002218230,11328.00
Department of Health,East Sussex Hospitals NHS Trust,07/08/2013,PACEMAKERS,Urgent Care,BIOTRONIK UK LTD,0002218231,10380.00
Department of Health,East Sussex Hospitals NHS Trust,07/08/2013,IMPLANTABLE DEFIBRILLATOR,Urgent Care,BIOTRONIK UK LTD,0002218232,12348.00
Department of Health,East Sussex Hospitals NHS Trust,07/08/2013,IMPLANTABLE DEFIBRILLATOR,Urgent Care,BIOTRONIK UK LTD,0002218233,11934.00
Department of Health,East Sussex Hospitals NHS Trust,07/08/2013,M&S GENERAL SUPPLIES-OTHER,Commercial,NIDA SOLUTIONS LTD,0002218355,818.13
Department of Health,East Sussex Hospitals NHS Trust,07/08/2013,PRE-STERILE COMMERCIAL PACKS,Commercial,NIDA SOLUTIONS LTD,0002218355,623.84
Department of Health,East Sussex Hospitals NHS Trust,07/08/2013,CAPITAL EXPENDITURE,Other Central,SPS DEVELOPMENT SOLUTIONS LTD,0002218538,740.00
Department of Health,East Sussex Hospitals NHS Trust,07/08/2013,MED EQUIPMENT LEASES,Planned Care,CRANMER LAWRENCE & COMPANY LTD,0002218855,2964.02
Department of Health,East Sussex Hospitals NHS Trust,07/08/2013,MED EQUIPMENT LEASES,Planned Care,CRANMER LAWRENCE & COMPANY LTD,0002218885,5846.56
Department of Health,East Sussex Hospitals NHS Trust,07/08/2013,STOCK-ASCRIBE EDGH,Pharmacy Stock,ALCON EYE CARE UK LTD,0013005839,918.00
Department of Health,East Sussex Hospitals NHS Trust,07/08/2013,STOCK-ASCRIBE EDGH,Pharmacy Stock,ALCON EYE CARE UK LTD,0013005845,720.00
Department of Health,East Sussex Hospitals NHS Trust,07/08/2013,STOCK-ASCRIBE EDGH,Pharmacy Stock,CELGENE LTD,0013006919,33138.00
Department of Health,East Sussex Hospitals NHS Trust,07/08/2013,STOCK-ASCRIBE EDGH,Pharmacy Stock,CELGENE LTD,0013006920,9072.00
Department of Health,East Sussex Hospitals NHS Trust,07/08/2013,STOCK-ASCRIBE EDGH,Pharmacy Stock,ROCHE PRODUCTS LTD,0013007329,4673.28
Department of Health,East Sussex Hospitals NHS Trust,07/08/2013,STOCK-ASCRIBE EDGH,Pharmacy Stock,ROCHE PRODUCTS LTD,0013007330,2168.71
Department of Health,East Sussex Hospitals NHS Trust,07/08/2013,STOCK-ASCRIBE EDGH,Pharmacy Stock,ROCHE PRODUCTS LTD,0013007331,929.45
Department of Health,East Sussex Hospitals NHS Trust,07/08/2013,STOCK-ASCRIBE EDGH,Pharmacy Stock,ROCHE PRODUCTS LTD,0013007336,36256.44
Department of Health,East Sussex Hospitals NHS Trust,07/08/2013,STOCK-ASCRIBE EDGH,Pharmacy Stock,ROCHE PRODUCTS LTD,0013007830,2740.97
Department of Health,East Sussex Hospitals NHS Trust,07/08/2013,STOCK-ASCRIBE EDGH,Pharmacy Stock,AAH PHARMACEUTICALS LTD,0013007960,521.34
Department of Health,East Sussex Hospitals NHS Trust,07/08/2013,STOCK-ASCRIBE EDGH,Pharmacy Stock,AAH PHARMACEUTICALS LTD,0013007989,2778.60
Department of Health,East Sussex Hospitals NHS Trust,07/08/2013,STOCK-ASCRIBE EDGH,Pharmacy Stock,AAH PHARMACEUTICALS LTD,0013007990,2354.12
Department of Health,East Sussex Hospitals NHS Trust,07/08/2013,STOCK-ASCRIBE EDGH,Pharmacy Stock,AAH PHARMACEUTICALS LTD,0013007991,530.68
Department of Health,East Sussex Hospitals NHS Trust,07/08/2013,STOCK-ASCRIBE EDGH,Pharmacy Stock,AAH PHARMACEUTICALS LTD,0013007992,713.48
Department of Health,East Sussex Hospitals NHS Trust,07/08/2013,STOCK-ASCRIBE EDGH,Pharmacy Stock,AAH PHARMACEUTICALS LTD,0013007999,513.00
Department of Health,East Sussex Hospitals NHS Trust,07/08/2013,STOCK-ASCRIBE EDGH,Pharmacy Stock,AAH PHARMACEUTICALS LTD,0013008006,-1292.76
Department of Health,East Sussex Hospitals NHS Trust,07/08/2013,STOCK-ASCRIBE EDGH,Pharmacy Stock,AAH PHARMACEUTICALS LTD,0013008007,-554.04
Department of Health,East Sussex Hospitals NHS Trust,07/08/2013,STOCK-ASCRIBE EDGH,Pharmacy Stock,AAH PHARMACEUTICALS LTD,0013008010,-715.00
Department of Health,East Sussex Hospitals NHS Trust,07/08/2013,STOCK-ASCRIBE EDGH,Pharmacy Stock,HEALTHCARE AT HOME LTD,0013008011,715.00
Department of Health,East Sussex Hospitals NHS Trust,14/08/2013,YEAR END NRVS JV GENERAL CRS,NHS Creditors,EAST KENT HOSPITALS UNIVERSITY NHS FT,0000136731,10348.70
Department of Health,East Sussex Hospitals NHS Trust,14/08/2013,EAST KENT UNI FOUNDATION TRUST,Integrated Care,EAST KENT HOSPITALS UNIVERSITY NHS FT,0000137155,2226.60
Department of Health,East Sussex Hospitals NHS Trust,14/08/2013,SENIOR MANAGER BAND 8D,Corporate Services,EAST KENT HOSPITALS UNIVERSITY NHS FT,0000137173,13812.58
Department of Health,East Sussex Hospitals NHS Trust,14/08/2013,NHS SUPPLY CHAIN CREDITORS,Cross Site,NHS SUPPLY CHAIN,0000137228,173809.40
Department of Health,East Sussex Hospitals NHS Trust,14/08/2013,SENIOR MANAGER BAND 8D,Corporate Services,EAST KENT HOSPITALS UNIVERSITY NHS FT,0000137290,7474.55
Department of Health,East Sussex Hospitals NHS Trust,14/08/2013,TRAVEL & SUBSISTENCE,Corporate Services,EAST KENT HOSPITALS UNIVERSITY NHS FT,0000137290,502.14
Department of Health,East Sussex Hospitals NHS Trust,14/08/2013,SENIOR MANAGER BAND 8D,Corporate Services,EAST KENT HOSPITALS UNIVERSITY NHS FT,0000137342,10464.17
Department of Health,East Sussex Hospitals NHS Trust,14/08/2013,AGENCY RADIOGRAPHY STAFF,Integrated Care,JENNIE REEVES RADIOGRAPHERS AGENCY LTD,0000289244,1972.74
Department of Health,East Sussex Hospitals NHS Trust,14/08/2013,AGENCY SPECIALIST REG,Urgent Care,LOCUM PEOPLE LTD,0000289272,4215.20
Department of Health,East Sussex Hospitals NHS Trust,14/08/2013,AGENCY RADIOGRAPHY STAFF,Integrated Care,JENNIE REEVES RADIOGRAPHERS AGENCY LTD,0000289375,1972.74
Department of Health,East Sussex Hospitals NHS Trust,14/08/2013,LOCUM SPECIALIST REGISTRAR,Urgent Care,LOCUM PEOPLE LTD,0000289567,3038.87
Department of Health,East Sussex Hospitals NHS Trust,14/08/2013,AGENCY SHO,Planned Care,NC HEALTHCARE LTD,0000289570,3033.24
Department of Health,East Sussex Hospitals NHS Trust,14/08/2013,AGENCY DIETICIAN,Integrated Care,YOUR WORLD RECRUITMENT LTD,0000289590,867.00
Department of Health,East Sussex Hospitals NHS Trust,14/08/2013,AGENCY MTO,Planned Care,YOUR WORLD RECRUITMENT LTD,0000289591,1581.00
Department of Health,East Sussex Hospitals NHS Trust,14/08/2013,AGENCY MLSO,Integrated Care,ATLANTIS MEDICAL LTD,0000289598,1261.53
Department of Health,East Sussex Hospitals NHS Trust,14/08/2013,AGENCY NURSE - UNQUALIFIED,Urgent Care,MAYFAIR,0000289728,-648.92
Department of Health,East Sussex Hospitals NHS Trust,14/08/2013,AGENCY SHO,Planned Care,NC HEALTHCARE LTD,0000289813,4769.44
Department of Health,East Sussex Hospitals NHS Trust,14/08/2013,AGENCY MLSO,Integrated Care,ATLANTIS MEDICAL LTD,0000289836,1575.93
Department of Health,East Sussex Hospitals NHS Trust,14/08/2013,AGENCY TECHNICIAN,Planned Care,THE PLACEMENT GROUP,0000289839,1474.66
Department of Health,East Sussex Hospitals NHS Trust,14/08/2013,AGENCY TECHNICIAN,Urgent Care,THE PLACEMENT GROUP,0000289840,1175.86
Department of Health,East Sussex Hospitals NHS Trust,14/08/2013,AGENCY DIETICIAN,Urgent Care,THE PLACEMENT GROUP,0000289841,1309.96
Department of Health,East Sussex Hospitals NHS Trust,14/08/2013,AGENCY OCC THERAPY STAFF,Integrated Care,THE PLACEMENT GROUP,0000289842,1309.96
Department of Health,East Sussex Hospitals NHS Trust,14/08/2013,AGENCY OCC THERAPY STAFF,Integrated Care,THE PLACEMENT GROUP,0000289843,1082.89
Department of Health,East Sussex Hospitals NHS Trust,14/08/2013,AGENCY OCC THERAPY STAFF,Integrated Care,THE PLACEMENT GROUP,0000289844,785.98
Department of Health,East Sussex Hospitals NHS Trust,14/08/2013,AGENCY SHO,Planned Care,NC HEALTHCARE LTD,0000289871,2868.39
Department of Health,East Sussex Hospitals NHS Trust,14/08/2013,AGENCY OCC THERAPY STAFF,Integrated Care,RIG MEDICAL RECRUIT LTD,0000289873,1305.72
Department of Health,East Sussex Hospitals NHS Trust,14/08/2013,AGENCY RADIOGRAPHY STAFF,Integrated Care,RIG MEDICAL RECRUIT LTD,0000289875,598.50
Department of Health,East Sussex Hospitals NHS Trust,14/08/2013,AGENCY RADIOGRAPHY STAFF,Integrated Care,RIG MEDICAL RECRUIT LTD,0000289876,1117.20
Department of Health,East Sussex Hospitals NHS Trust,14/08/2013,AGENCY NURSE - UNQUALIFIED,Urgent Care,MAYFAIR,0000289948,533.07
Department of Health,East Sussex Hospitals NHS Trust,14/08/2013,AGENCY NURSE - UNQUALIFIED,Urgent Care,MAYFAIR,0000289949,441.44
Department of Health,East Sussex Hospitals NHS Trust,14/08/2013,AGENCY NURSE - QUALIFIED,Urgent Care,MAYFAIR,0000289950,695.14
Department of Health,East Sussex Hospitals NHS Trust,14/08/2013,AGENCY NURSE - UNQUALIFIED,Urgent Care,MAYFAIR,0000289952,955.15
Department of Health,East Sussex Hospitals NHS Trust,14/08/2013,AGENCY OCC THERAPY STAFF,Integrated Care,RIG MEDICAL RECRUIT LTD,0000289964,1579.50
Department of Health,East Sussex Hospitals NHS Trust,14/08/2013,AGENCY RADIOGRAPHY STAFF,Integrated Care,JENNIE REEVES RADIOGRAPHERS AGENCY LTD,0000289965,1972.74
Department of Health,East Sussex Hospitals NHS Trust,14/08/2013,AGENCY RADIOGRAPHY STAFF,Integrated Care,RIG MEDICAL RECRUIT LTD,0000289966,1117.20
Department of Health,East Sussex Hospitals NHS Trust,14/08/2013,AGENCY MLSO,Integrated Care,LABMED,0000290033,1347.76
Department of Health,East Sussex Hospitals NHS Trust,14/08/2013,AGENCY NURSE - UNQUALIFIED,Urgent Care,ARABELLA HEALTH STAFFING LTD,0000290048,634.50
Department of Health,East Sussex Hospitals NHS Trust,14/08/2013,AGENCY NURSE - UNQUALIFIED,Urgent Care,MAYFAIR,0000290055,829.37
Department of Health,East Sussex Hospitals NHS Trust,14/08/2013,AGENCY NURSE - QUALIFIED,Urgent Care,MAYFAIR,0000290056,425.94
Department of Health,East Sussex Hospitals NHS Trust,14/08/2013,AGENCY NURSE - UNQUALIFIED,Urgent Care,MAYFAIR,0000290057,746.39
Department of Health,East Sussex Hospitals NHS Trust,14/08/2013,AGENCY NURSE - QUALIFIED,Urgent Care,MAYFAIR,0000290058,611.24
Department of Health,East Sussex Hospitals NHS Trust,14/08/2013,AGENCY OCC THERAPY STAFF,Integrated Care,THE PLACEMENT GROUP,0000290086,1309.96
Department of Health,East Sussex Hospitals NHS Trust,14/08/2013,AGENCY DIETICIAN,Integrated Care,THE PLACEMENT GROUP,0000290087,785.98
Department of Health,East Sussex Hospitals NHS Trust,14/08/2013,AGENCY TECHNICIAN,Urgent Care,THE PLACEMENT GROUP,0000290088,1515.54
Department of Health,East Sussex Hospitals NHS Trust,14/08/2013,AGENCY TECHNICIAN,Planned Care,THE PLACEMENT GROUP,0000290089,1474.66
Department of Health,East Sussex Hospitals NHS Trust,14/08/2013,AGENCY MLSO,Integrated Care,ATLANTIS MEDICAL LTD,0000290099,1575.93
Department of Health,East Sussex Hospitals NHS Trust,14/08/2013,AGENCY NURSE - QUALIFIED,Urgent Care,THE ARROWS GROUP LTD,0000290102,1153.14
Department of Health,East Sussex Hospitals NHS Trust,14/08/2013,AGENCY NURSE - QUALIFIED,Urgent Care,THE ARROWS GROUP LTD,0000290103,1601.07
Department of Health,East Sussex Hospitals NHS Trust,14/08/2013,AGENCY PODIATRY,Integrated Care,LABMED,0000290111,1341.00
Department of Health,East Sussex Hospitals NHS Trust,14/08/2013,AGENCY NURSE - QUALIFIED,Planned Care,YOURWORLD NURSING,0000290192,1937.50
Department of Health,East Sussex Hospitals NHS Trust,14/08/2013,AGENCY NURSE - QUALIFIED,Urgent Care,MAYFAIR,0000290205,1350.13
Department of Health,East Sussex Hospitals NHS Trust,14/08/2013,AGENCY NURSE - QUALIFIED,Urgent Care,MAYFAIR,0000290207,906.50
Department of Health,East Sussex Hospitals NHS Trust,14/08/2013,AGENCY NURSE - QUALIFIED,Integrated Care,TEAM24 LTD,0000290209,648.41
Department of Health,East Sussex Hospitals NHS Trust,14/08/2013,AGENCY NURSE - QUALIFIED,Integrated Care,TEAM24 LTD,0000290210,1095.24
Department of Health,East Sussex Hospitals NHS Trust,14/08/2013,AGENCY NURSE - QUALIFIED,Integrated Care,TEAM24 LTD,0000290213,602.95
Department of Health,East Sussex Hospitals NHS Trust,14/08/2013,AGENCY NURSE - QUALIFIED,Integrated Care,TEAM24 LTD,0000290214,599.19
Department of Health,East Sussex Hospitals NHS Trust,14/08/2013,AGENCY NURSE - QUALIFIED,Integrated Care,TEAM24 LTD,0000290216,589.12
Department of Health,East Sussex Hospitals NHS Trust,14/08/2013,AGENCY NURSE - QUALIFIED,Integrated Care,TEAM24 LTD,0000290217,1144.63
Department of Health,East Sussex Hospitals NHS Trust,14/08/2013,AGENCY NURSE - QUALIFIED,Integrated Care,TEAM24 LTD,0000290218,541.69
Department of Health,East Sussex Hospitals NHS Trust,14/08/2013,AGENCY NURSE - QUALIFIED,Integrated Care,TEAM24 LTD,0000290220,1048.89
Department of Health,East Sussex Hospitals NHS Trust,14/08/2013,AGENCY NURSE - QUALIFIED,Integrated Care,TEAM24 LTD,0000290222,541.69
Department of Health,East Sussex Hospitals NHS Trust,14/08/2013,AGENCY NURSE - QUALIFIED,Integrated Care,TEAM24 LTD,0000290223,541.69
Department of Health,East Sussex Hospitals NHS Trust,14/08/2013,AGENCY NURSE - UNQUALIFIED,Urgent Care,MAYFAIR,0000290226,831.79
Department of Health,East Sussex Hospitals NHS Trust,14/08/2013,AGENCY NURSE - QUALIFIED,Integrated Care,TEAM24 LTD,0000290236,545.45
Department of Health,East Sussex Hospitals NHS Trust,14/08/2013,AGENCY NURSE - UNQUALIFIED,Urgent Care,MAYFAIR,0000290238,-755.47
Department of Health,East Sussex Hospitals NHS Trust,14/08/2013,AGENCY MLSO,Integrated Care,ATLANTIS MEDICAL LTD,0000290331,1575.93
Department of Health,East Sussex Hospitals NHS Trust,14/08/2013,AGENCY NURSE - UNQUALIFIED,Urgent Care,MAYFAIR,0000290371,832.20
Department of Health,East Sussex Hospitals NHS Trust,14/08/2013,AGENCY NURSE - UNQUALIFIED,Urgent Care,MAYFAIR,0000290378,592.17
Department of Health,East Sussex Hospitals NHS Trust,14/08/2013,AGENCY NURSE - QUALIFIED,Urgent Care,MAYFAIR,0000290379,692.54
Department of Health,East Sussex Hospitals NHS Trust,14/08/2013,AGENCY NURSE - QUALIFIED,Urgent Care,MAYFAIR,0000290381,419.48
Department of Health,East Sussex Hospitals NHS Trust,14/08/2013,AGENCY NURSE - UNQUALIFIED,Urgent Care,MAYFAIR,0000290382,723.81
Department of Health,East Sussex Hospitals NHS Trust,14/08/2013,AGENCY NURSE - UNQUALIFIED,Urgent Care,MAYFAIR,0000290383,1079.11
Department of Health,East Sussex Hospitals NHS Trust,14/08/2013,AGENCY NURSE - QUALIFIED,Integrated Care,TEAM24 LTD,0000290391,983.18
Department of Health,East Sussex Hospitals NHS Trust,14/08/2013,AGENCY NURSE - QUALIFIED,Integrated Care,TEAM24 LTD,0000290393,535.26
Department of Health,East Sussex Hospitals NHS Trust,14/08/2013,AGENCY CONSULTANT,Urgent Care,MYLOCUM LTD,0000290452,7056.00
Department of Health,East Sussex Hospitals NHS Trust,14/08/2013,AGENCY MLSO,Integrated Care,LABMED,0000290467,1347.76
Department of Health,East Sussex Hospitals NHS Trust,14/08/2013,AGENCY CONSULTANT,Planned Care,ATHONA LIMITED,0000290483,5644.80
Department of Health,East Sussex Hospitals NHS Trust,14/08/2013,AGENCY PODIATRY,Integrated Care,LABMED,0000290485,804.60
Department of Health,East Sussex Hospitals NHS Trust,14/08/2013,AGENCY MLSO,Integrated Care,LABMED,0000290486,1347.76
Department of Health,East Sussex Hospitals NHS Trust,14/08/2013,AGENCY PODIATRY,Integrated Care,LABMED,0000290487,1341.00
Department of Health,East Sussex Hospitals NHS Trust,14/08/2013,AGENCY NURSE - UNQUALIFIED,Urgent Care,MAYFAIR,0000290490,470.85
Department of Health,East Sussex Hospitals NHS Trust,14/08/2013,AGENCY RADIOGRAPHY STAFF,Integrated Care,YOUR WORLD RECRUITMENT LTD,0000290492,1102.50
Department of Health,East Sussex Hospitals NHS Trust,14/08/2013,PROF & TECH BANK STAFF,Integrated Care,ATLANTIS MEDICAL LTD,0000290498,2145.78
Department of Health,East Sussex Hospitals NHS Trust,14/08/2013,AGENCY MTO,Planned Care,YOUR WORLD RECRUITMENT LTD,0000290505,1650.76
Department of Health,East Sussex Hospitals NHS Trust,14/08/2013,AGENCY NURSE - QUALIFIED,Planned Care,YOURWORLD NURSING,0000290507,1572.94
Department of Health,East Sussex Hospitals NHS Trust,14/08/2013,AGENCY MTO,Planned Care,YOUR WORLD RECRUITMENT LTD,0000290508,1627.50
Department of Health,East Sussex Hospitals NHS Trust,14/08/2013,AGENCY TECHNICIAN,Planned Care,YOUR WORLD RECRUITMENT LTD,0000290516,1152.72
Department of Health,East Sussex Hospitals NHS Trust,14/08/2013,AGENCY RADIOGRAPHY STAFF,Integrated Care,YOUR WORLD RECRUITMENT LTD,0000290517,672.00
Department of Health,East Sussex Hospitals NHS Trust,14/08/2013,AGENCY CONSULTANT,Planned Care,ATHONA LIMITED,0000290530,5299.20
Department of Health,East Sussex Hospitals NHS Trust,14/08/2013,AGENCY SPECIALIST REG,Urgent Care,ATHONA LIMITED,0000290531,1119.78
Department of Health,East Sussex Hospitals NHS Trust,14/08/2013,AGENCY PODIATRY,Integrated Care,LABMED,0000290592,1341.00
Department of Health,East Sussex Hospitals NHS Trust,14/08/2013,AGENCY RADIOGRAPHY STAFF,Integrated Care,PERTEMPS NETWORK MEDICAL LIMITED,0000290603,1123.20
Department of Health,East Sussex Hospitals NHS Trust,14/08/2013,AGENCY NURSE - QUALIFIED,Planned Care,YOURWORLD NURSING,0000290607,1763.13
Department of Health,East Sussex Hospitals NHS Trust,14/08/2013,AGENCY NURSE - QUALIFIED,Planned Care,YOURWORLD NURSING,0000290609,1046.25
Department of Health,East Sussex Hospitals NHS Trust,14/08/2013,AGENCY CONSULTANT,Planned Care,ATHONA LIMITED,0000290620,5299.20
Department of Health,East Sussex Hospitals NHS Trust,14/08/2013,AGENCY CONSULTANT,Planned Care,ATHONA LIMITED,0000290621,5567.62
Department of Health,East Sussex Hospitals NHS Trust,14/08/2013,AGENCY SPECIALIST REG,Urgent Care,ATHONA LIMITED,0000290622,733.70
Department of Health,East Sussex Hospitals NHS Trust,14/08/2013,AGENCY RADIOGRAPHY STAFF,Integrated Care,PERTEMPS NETWORK MEDICAL LIMITED,0000290659,1123.20
Department of Health,East Sussex Hospitals NHS Trust,14/08/2013,AGENCY MLSO,Integrated Care,LABMED,0000290660,1347.76
Department of Health,East Sussex Hospitals NHS Trust,14/08/2013,AGENCY PODIATRY,Integrated Care,LABMED,0000290700,1072.80
Department of Health,East Sussex Hospitals NHS Trust,14/08/2013,AGENCY NURSE - QUALIFIED,Integrated Care,TEAM24 LTD,0000290732,1686.33
Department of Health,East Sussex Hospitals NHS Trust,14/08/2013,AGENCY NURSE - QUALIFIED,Integrated Care,TEAM24 LTD,0000290733,541.69
Department of Health,East Sussex Hospitals NHS Trust,14/08/2013,PROFESSIONAL FEES,Commercial,FINEGREEN ASSOCIATES,0000290815,2820.00
Department of Health,East Sussex Hospitals NHS Trust,14/08/2013,AGENCY NURSE - QUALIFIED,Urgent Care,PREMIERCARE NETWORK LTD,0000290852,1774.45
Department of Health,East Sussex Hospitals NHS Trust,14/08/2013,AGENCY DRIVERS,Commercial,GRAFTERS RECRUITMENT CONSULTANTS LTD,0000290861,1549.58
Department of Health,East Sussex Hospitals NHS Trust,14/08/2013,AGENCY SPECIALIST REG,Urgent Care,MEDACS HEALTHCARE SERVICES LTD,0000290864,3438.40
Department of Health,East Sussex Hospitals NHS Trust,14/08/2013,AGENCY SPECIALIST REG,Urgent Care,MEDACS HEALTHCARE SERVICES LTD,0000290865,5826.83
Department of Health,East Sussex Hospitals NHS Trust,14/08/2013,AGENCY SPECIALIST REG,Urgent Care,MEDACS HEALTHCARE SERVICES LTD,0000290866,3446.86
Department of Health,East Sussex Hospitals NHS Trust,14/08/2013,AGENCY MLSO,Integrated Care,LABMED,0000290872,1078.20
Department of Health,East Sussex Hospitals NHS Trust,14/08/2013,AGENCY CONSULTANT,Planned Care,FIRST MEDICAL STAFFING SOLUTIONS,0000290891,2140.74
Department of Health,East Sussex Hospitals NHS Trust,14/08/2013,AGENCY CONSULTANT,Planned Care,FIRST MEDICAL STAFFING SOLUTIONS,0000290892,2140.74
Department of Health,East Sussex Hospitals NHS Trust,14/08/2013,AGENCY CONSULTANT,Planned Care,FIRST MEDICAL STAFFING SOLUTIONS,0000290895,2140.74
Department of Health,East Sussex Hospitals NHS Trust,14/08/2013,AGENCY CONSULTANT,Planned Care,FIRST MEDICAL STAFFING SOLUTIONS,0000290898,2140.74
Department of Health,East Sussex Hospitals NHS Trust,14/08/2013,AGENCY CONSULTANT,Planned Care,FIRST MEDICAL STAFFING SOLUTIONS,0000290899,2140.74
Department of Health,East Sussex Hospitals NHS Trust,14/08/2013,AGENCY NURSE - QUALIFIED,Planned Care,MAYFAIR,0000290953,416.88
Department of Health,East Sussex Hospitals NHS Trust,14/08/2013,AGENCY SHO,Planned Care,FIRST MEDICAL STAFFING SOLUTIONS,0000290983,2640.00
Department of Health,East Sussex Hospitals NHS Trust,14/08/2013,AGENCY ANCILLARY,Commercial,INTERWORK RECRUITMENT CONSULTANTS LTD,0000290994,5110.30
Department of Health,East Sussex Hospitals NHS Trust,14/08/2013,AGENCY - GENERAL GRADES,Commercial,INTERWORK RECRUITMENT CONSULTANTS LTD,0000291002,1586.81
Department of Health,East Sussex Hospitals NHS Trust,14/08/2013,AGENCY - GENERAL GRADES,Commercial,INTERWORK RECRUITMENT CONSULTANTS LTD,0000291003,520.71
Department of Health,East Sussex Hospitals NHS Trust,14/08/2013,AGENCY SHO,Planned Care,FIRST MEDICAL STAFFING SOLUTIONS,0000291005,2937.00
Department of Health,East Sussex Hospitals NHS Trust,14/08/2013,AGENCY CONSULTANT,Planned Care,FIRST MEDICAL STAFFING SOLUTIONS,0000291006,2140.74
Department of Health,East Sussex Hospitals NHS Trust,14/08/2013,AGENCY PODIATRY,Integrated Care,LABMED,0000291015,1341.00
Department of Health,East Sussex Hospitals NHS Trust,14/08/2013,AGENCY SHO,Planned Care,FIRST MEDICAL STAFFING SOLUTIONS,0000291016,2904.00
Department of Health,East Sussex Hospitals NHS Trust,14/08/2013,AGENCY CONSULTANT,Planned Care,FIRST MEDICAL STAFFING SOLUTIONS,0000291017,1427.16
Department of Health,East Sussex Hospitals NHS Trust,14/08/2013,PROFESSIONAL FEES,Commercial,FINEGREEN ASSOCIATES,0000291076,2256.00
Department of Health,East Sussex Hospitals NHS Trust,14/08/2013,LAUNDRY MACHINES,Commercial,JLA TOTAL CARE LTD,0000361833,1177.20
Department of Health,East Sussex Hospitals NHS Trust,14/08/2013,SC-CONQUEST UNIT WORKS,Commercial,FILTERTEC SYSTEMS LTD,0000361883,1224.60
Department of Health,East Sussex Hospitals NHS Trust,14/08/2013,VITECH ( INTEGRATED),Integrated Care,VITECH SCIENTIFIC LTD,0000361904,552.00
Department of Health,East Sussex Hospitals NHS Trust,14/08/2013,POSTAGE - MAINTENANCE STOCK,Commercial,PALL MEDICAL LTD,0000361957,23.40
Department of Health,East Sussex Hospitals NHS Trust,14/08/2013,SC-CONQUEST UNIT WORKS,Commercial,PALL MEDICAL LTD,0000361957,792.00
Department of Health,East Sussex Hospitals NHS Trust,14/08/2013,DISPOSAL OF FLIORESCENT TUBES,Commercial,OSRAM LTD,0000362036,22.50
Department of Health,East Sussex Hospitals NHS Trust,14/08/2013,SC-CONQUEST UNIT WORKS,Commercial,OSRAM LTD,0000362036,653.31
Department of Health,East Sussex Hospitals NHS Trust,14/08/2013,CONTRACT BUILDING MAINTENANCE,Commercial,SOUTH COAST CATERING EQUIPMENT,0000362107,433.95
Department of Health,East Sussex Hospitals NHS Trust,14/08/2013,CONTRACT BUILDING MAINTENANCE,Commercial,ROY FARLEY FLOORING,0000362129,820.00
Department of Health,East Sussex Hospitals NHS Trust,14/08/2013,CONTRACT ENGINEERING MAINT,Commercial,MEDICARE SERVICES INSTALLATIONS LTD,0000362137,1509.30
Department of Health,East Sussex Hospitals NHS Trust,14/08/2013,CONQ MED GAS - PENLON,Commercial,MEDICARE SERVICES INSTALLATIONS LTD,0000362138,1282.46
Department of Health,East Sussex Hospitals NHS Trust,14/08/2013,CONTRACT ENGINEERING MAINT,Commercial,PROECONOMY LTD,0000622227,2650.00
Department of Health,East Sussex Hospitals NHS Trust,14/08/2013,M & S EQUIP REPAIR MATERIALS,Integrated Care,TENACORE UK,0000622229,500.00
Department of Health,East Sussex Hospitals NHS Trust,14/08/2013,CONTRACT ENGINEERING MAINT,Commercial,PUMA GENERATOR SERVICES LIMITED,0000622248,702.00
Department of Health,East Sussex Hospitals NHS Trust,14/08/2013,CONT.MAIN-MED & SURG EQUIP,Commercial,B BRAUN MEDICAL LTD,0000622291,491.40
Department of Health,East Sussex Hospitals NHS Trust,14/08/2013,PROMED LTD,Planned Care,PROMED LTD,0000622318,3575.00
Department of Health,East Sussex Hospitals NHS Trust,14/08/2013,CONT.MAIN-MED & SURG EQUIP,Planned Care,GUYMARK UK LIMITED,0000622340,829.34
Department of Health,East Sussex Hospitals NHS Trust,14/08/2013,ENDOSCOPY ARGON PLASMA ERBE,Planned Care,ERBE MEDICAL UK LTD,0000622464,3263.42
Department of Health,East Sussex Hospitals NHS Trust,14/08/2013,CONTRACT ENGINEERING MAINT,Commercial,IMAGE CONTRACT FLOORING LTD,0000622532,607.00
Department of Health,East Sussex Hospitals NHS Trust,14/08/2013,CONTRACT ENGINEERING MAINT,Commercial,STEAMTEC LTD,0000622554,2850.00
Department of Health,East Sussex Hospitals NHS Trust,14/08/2013,"BOOKS, JOURNALS & SUBCRIPTIONS",Corporate Services,IBM,0000622672,1944.00
Department of Health,East Sussex Hospitals NHS Trust,14/08/2013,PATS APPL - FOOTWARE,Integrated Care,ESSEX ORTHOPAEDICS,0000755567,427.24
Department of Health,East Sussex Hospitals NHS Trust,14/08/2013,PROSTHESIS - LENS,Planned Care,ALCON EYE CARE UK LTD,0000897638,595.20
Department of Health,East Sussex Hospitals NHS Trust,14/08/2013,SURGICAL INSTRUMENTS,Planned Care,SYNTHES LTD,0000897672,142.44
Department of Health,East Sussex Hospitals NHS Trust,14/08/2013,PROSTHESES-OTHER,Planned Care,SYNTHES LTD,0000897672,483.17
Department of Health,East Sussex Hospitals NHS Trust,14/08/2013,SUTURES,Planned Care,ARTHREX LTD,0000897722,1470.00
Department of Health,East Sussex Hospitals NHS Trust,14/08/2013,PROSTHESIS - LENS,Planned Care,ALCON EYE CARE UK LTD,0000897723,595.20
Department of Health,East Sussex Hospitals NHS Trust,14/08/2013,PROSTHESES-OTHER,Planned Care,ACUMED LTD,0000897734,536.64
Department of Health,East Sussex Hospitals NHS Trust,14/08/2013,ELECTRO MEDICAL EQUIPMENT,Planned Care,WALTERS MEDICAL,0000897749,573.60
Department of Health,East Sussex Hospitals NHS Trust,14/08/2013,PROSTHESIS - LENS,Planned Care,ALCON EYE CARE UK LTD,0000897782,1190.40
Department of Health,East Sussex Hospitals NHS Trust,14/08/2013,SURGICAL INSTRUMENTS,Planned Care,SMITH & NEPHEW ADVANCED SURGICAL DEVICES,0000897878,103.11
Department of Health,East Sussex Hospitals NHS Trust,14/08/2013,PROSTHESES-OTHER,Planned Care,SMITH & NEPHEW ADVANCED SURGICAL DEVICES,0000897878,1301.36
Department of Health,East Sussex Hospitals NHS Trust,14/08/2013,M&S GENERAL SUPPLIES-OTHER,Planned Care,SMITH & NEPHEW ADVANCED SURGICAL DEVICES,0000897897,971.18
Department of Health,East Sussex Hospitals NHS Trust,14/08/2013,SURGICAL INSTRUMENTS,Planned Care,SMITH & NEPHEW ADVANCED SURGICAL DEVICES,0000897897,241.02
Department of Health,East Sussex Hospitals NHS Trust,14/08/2013,PROSTHESES-OTHER,Planned Care,SYNTHES LTD,0000897900,1436.45
Department of Health,East Sussex Hospitals NHS Trust,14/08/2013,PROSTHESIS - LENS,Planned Care,ALCON EYE CARE UK LTD,0000897914,1190.40
Department of Health,East Sussex Hospitals NHS Trust,14/08/2013,M&S GENERAL SUPPLIES-OTHER,Planned Care,APPLIED MEDICAL UK LTD,0000897917,638.40
Department of Health,East Sussex Hospitals NHS Trust,14/08/2013,M&S GENERAL SUPPLIES-OTHER,Planned Care,SMITH & NEPHEW ADVANCED SURGICAL DEVICES,0000897938,34.21
Department of Health,East Sussex Hospitals NHS Trust,14/08/2013,PROSTHESES-OTHER,Planned Care,SMITH & NEPHEW ADVANCED SURGICAL DEVICES,0000897938,657.25
Department of Health,East Sussex Hospitals NHS Trust,14/08/2013,ARTHROSCOPY INSTRUMENTS,Planned Care,SMITH & NEPHEW ADVANCED SURGICAL DEVICES,0000897939,610.62
Department of Health,East Sussex Hospitals NHS Trust,14/08/2013,SURGICAL INSTRUMENTS,Planned Care,SMITH & NEPHEW ADVANCED SURGICAL DEVICES,0000897994,1790.06
Department of Health,East Sussex Hospitals NHS Trust,14/08/2013,PROSTHESIS - LENS,Planned Care,ALCON EYE CARE UK LTD,0000898044,1188.00
Department of Health,East Sussex Hospitals NHS Trust,14/08/2013,PROSTHESIS - LENS,Planned Care,ALCON EYE CARE UK LTD,0000898045,1190.40
Department of Health,East Sussex Hospitals NHS Trust,14/08/2013,PROSTHESES-HIP,Planned Care,LIMA ORTHOPAEDICS UK LIMITED,0000898052,1516.80
Department of Health,East Sussex Hospitals NHS Trust,14/08/2013,PROSTHESES-OTHER,Planned Care,LIMA ORTHOPAEDICS UK LIMITED,0000898052,82.80
Department of Health,East Sussex Hospitals NHS Trust,14/08/2013,NATIONAL JOINT REGISTRY LEVY,Planned Care,LIMA ORTHOPAEDICS UK LIMITED,0000898052,20.00
Department of Health,East Sussex Hospitals NHS Trust,14/08/2013,PROSTHESES-HIP,Planned Care,LIMA ORTHOPAEDICS UK LIMITED,0000898270,3135.60
Department of Health,East Sussex Hospitals NHS Trust,14/08/2013,PROSTHESES-OTHER,Planned Care,LIMA ORTHOPAEDICS UK LIMITED,0000898270,165.60
Department of Health,East Sussex Hospitals NHS Trust,14/08/2013,NATIONAL JOINT REGISTRY LEVY,Planned Care,LIMA ORTHOPAEDICS UK LIMITED,0000898270,40.01
Department of Health,East Sussex Hospitals NHS Trust,14/08/2013,LAPARASCOPIC EQUIP-UROLOGICAL,Planned Care,CONMED LINVATEC UK,0000898377,300.00
Department of Health,East Sussex Hospitals NHS Trust,14/08/2013,M&S GENERAL SUPPLIES-OTHER,Planned Care,CONMED LINVATEC UK,0000898377,792.00
Department of Health,East Sussex Hospitals NHS Trust,14/08/2013,LAPARASCOPIC EQUIP-UROLOGICAL,Planned Care,CONMED LINVATEC UK,0000898416,300.00
Department of Health,East Sussex Hospitals NHS Trust,14/08/2013,M&S GENERAL SUPPLIES-OTHER,Planned Care,CONMED LINVATEC UK,0000898416,396.00
Department of Health,East Sussex Hospitals NHS Trust,14/08/2013,DISPOSABLE DRAPES,Planned Care,MOLNLYCKE HEALTHCARE,0000898428,744.27
Department of Health,East Sussex Hospitals NHS Trust,14/08/2013,LAPARASCOPIC EQUIP-UROLOGICAL,Planned Care,CONMED LINVATEC UK,0000898437,600.00
Department of Health,East Sussex Hospitals NHS Trust,14/08/2013,M&S GENERAL SUPPLIES-OTHER,Planned Care,CONMED LINVATEC UK,0000898437,792.00
Department of Health,East Sussex Hospitals NHS Trust,14/08/2013,M&S GENERAL SUPPLIES-OTHER,Planned Care,GAMBRO LUNDIA AB,0000898488,578.40
Department of Health,East Sussex Hospitals NHS Trust,14/08/2013,PRE-STERILE COMMERCIAL PACKS,Planned Care,MOLNLYCKE HEALTHCARE,0000898573,110.65
Department of Health,East Sussex Hospitals NHS Trust,14/08/2013,DISPOSABLE DRAPES,Planned Care,MOLNLYCKE HEALTHCARE,0000898573,817.41
Department of Health,East Sussex Hospitals NHS Trust,14/08/2013,BONE BANK,Planned Care,HOSPITAL INNOVATIONS LTD,0000898712,1162.00
Department of Health,East Sussex Hospitals NHS Trust,14/08/2013,PROSTHESES-HIP,Planned Care,JOINT REPLACEMENT INSTRUMENTATION  LTD,0000898769,571.20
Department of Health,East Sussex Hospitals NHS Trust,14/08/2013,BONE BANK,Planned Care,HOSPITAL INNOVATIONS LTD,0000898879,1547.00
Department of Health,East Sussex Hospitals NHS Trust,14/08/2013,PROSTHESES-HIP,Planned Care,JOINT REPLACEMENT INSTRUMENTATION  LTD,0000898881,1713.60
Department of Health,East Sussex Hospitals NHS Trust,14/08/2013,BONE BANK,Planned Care,HOSPITAL INNOVATIONS LTD,0000898882,770.00
Department of Health,East Sussex Hospitals NHS Trust,14/08/2013,PROSTHESES-HIP,Planned Care,JOINT REPLACEMENT INSTRUMENTATION  LTD,0000899134,571.20
Department of Health,East Sussex Hospitals NHS Trust,14/08/2013,STOCK-ASCRIBE CONQUEST,Pharmacy Stock,BRISTOL-MYERS SQUIBB PHARMACEUTICAL,0001211868,4064.16
Department of Health,East Sussex Hospitals NHS Trust,14/08/2013,STOCK-ASCRIBE CONQUEST,Pharmacy Stock,WAYMADE HEALTHCARE PLC,0001211944,656.88
Department of Health,East Sussex Hospitals NHS Trust,14/08/2013,STOCK-ASCRIBE CONQUEST,Pharmacy Stock,IPSEN LTD,0001211945,1454.40
Department of Health,East Sussex Hospitals NHS Trust,14/08/2013,STOCK-ASCRIBE CONQUEST,Pharmacy Stock,ALCON EYE CARE UK LTD,0001211952,1332.00
Department of Health,East Sussex Hospitals NHS Trust,14/08/2013,STOCK-ASCRIBE CONQUEST,Pharmacy Stock,PIERRE FABRE ONCOLOGY,0001212059,1583.52
Department of Health,East Sussex Hospitals NHS Trust,14/08/2013,STOCK-ASCRIBE CONQUEST,Pharmacy Stock,PIERRE FABRE ONCOLOGY,0001212060,2903.04
Department of Health,East Sussex Hospitals NHS Trust,14/08/2013,STOCK-ASCRIBE CONQUEST,Pharmacy Stock,PHARMARAMA INTERNATIONAL LIMITED,0001212066,678.98
Department of Health,East Sussex Hospitals NHS Trust,14/08/2013,STOCK-ASCRIBE CONQUEST,Pharmacy Stock,HOSPIRA UK LIMITED,0001212073,534.00
Department of Health,East Sussex Hospitals NHS Trust,14/08/2013,STOCK-ASCRIBE CONQUEST,Pharmacy Stock,ALCON EYE CARE UK LTD,0001212123,737.86
Department of Health,East Sussex Hospitals NHS Trust,14/08/2013,STOCK-ASCRIBE CONQUEST,Pharmacy Stock,HOSPIRA ASEPTIC SERVICES LIMITED,0001212156,729.00
Department of Health,East Sussex Hospitals NHS Trust,14/08/2013,STOCK-ASCRIBE CONQUEST,Pharmacy Stock,SURESCREEN DIAGNOSTICS LTD,0001212160,635.40
Department of Health,East Sussex Hospitals NHS Trust,14/08/2013,STOCK-ASCRIBE CONQUEST,Pharmacy Stock,ABBOTT LABORATORIES LTD,0001212218,3355.20
Department of Health,East Sussex Hospitals NHS Trust,14/08/2013,STOCK-ASCRIBE CONQUEST,Pharmacy Stock,ABBOTT LABORATORIES LTD,0001212221,3355.20
Department of Health,East Sussex Hospitals NHS Trust,14/08/2013,STOCK-ASCRIBE CONQUEST,Pharmacy Stock,PIERRE FABRE ONCOLOGY,0001212440,2639.04
Department of Health,East Sussex Hospitals NHS Trust,14/08/2013,STOCK-ASCRIBE CONQUEST,Pharmacy Stock,PHARMARAMA INTERNATIONAL LIMITED,0001212442,570.62
Department of Health,East Sussex Hospitals NHS Trust,14/08/2013,STOCK-ASCRIBE CONQUEST,Pharmacy Stock,ABBVIE LTD,0001212456,2535.41
Department of Health,East Sussex Hospitals NHS Trust,14/08/2013,STOCK-ASCRIBE CONQUEST,Pharmacy Stock,GRIFOLS UK LTD,0001212845,3400.00
Department of Health,East Sussex Hospitals NHS Trust,14/08/2013,STOCK-ASCRIBE CONQUEST,Pharmacy Stock,MEDCO HEALTH SOLUTIONS LTD,0001212966,762.97
Department of Health,East Sussex Hospitals NHS Trust,14/08/2013,STOCK-ASCRIBE CONQUEST,Pharmacy Stock,ADVANCED MEDICAL SOLUTION (PLYMOUTH) LTD,0001212987,611.40
Department of Health,East Sussex Hospitals NHS Trust,14/08/2013,STOCK-ASCRIBE CONQUEST,Pharmacy Stock,ALCON EYE CARE UK LTD,0001212995,681.23
Department of Health,East Sussex Hospitals NHS Trust,14/08/2013,STOCK-ASCRIBE CONQUEST,Pharmacy Stock,WAYMADE HEALTHCARE PLC,0001213002,530.34
Department of Health,East Sussex Hospitals NHS Trust,14/08/2013,STOCK-ASCRIBE CONQUEST,Pharmacy Stock,WAYMADE HEALTHCARE PLC,0001213003,1187.22
Department of Health,East Sussex Hospitals NHS Trust,14/08/2013,STOCK-ASCRIBE CONQUEST,Pharmacy Stock,WAYMADE HEALTHCARE PLC,0001213004,656.88
Department of Health,East Sussex Hospitals NHS Trust,14/08/2013,STOCK-ASCRIBE CONQUEST,Pharmacy Stock,BAXTER HEALTHCARE (BERKSHIRE)LTD,0001213081,2217.55
Department of Health,East Sussex Hospitals NHS Trust,14/08/2013,STOCK-ASCRIBE CONQUEST,Pharmacy Stock,GAMBRO LUNDIA AB,0001213139,1260.00
Department of Health,East Sussex Hospitals NHS Trust,14/08/2013,STOCK-ASCRIBE CONQUEST,Pharmacy Stock,PHARMARAMA INTERNATIONAL LIMITED,0001213144,817.92
Department of Health,East Sussex Hospitals NHS Trust,14/08/2013,STOCK-ASCRIBE CONQUEST,Pharmacy Stock,PHARMARAMA INTERNATIONAL LIMITED,0001213146,1022.40
Department of Health,East Sussex Hospitals NHS Trust,14/08/2013,STOCK-ASCRIBE CONQUEST,Pharmacy Stock,BAXTER HEALTHCARE (BERKSHIRE)LTD,0001213216,906.24
Department of Health,East Sussex Hospitals NHS Trust,14/08/2013,STOCK-ASCRIBE CONQUEST,Pharmacy Stock,GAMBRO LUNDIA AB,0001213234,1260.00
Department of Health,East Sussex Hospitals NHS Trust,14/08/2013,STOCK-ASCRIBE CONQUEST,Pharmacy Stock,WAYMADE HEALTHCARE PLC,0001213238,702.48
Department of Health,East Sussex Hospitals NHS Trust,14/08/2013,STOCK-ASCRIBE CONQUEST,Pharmacy Stock,ABBOTT LABORATORIES LTD,0001213428,3355.20
Department of Health,East Sussex Hospitals NHS Trust,14/08/2013,STOCK-ASCRIBE CONQUEST,Pharmacy Stock,GAMBRO LUNDIA AB,0001213436,1260.00
Department of Health,East Sussex Hospitals NHS Trust,14/08/2013,STOCK-ASCRIBE CONQUEST,Pharmacy Stock,BAXTER HEALTHCARE (BERKSHIRE)LTD,0001213487,630.00
Department of Health,East Sussex Hospitals NHS Trust,14/08/2013,STOCK-ASCRIBE CONQUEST,Pharmacy Stock,BAXTER HEALTHCARE (BERKSHIRE)LTD,0001213746,1071.36
Department of Health,East Sussex Hospitals NHS Trust,14/08/2013,STOCK-ASCRIBE CONQUEST,Pharmacy Stock,BAXTER HEALTHCARE (BERKSHIRE)LTD,0001213772,630.00
Department of Health,East Sussex Hospitals NHS Trust,14/08/2013,STOCK-ASCRIBE CONQUEST,Pharmacy Stock,WAYMADE HEALTHCARE PLC,0001214019,1439.74
Department of Health,East Sussex Hospitals NHS Trust,14/08/2013,STOCK-ASCRIBE CONQUEST,Pharmacy Stock,GAMBRO LUNDIA AB,0001214362,1260.00
Department of Health,East Sussex Hospitals NHS Trust,14/08/2013,STOCK-ASCRIBE CONQUEST,Pharmacy Stock,WAYMADE HEALTHCARE PLC,0001214365,1187.22
Department of Health,East Sussex Hospitals NHS Trust,14/08/2013,STOCK-ASCRIBE CONQUEST,Pharmacy Stock,ROCHE PRODUCTS LTD,0001214368,964.61
Department of Health,East Sussex Hospitals NHS Trust,14/08/2013,STOCK-ASCRIBE CONQUEST,Pharmacy Stock,NOVARTIS PHARMACEUTICALS UK LTD,0001214371,684.42
Department of Health,East Sussex Hospitals NHS Trust,14/08/2013,STOCK-ASCRIBE CONQUEST,Pharmacy Stock,NOVARTIS PHARMACEUTICALS UK LTD,0001214375,555.41
Department of Health,East Sussex Hospitals NHS Trust,14/08/2013,STOCK-ASCRIBE CONQUEST,Pharmacy Stock,ROCHE PRODUCTS LTD,0001214386,4437.12
Department of Health,East Sussex Hospitals NHS Trust,14/08/2013,STOCK-ASCRIBE CONQUEST,Pharmacy Stock,ROCHE PRODUCTS LTD,0001214391,964.61
Department of Health,East Sussex Hospitals NHS Trust,14/08/2013,STOCK-ASCRIBE CONQUEST,Pharmacy Stock,ROCHE PRODUCTS LTD,0001214392,560.30
Department of Health,East Sussex Hospitals NHS Trust,14/08/2013,STOCK-ASCRIBE CONQUEST,Pharmacy Stock,PHARMARAMA INTERNATIONAL LIMITED,0001214417,804.00
Department of Health,East Sussex Hospitals NHS Trust,14/08/2013,STOCK-ASCRIBE CONQUEST,Pharmacy Stock,BAXTER HEALTHCARE (BERKSHIRE)LTD,0001214436,2590.93
Department of Health,East Sussex Hospitals NHS Trust,14/08/2013,STOCK-ASCRIBE CONQUEST,Pharmacy Stock,BAXTER HEALTHCARE (BERKSHIRE)LTD,0001214464,504.00
Department of Health,East Sussex Hospitals NHS Trust,14/08/2013,STOCK-ASCRIBE CONQUEST,Pharmacy Stock,BAXTER HEALTHCARE (BERKSHIRE)LTD,0001214466,2843.42
Department of Health,East Sussex Hospitals NHS Trust,14/08/2013,STOCK-ASCRIBE CONQUEST,Pharmacy Stock,ROCHE PRODUCTS LTD,0001214537,2411.52
Department of Health,East Sussex Hospitals NHS Trust,14/08/2013,STOCK-ASCRIBE CONQUEST,Pharmacy Stock,ROCHE PRODUCTS LTD,0001214558,30733.20
Department of Health,East Sussex Hospitals NHS Trust,14/08/2013,STOCK-ASCRIBE CONQUEST,Pharmacy Stock,NOVARTIS PHARMACEUTICALS UK LTD,0001214582,22961.52
Department of Health,East Sussex Hospitals NHS Trust,14/08/2013,STOCK-ASCRIBE CONQUEST,Pharmacy Stock,ROCHE PRODUCTS LTD,0001214583,3327.84
Department of Health,East Sussex Hospitals NHS Trust,14/08/2013,STOCK-ASCRIBE CONQUEST,Pharmacy Stock,BAXTER HEALTHCARE (BERKSHIRE)LTD,0001214594,630.00
Department of Health,East Sussex Hospitals NHS Trust,14/08/2013,STOCK-ASCRIBE CONQUEST,Pharmacy Stock,BAXTER HEALTHCARE (BERKSHIRE)LTD,0001214598,840.00
Department of Health,East Sussex Hospitals NHS Trust,14/08/2013,STOCK-ASCRIBE CONQUEST,Pharmacy Stock,BAXTER HEALTHCARE (BERKSHIRE)LTD,0001214599,3653.34
Department of Health,East Sussex Hospitals NHS Trust,14/08/2013,STOCK-ASCRIBE CONQUEST,Pharmacy Stock,BAXTER HEALTHCARE (BERKSHIRE)LTD,0001214600,1924.25
Department of Health,East Sussex Hospitals NHS Trust,14/08/2013,STOCK-ASCRIBE CONQUEST,Pharmacy Stock,BAXTER HEALTHCARE (BERKSHIRE)LTD,0001214725,4986.62
Department of Health,East Sussex Hospitals NHS Trust,14/08/2013,STOCK-ASCRIBE CONQUEST,Pharmacy Stock,BAXTER HEALTHCARE (BERKSHIRE)LTD,0001214737,1842.24
Department of Health,East Sussex Hospitals NHS Trust,14/08/2013,STOCK-ASCRIBE CONQUEST,Pharmacy Stock,BAXTER HEALTHCARE (BERKSHIRE)LTD,0001214741,1326.07
Department of Health,East Sussex Hospitals NHS Trust,14/08/2013,STOCK-ASCRIBE CONQUEST,Pharmacy Stock,WAYMADE HEALTHCARE PLC,0001214748,590.28
Department of Health,East Sussex Hospitals NHS Trust,14/08/2013,STOCK-ASCRIBE CONQUEST,Pharmacy Stock,ROCHE PRODUCTS LTD,0001214764,2410.03
Department of Health,East Sussex Hospitals NHS Trust,14/08/2013,STOCK-ASCRIBE CONQUEST,Pharmacy Stock,BAXTER HEALTHCARE (BERKSHIRE)LTD,0001214943,630.00
Department of Health,East Sussex Hospitals NHS Trust,14/08/2013,STOCK-ASCRIBE CONQUEST,Pharmacy Stock,BAXTER HEALTHCARE (BERKSHIRE)LTD,0001214944,546.00
Department of Health,East Sussex Hospitals NHS Trust,14/08/2013,STOCK-ASCRIBE CONQUEST,Pharmacy Stock,BAXTER HEALTHCARE (BERKSHIRE)LTD,0001214945,588.00
Department of Health,East Sussex Hospitals NHS Trust,14/08/2013,STOCK-ASCRIBE CONQUEST,Pharmacy Stock,ROCHE PRODUCTS LTD,0001214958,1184.35
Department of Health,East Sussex Hospitals NHS Trust,14/08/2013,STOCK-ASCRIBE CONQUEST,Pharmacy Stock,BAXTER HEALTHCARE (BERKSHIRE)LTD,0001215077,1428.00
Department of Health,East Sussex Hospitals NHS Trust,14/08/2013,STOCK-ASCRIBE CONQUEST,Pharmacy Stock,BAXTER HEALTHCARE (BERKSHIRE)LTD,0001215079,504.00
Department of Health,East Sussex Hospitals NHS Trust,14/08/2013,STOCK-ASCRIBE CONQUEST,Pharmacy Stock,NOVARTIS PHARMACEUTICALS UK LTD,0001215084,29389.80
Department of Health,East Sussex Hospitals NHS Trust,14/08/2013,STOCK-ASCRIBE CONQUEST,Pharmacy Stock,ROCHE PRODUCTS LTD,0001215091,12573.30
Department of Health,East Sussex Hospitals NHS Trust,14/08/2013,STOCK-ASCRIBE CONQUEST,Pharmacy Stock,BAXTER HEALTHCARE (BERKSHIRE)LTD,0001215366,630.00
Department of Health,East Sussex Hospitals NHS Trust,14/08/2013,STOCK-ASCRIBE CONQUEST,Pharmacy Stock,BAXTER HEALTHCARE (BERKSHIRE)LTD,0001215367,2509.50
Department of Health,East Sussex Hospitals NHS Trust,14/08/2013,STOCK-ASCRIBE CONQUEST,Pharmacy Stock,GRIFOLS UK LTD,0001215389,680.00
Department of Health,East Sussex Hospitals NHS Trust,14/08/2013,STOCK-ASCRIBE CONQUEST,Pharmacy Stock,ROCHE PRODUCTS LTD,0001215401,4437.12
Department of Health,East Sussex Hospitals NHS Trust,14/08/2013,STOCK-ASCRIBE CONQUEST,Pharmacy Stock,NOVARTIS PHARMACEUTICALS UK LTD,0001215402,23075.18
Department of Health,East Sussex Hospitals NHS Trust,14/08/2013,STOCK-ASCRIBE CONQUEST,Pharmacy Stock,ROCHE PRODUCTS LTD,0001215414,560.30
Department of Health,East Sussex Hospitals NHS Trust,14/08/2013,STOCK-ASCRIBE CONQUEST,Pharmacy Stock,ROCHE PRODUCTS LTD,0001215415,2411.52
Department of Health,East Sussex Hospitals NHS Trust,14/08/2013,STOCK-ASCRIBE CONQUEST,Pharmacy Stock,HEALTHCARE AT HOME LTD,0001215569,704.28
Department of Health,East Sussex Hospitals NHS Trust,14/08/2013,STOCK-ASCRIBE CONQUEST,Pharmacy Stock,HEALTHCARE AT HOME LTD,0001215570,715.00
Department of Health,East Sussex Hospitals NHS Trust,14/08/2013,STOCK-ASCRIBE CONQUEST,Pharmacy Stock,HEALTHCARE AT HOME LTD,0001215571,704.28
Department of Health,East Sussex Hospitals NHS Trust,14/08/2013,STOCK-ASCRIBE CONQUEST,Pharmacy Stock,HEALTHCARE AT HOME LTD,0001215572,715.00
Department of Health,East Sussex Hospitals NHS Trust,14/08/2013,STOCK-ASCRIBE CONQUEST,Pharmacy Stock,HEALTHCARE AT HOME LTD,0001215573,1408.56
Department of Health,East Sussex Hospitals NHS Trust,14/08/2013,STOCK-ASCRIBE CONQUEST,Pharmacy Stock,HEALTHCARE AT HOME LTD,0001215574,704.28
Department of Health,East Sussex Hospitals NHS Trust,14/08/2013,STOCK-ASCRIBE CONQUEST,Pharmacy Stock,HEALTHCARE AT HOME LTD,0001215575,1408.56
Department of Health,East Sussex Hospitals NHS Trust,14/08/2013,STOCK-ASCRIBE CONQUEST,Pharmacy Stock,HEALTHCARE AT HOME LTD,0001215576,715.00
Department of Health,East Sussex Hospitals NHS Trust,14/08/2013,STOCK-ASCRIBE CONQUEST,Pharmacy Stock,HEALTHCARE AT HOME LTD,0001215577,715.00
Department of Health,East Sussex Hospitals NHS Trust,14/08/2013,STOCK-ASCRIBE CONQUEST,Pharmacy Stock,HEALTHCARE AT HOME LTD,0001215578,715.00
Department of Health,East Sussex Hospitals NHS Trust,14/08/2013,STOCK-ASCRIBE CONQUEST,Pharmacy Stock,HEALTHCARE AT HOME LTD,0001215579,715.00
Department of Health,East Sussex Hospitals NHS Trust,14/08/2013,STOCK-ASCRIBE CONQUEST,Pharmacy Stock,HEALTHCARE AT HOME LTD,0001215580,715.00
Department of Health,East Sussex Hospitals NHS Trust,14/08/2013,STOCK-ASCRIBE CONQUEST,Pharmacy Stock,HEALTHCARE AT HOME LTD,0001215581,704.28
Department of Health,East Sussex Hospitals NHS Trust,14/08/2013,STOCK-ASCRIBE CONQUEST,Pharmacy Stock,HEALTHCARE AT HOME LTD,0001215582,1408.56
Department of Health,East Sussex Hospitals NHS Trust,14/08/2013,STOCK-ASCRIBE CONQUEST,Pharmacy Stock,HEALTHCARE AT HOME LTD,0001215583,715.00
Department of Health,East Sussex Hospitals NHS Trust,14/08/2013,STOCK-ASCRIBE CONQUEST,Pharmacy Stock,HEALTHCARE AT HOME LTD,0001215584,715.00
Department of Health,East Sussex Hospitals NHS Trust,14/08/2013,STOCK-ASCRIBE CONQUEST,Pharmacy Stock,HEALTHCARE AT HOME LTD,0001215585,715.00
Department of Health,East Sussex Hospitals NHS Trust,14/08/2013,STOCK-ASCRIBE CONQUEST,Pharmacy Stock,HEALTHCARE AT HOME LTD,0001215586,715.00
Department of Health,East Sussex Hospitals NHS Trust,14/08/2013,STOCK-ASCRIBE CONQUEST,Pharmacy Stock,HEALTHCARE AT HOME LTD,0001215587,704.28
Department of Health,East Sussex Hospitals NHS Trust,14/08/2013,STOCK-ASCRIBE CONQUEST,Pharmacy Stock,HEALTHCARE AT HOME LTD,0001215588,704.28
Department of Health,East Sussex Hospitals NHS Trust,14/08/2013,STOCK-ASCRIBE CONQUEST,Pharmacy Stock,HEALTHCARE AT HOME LTD,0001215589,715.00
Department of Health,East Sussex Hospitals NHS Trust,14/08/2013,STOCK-ASCRIBE CONQUEST,Pharmacy Stock,HEALTHCARE AT HOME LTD,0001215594,2145.00
Department of Health,East Sussex Hospitals NHS Trust,14/08/2013,STOCK-ASCRIBE CONQUEST,Pharmacy Stock,HEALTHCARE AT HOME LTD,0001215595,704.28
Department of Health,East Sussex Hospitals NHS Trust,14/08/2013,STOCK-ASCRIBE CONQUEST,Pharmacy Stock,HEALTHCARE AT HOME LTD,0001215633,1408.56
Department of Health,East Sussex Hospitals NHS Trust,14/08/2013,STOCK-ASCRIBE CONQUEST,Pharmacy Stock,HEALTHCARE AT HOME LTD,0001215634,1408.56
Department of Health,East Sussex Hospitals NHS Trust,14/08/2013,STOCK-ASCRIBE CONQUEST,Pharmacy Stock,HEALTHCARE AT HOME LTD,0001215635,715.00
Department of Health,East Sussex Hospitals NHS Trust,14/08/2013,STOCK-ASCRIBE CONQUEST,Pharmacy Stock,HEALTHCARE AT HOME LTD,0001215636,715.00
Department of Health,East Sussex Hospitals NHS Trust,14/08/2013,STOCK-ASCRIBE CONQUEST,Pharmacy Stock,HEALTHCARE AT HOME LTD,0001215637,1408.56
Department of Health,East Sussex Hospitals NHS Trust,14/08/2013,STOCK-ASCRIBE CONQUEST,Pharmacy Stock,HEALTHCARE AT HOME LTD,0001215638,1408.56
Department of Health,East Sussex Hospitals NHS Trust,14/08/2013,STOCK-ASCRIBE CONQUEST,Pharmacy Stock,HEALTHCARE AT HOME LTD,0001215639,704.28
Department of Health,East Sussex Hospitals NHS Trust,14/08/2013,STOCK-ASCRIBE CONQUEST,Pharmacy Stock,HEALTHCARE AT HOME LTD,0001215640,2817.12
Department of Health,East Sussex Hospitals NHS Trust,14/08/2013,STOCK-ASCRIBE CONQUEST,Pharmacy Stock,HEALTHCARE AT HOME LTD,0001215641,2817.12
Department of Health,East Sussex Hospitals NHS Trust,14/08/2013,STOCK-ASCRIBE CONQUEST,Pharmacy Stock,HEALTHCARE AT HOME LTD,0001215642,715.00
Department of Health,East Sussex Hospitals NHS Trust,14/08/2013,STOCK-ASCRIBE CONQUEST,Pharmacy Stock,HEALTHCARE AT HOME LTD,0001215643,715.00
Department of Health,East Sussex Hospitals NHS Trust,14/08/2013,STOCK-ASCRIBE CONQUEST,Pharmacy Stock,HEALTHCARE AT HOME LTD,0001215644,704.28
Department of Health,East Sussex Hospitals NHS Trust,14/08/2013,STOCK-ASCRIBE CONQUEST,Pharmacy Stock,HEALTHCARE AT HOME LTD,0001215645,1408.56
Department of Health,East Sussex Hospitals NHS Trust,14/08/2013,STOCK-ASCRIBE CONQUEST,Pharmacy Stock,HEALTHCARE AT HOME LTD,0001215646,715.00
Department of Health,East Sussex Hospitals NHS Trust,14/08/2013,STOCK-ASCRIBE CONQUEST,Pharmacy Stock,HEALTHCARE AT HOME LTD,0001215647,704.28
Department of Health,East Sussex Hospitals NHS Trust,14/08/2013,STOCK-ASCRIBE CONQUEST,Pharmacy Stock,HEALTHCARE AT HOME LTD,0001215648,704.28
Department of Health,East Sussex Hospitals NHS Trust,14/08/2013,STOCK-ASCRIBE CONQUEST,Pharmacy Stock,ROCHE PRODUCTS LTD,0001215659,35702.70
Department of Health,East Sussex Hospitals NHS Trust,14/08/2013,STOCK-ASCRIBE CONQUEST,Pharmacy Stock,ROCHE PRODUCTS LTD,0001215660,1112.28
Department of Health,East Sussex Hospitals NHS Trust,14/08/2013,LOANER KITS - HIRE CHARGE,Planned Care,ARTHREX LTD,0001421527,708.00
Department of Health,East Sussex Hospitals NHS Trust,14/08/2013,PROSTHESES-OTHER,Planned Care,ARTHREX LTD,0001421527,457.20
Department of Health,East Sussex Hospitals NHS Trust,14/08/2013,M&S GENERAL SUPPLIES-OTHER,Planned Care,AMBU LIMITED,0001421832,523.14
Department of Health,East Sussex Hospitals NHS Trust,14/08/2013,PROSTHESES-HIP,Planned Care,LIMA ORTHOPAEDICS UK LIMITED,0001421834,2378.40
Department of Health,East Sussex Hospitals NHS Trust,14/08/2013,PROSTHESES-OTHER,Planned Care,LIMA ORTHOPAEDICS UK LIMITED,0001421834,331.20
Department of Health,East Sussex Hospitals NHS Trust,14/08/2013,NATIONAL JOINT REGISTRY LEVY,Planned Care,LIMA ORTHOPAEDICS UK LIMITED,0001421834,20.00
Department of Health,East Sussex Hospitals NHS Trust,14/08/2013,LAB MATERIALS - OXOID,Integrated Care,OXOID LIMITED,0001422282,-1753.06
Department of Health,East Sussex Hospitals NHS Trust,14/08/2013,WHEELCHAIR,Commercial,GALLOPS HOSPITAL SUPPLIES LTD,0001422389,899.30
Department of Health,East Sussex Hospitals NHS Trust,14/08/2013,ELECTRICITY,Commercial,BRITISH GAS,0001422397,1012.19
Department of Health,East Sussex Hospitals NHS Trust,14/08/2013,TESTS SENT TO NON NHS LABS,Integrated Care,BMI HEALTHCARE COLLECTIONS,0001422398,1280.00
Department of Health,East Sussex Hospitals NHS Trust,14/08/2013,TRAINING COURSE FEES-OTHER,Corporate Services,ILX GROUP PLC,0001422404,1259.99
Department of Health,East Sussex Hospitals NHS Trust,14/08/2013,COUNCIL TAX PAYMENTS,Commercial,EASTBOURNE BOROUGH COUNCIL,0001422409,6597.90
Department of Health,East Sussex Hospitals NHS Trust,14/08/2013,COUNCIL TAX PAYMENTS,Commercial,HASTINGS BOROUGH COUNCIL,0001422410,3528.00
Department of Health,East Sussex Hospitals NHS Trust,14/08/2013,ELECTRICITY,Commercial,EDF ENERGY,0001422414,2067.83
Department of Health,East Sussex Hospitals NHS Trust,14/08/2013,ELECTRICITY,Commercial,EDF ENERGY,0001422415,3211.71
Department of Health,East Sussex Hospitals NHS Trust,14/08/2013,LEGAL FEES(PERSONNEL ISSUES),Corporate Services,HEALTHCARE HR SOLUTIONS,0001528583,674.05
Department of Health,East Sussex Hospitals NHS Trust,14/08/2013,CONSULTANCY FEES,Commercial,CLOSERSTILL MEDIA HEALTHCARE LIMITED,0001528625,1317.00
Department of Health,East Sussex Hospitals NHS Trust,14/08/2013,LEASE CARS,Cross Site,ARNOLD CLARK FINANCE LTD,0001528633,585.67
Department of Health,East Sussex Hospitals NHS Trust,14/08/2013,CRIMINAL RECORDS BUREAU,Corporate Services,DISCLOSURE & BARRING SERVICE,0001528692,3608.00
Department of Health,East Sussex Hospitals NHS Trust,14/08/2013,CONTRACT-SECURITY,Commercial,CARDINAL SECURITY LTD,0001528743,2167.96
Department of Health,East Sussex Hospitals NHS Trust,14/08/2013,CONTRACT-SECURITY,Commercial,CARDINAL SECURITY LTD,0001528744,2088.65
Department of Health,East Sussex Hospitals NHS Trust,14/08/2013,PATS APPL - CONTACT LENSES,Planned Care,THOMAS H COLLISON LTD,0001528755,588.20
Department of Health,East Sussex Hospitals NHS Trust,14/08/2013,CONTRACT-SCANNING SERVICE,Integrated Care,INHEALTH LIMITED,0001529248,79189.60
Department of Health,East Sussex Hospitals NHS Trust,14/08/2013,POSTAGE - FRANKING MACHINE,Commercial,PURCHASE POWER,0001529601,513.00
Department of Health,East Sussex Hospitals NHS Trust,14/08/2013,GENERAL PRACTITIONERS,Urgent Care,PARK PRACTICE EASTBOURNE,0001529689,2989.59
Department of Health,East Sussex Hospitals NHS Trust,14/08/2013,DRUGS-OTHER,Integrated Care,AAH PHARMACEUTICALS LTD,0001529715,537.39
Department of Health,East Sussex Hospitals NHS Trust,14/08/2013,DRUGS-OTHER,Integrated Care,AAH PHARMACEUTICALS LTD,0001529717,607.82
Department of Health,East Sussex Hospitals NHS Trust,14/08/2013,GENERAL PRACTITIONERS,Urgent Care,THE MEADS SURGERY,0001529722,1234.95
Department of Health,East Sussex Hospitals NHS Trust,14/08/2013,GENERAL PRACTITIONERS,Urgent Care,BUXTED MEDICAL CENTRE,0001529723,1147.15
Department of Health,East Sussex Hospitals NHS Trust,14/08/2013,GENERAL PRACTITIONERS,Urgent Care,BIRD-IN-EYE SURGERY,0001529724,533.05
Department of Health,East Sussex Hospitals NHS Trust,14/08/2013,MARIE CURIE -SERVICES RECEIVED,Urgent Care,ST MICHAEL'S HOSPICE,0001529727,4910.49
Department of Health,East Sussex Hospitals NHS Trust,14/08/2013,LEGAL FEES(PERSONNEL ISSUES),Corporate Services,BEVAN BRITTAN,0001529728,4172.11
Department of Health,East Sussex Hospitals NHS Trust,14/08/2013,HIRE OF TRANSPORT,Commercial,SAMS PRIVATE HIRE,0001529744,2560.00
Department of Health,East Sussex Hospitals NHS Trust,14/08/2013,TAXI - OTHER,Commercial,247 TRANSPORT SOLUTIONS LTD,0001529750,3299.90
Department of Health,East Sussex Hospitals NHS Trust,14/08/2013,AGENCY DRIVERS,Commercial,PAPERWORK COURIERS LTD,0001529784,518.88
Department of Health,East Sussex Hospitals NHS Trust,14/08/2013,DRUGS-OTHER,Commercial,ALCON EYE CARE UK LTD,0001614590,882.00
Department of Health,East Sussex Hospitals NHS Trust,14/08/2013,DRUGS-OTHER,Commercial,HOSPIRA UK LIMITED,0001614628,675.00
Department of Health,East Sussex Hospitals NHS Trust,14/08/2013,DRUGS-OTHER,Commercial,BAXTER HEALTHCARE (BERKSHIRE)LTD,0001614801,565.34
Department of Health,East Sussex Hospitals NHS Trust,14/08/2013,VAC WOUND M&S SUPPLIES,Urgent Care,SMITH & NEPHEW HEALTHCARE LTD,0001812108,630.00
Department of Health,East Sussex Hospitals NHS Trust,14/08/2013,VAC WOUND M&S SUPPLIES,Urgent Care,KCI UK MEDICAL LTD,0001814375,681.07
Department of Health,East Sussex Hospitals NHS Trust,14/08/2013,HIRE OF SPECIAL BEDS,Urgent Care,PARK HOUSE HEALTHCARE LTD,0001814626,1782.00
Department of Health,East Sussex Hospitals NHS Trust,14/08/2013,HIRE OF SPECIAL BEDS,Urgent Care,PARK HOUSE HEALTHCARE LTD,0001814630,864.00
Department of Health,East Sussex Hospitals NHS Trust,14/08/2013,WHEELCHAIR REPAIRS,Integrated Care,QBITUS PRODUCTS,0001814658,1089.54
Department of Health,East Sussex Hospitals NHS Trust,14/08/2013,SUTURES,Planned Care,ARTHREX LTD,0001814677,1806.00
Department of Health,East Sussex Hospitals NHS Trust,14/08/2013,SURGICAL INSTRUMENTS,Planned Care,ARTHREX LTD,0001814677,1284.00
Department of Health,East Sussex Hospitals NHS Trust,14/08/2013,VAC WOUND M&S SUPPLIES,Urgent Care,KCI UK MEDICAL LTD,0001814685,535.72
Department of Health,East Sussex Hospitals NHS Trust,14/08/2013,M&S GENERAL SUPPLIES-OTHER,Planned Care,SINGLE USE SURGICAL LTD (BBIC),0001814698,502.20
Department of Health,East Sussex Hospitals NHS Trust,14/08/2013,M&S GENERAL SUPPLIES-OTHER,Urgent Care,UK MEDICAL LTD,0001814726,510.00
Department of Health,East Sussex Hospitals NHS Trust,14/08/2013,OTHER STATIONERY,Integrated Care,CONTRAC COMPUTER SUPPLIES,0001814729,1025.57
Department of Health,East Sussex Hospitals NHS Trust,14/08/2013,SURGICAL INSTRUMENTS,Planned Care,B BRAUN MEDICAL LTD,0001814748,518.88
Department of Health,East Sussex Hospitals NHS Trust,14/08/2013,SPECIAL SEATING,Integrated Care,CONSOLOR  LTD,0001814825,734.84
Department of Health,East Sussex Hospitals NHS Trust,14/08/2013,WHEELCHAIR REPAIRS,Integrated Care,AJ MOBILITY LTD,0001814841,5368.35
Department of Health,East Sussex Hospitals NHS Trust,14/08/2013,SPECIAL SEATING,Integrated Care,CONSOLOR  LTD,0001815000,1824.76
Department of Health,East Sussex Hospitals NHS Trust,14/08/2013,SPECIAL SEATING,Integrated Care,CONSOLOR  LTD,0001815003,2176.59
Department of Health,East Sussex Hospitals NHS Trust,14/08/2013,WHEELCHAIR,Integrated Care,MACLAREN UK LTD,0001815044,1068.00
Department of Health,East Sussex Hospitals NHS Trust,14/08/2013,WHEELCHAIR,Integrated Care,SOUTHERN MOBILITY CENTRE,0001815058,3153.60
Department of Health,East Sussex Hospitals NHS Trust,14/08/2013,WHEELCHAIR REPAIRS,Integrated Care,AJ MOBILITY LTD,0001815189,3966.19
Department of Health,East Sussex Hospitals NHS Trust,14/08/2013,WHEELCHAIR,Integrated Care,KENT MOBILITY LTD,0001815275,3110.40
Department of Health,East Sussex Hospitals NHS Trust,14/08/2013,WHEELCHAIR REPAIRS,Integrated Care,AJ MOBILITY LTD,0001815332,2264.22
Department of Health,East Sussex Hospitals NHS Trust,14/08/2013,PROVISIONS,Commercial,DAIRY CREST LTD,0001906119,1692.27
Department of Health,East Sussex Hospitals NHS Trust,14/08/2013,PROVISIONS,Commercial,DAIRY CREST LTD,0001906136,1313.16
Department of Health,East Sussex Hospitals NHS Trust,14/08/2013,PROVISIONS,Commercial,DAIRY CREST LTD,0001906139,1102.23
Department of Health,East Sussex Hospitals NHS Trust,14/08/2013,PROVISIONS,Commercial,DAIRY CREST LTD,0001906182,1710.63
Department of Health,East Sussex Hospitals NHS Trust,14/08/2013,PROVISIONS,Commercial,AUTOBAR UK LIMITED,0001906294,733.64
Department of Health,East Sussex Hospitals NHS Trust,14/08/2013,PROVISIONS,Commercial,AUTOBAR UK LIMITED,0001906295,586.74
Department of Health,East Sussex Hospitals NHS Trust,14/08/2013,PROVISIONS,Commercial,AUTOBAR UK LIMITED,0001906463,586.34
Department of Health,East Sussex Hospitals NHS Trust,14/08/2013,PROVISIONS,Commercial,AUTOBAR UK LIMITED,0001906505,949.54
Department of Health,East Sussex Hospitals NHS Trust,14/08/2013,PROVISIONS,Commercial,BRAKE BROS (FROZEN FOODS) LTD,0001906534,579.62
Department of Health,East Sussex Hospitals NHS Trust,14/08/2013,PROVISIONS,Commercial,BRAKE BROS (FROZEN FOODS) LTD,0001906535,650.88
Department of Health,East Sussex Hospitals NHS Trust,14/08/2013,PROVISIONS,Commercial,BRAKE BROS (FROZEN FOODS) LTD,0001906576,864.25
Department of Health,East Sussex Hospitals NHS Trust,14/08/2013,PROVISIONS,Commercial,BRAKE BROS (FROZEN FOODS) LTD,0001906577,807.64
Department of Health,East Sussex Hospitals NHS Trust,14/08/2013,PROVISIONS,Commercial,BRAKE BROS (FROZEN FOODS) LTD,0001906579,721.32
Department of Health,East Sussex Hospitals NHS Trust,14/08/2013,PROVISIONS,Commercial,BRAKE BROS (FROZEN FOODS) LTD,0001906580,1057.98
Department of Health,East Sussex Hospitals NHS Trust,14/08/2013,PROVISIONS,Commercial,BRAKE BROS (FROZEN FOODS) LTD,0001906581,830.94
Department of Health,East Sussex Hospitals NHS Trust,14/08/2013,PROVISIONS,Commercial,BRAKE BROS (FROZEN FOODS) LTD,0001906583,759.99
Department of Health,East Sussex Hospitals NHS Trust,14/08/2013,FURNITURE & FITTINGS,Commercial,AUTOBAR UK LIMITED,0001906585,1146.50
Department of Health,East Sussex Hospitals NHS Trust,14/08/2013,PROVISIONS,Commercial,BRAKE BROS (FROZEN FOODS) LTD,0001906649,606.63
Department of Health,East Sussex Hospitals NHS Trust,14/08/2013,PROVISIONS,Commercial,BRAKE BROS (FROZEN FOODS) LTD,0001906734,865.76
Department of Health,East Sussex Hospitals NHS Trust,14/08/2013,PROVISIONS,Commercial,BRAKE BROS (FROZEN FOODS) LTD,0001906735,993.85
Department of Health,East Sussex Hospitals NHS Trust,14/08/2013,MAINT-PHILIPS MEDICAL SYSTEMS,Integrated Care,PHILIPS MEDICAL SYSTEMS UK LTD,0002115412,834.26
Department of Health,East Sussex Hospitals NHS Trust,14/08/2013,M&S GENERAL SUPPLIES-OTHER,Planned Care,RESMED (UK) LTD,0002118842,848.88
Department of Health,East Sussex Hospitals NHS Trust,14/08/2013,GENERAL LAB. CONSUMABLES,Integrated Care,THERMO SHANDON LTD,0002118850,870.67
Department of Health,East Sussex Hospitals NHS Trust,14/08/2013,M&S GENERAL SUPPLIES-OTHER,Integrated Care,UK MEDICAL LTD,0002118892,1683.00
Department of Health,East Sussex Hospitals NHS Trust,14/08/2013,M&S GENERAL SUPPLIES-OTHER,Planned Care,LOCAMED LIMITED,0002118894,294.00
Department of Health,East Sussex Hospitals NHS Trust,14/08/2013,SURGICAL INSTRUMENTS,Planned Care,LOCAMED LIMITED,0002118894,286.20
Department of Health,East Sussex Hospitals NHS Trust,14/08/2013,GENERAL LAB. CONSUMABLES,Integrated Care,VITECH SCIENTIFIC LTD,0002118930,124.80
Department of Health,East Sussex Hospitals NHS Trust,14/08/2013,LAB.REAGENTS-MISCELLANEOUS,Integrated Care,VITECH SCIENTIFIC LTD,0002118930,312.00
Department of Health,East Sussex Hospitals NHS Trust,14/08/2013,QUALITY CONTROL MATERIAL,Integrated Care,VITECH SCIENTIFIC LTD,0002118930,82.80
Department of Health,East Sussex Hospitals NHS Trust,14/08/2013,M&S GENERAL SUPPLIES-OTHER,Planned Care,ARTHREX LTD,0002118938,78.00
Department of Health,East Sussex Hospitals NHS Trust,14/08/2013,LOANER KITS - HIRE CHARGE,Planned Care,ARTHREX LTD,0002118938,300.00
Department of Health,East Sussex Hospitals NHS Trust,14/08/2013,PROSTHESES-OTHER,Planned Care,ARTHREX LTD,0002118938,400.80
Department of Health,East Sussex Hospitals NHS Trust,14/08/2013,INTERVENTIONAL DISPOSABLES,Urgent Care,ABBOTT VASCULAR,0002119044,540.00
Department of Health,East Sussex Hospitals NHS Trust,14/08/2013,CARDIOLOGY CATHETERS,Urgent Care,ABBOTT VASCULAR,0002119044,360.00
Department of Health,East Sussex Hospitals NHS Trust,14/08/2013,CARDIOLOGY STENTS,Urgent Care,ABBOTT VASCULAR,0002119045,1386.00
Department of Health,East Sussex Hospitals NHS Trust,14/08/2013,ARTHROSCOPY INSTRUMENTS,Planned Care,SMITH & NEPHEW ADVANCED SURGICAL DEVICES,0002119054,610.62
Department of Health,East Sussex Hospitals NHS Trust,14/08/2013,LEASE CARS,Cross Site,AUTOMOTIVE LEASING LTD,0002119060,1904.24
Department of Health,East Sussex Hospitals NHS Trust,14/08/2013,PROSTHESIS - LENS,Planned Care,ALCON EYE CARE UK LTD,0002119063,1141.20
Department of Health,East Sussex Hospitals NHS Trust,14/08/2013,LAPARASCOPIC EQUIP-GYNAECOLOGY,Planned Care,KARL STORZ  ENDOSCOPY (UK) LTD,0002119070,561.60
Department of Health,East Sussex Hospitals NHS Trust,14/08/2013,CARDIOLOGY STENTS,Urgent Care,ABBOTT VASCULAR,0002119073,1848.00
Department of Health,East Sussex Hospitals NHS Trust,14/08/2013,INTERVENTIONAL DISPOSABLES,Urgent Care,ABBOTT VASCULAR,0002119074,540.00
Department of Health,East Sussex Hospitals NHS Trust,14/08/2013,RADIOISOTOPES,Integrated Care,GE HEALTHCARE LTD,0002119088,510.00
Department of Health,East Sussex Hospitals NHS Trust,14/08/2013,SURGICAL INSTRUMENTS,Planned Care,SPECTRUM OPHTHALMICS,0002119103,1813.80
Department of Health,East Sussex Hospitals NHS Trust,14/08/2013,M&S GENERAL SUPPLIES-OTHER,Planned Care,SMITH & NEPHEW ADVANCED SURGICAL DEVICES,0002119111,34.20
Department of Health,East Sussex Hospitals NHS Trust,14/08/2013,SURGICAL INSTRUMENTS,Planned Care,SMITH & NEPHEW ADVANCED SURGICAL DEVICES,0002119111,68.74
Department of Health,East Sussex Hospitals NHS Trust,14/08/2013,PROSTHESES-OTHER,Planned Care,SMITH & NEPHEW ADVANCED SURGICAL DEVICES,0002119111,685.82
Department of Health,East Sussex Hospitals NHS Trust,14/08/2013,PROSTHESES-OTHER,Planned Care,SMITH & NEPHEW ADVANCED SURGICAL DEVICES,0002119113,897.24
Department of Health,East Sussex Hospitals NHS Trust,14/08/2013,M&S GENERAL SUPPLIES-OTHER,Urgent Care,ST JUDE MEDICAL UK LIMITED,0002119121,999.36
Department of Health,East Sussex Hospitals NHS Trust,14/08/2013,COMPUTER SOFTWARE,Corporate Services,EIBS LTD,0002119144,13476.00
Department of Health,East Sussex Hospitals NHS Trust,14/08/2013,M&S EQUIPMENT - OTHER,Integrated Care,IDOMAN TEORANTA,0002119150,2294.00
Department of Health,East Sussex Hospitals NHS Trust,14/08/2013,M&S GENERAL SUPPLIES-OTHER,Urgent Care,ST JUDE MEDICAL UK LIMITED,0002119183,1998.72
Department of Health,East Sussex Hospitals NHS Trust,14/08/2013,SURGICAL INSTRUMENTS,Planned Care,KARL STORZ  ENDOSCOPY (UK) LTD,0002119216,1636.80
Department of Health,East Sussex Hospitals NHS Trust,14/08/2013,CARDIOLOGY STENTS,Urgent Care,TERUMO UK,0002119227,2070.00
Department of Health,East Sussex Hospitals NHS Trust,14/08/2013,LAB MATERIALS - OXOID,Integrated Care,OXOID LIMITED,0002119242,855.05
Department of Health,East Sussex Hospitals NHS Trust,14/08/2013,M&S GENERAL SUPPLIES-OTHER,Integrated Care,B BRAUN MEDICAL LTD,0002119267,718.44
Department of Health,East Sussex Hospitals NHS Trust,14/08/2013,CLEANING MATERIALS,Commercial,GV HEALTH LTD,0002119270,2348.28
Department of Health,East Sussex Hospitals NHS Trust,14/08/2013,CATARACT CONSUMABLES,Planned Care,ALTOMED LTD,0002119278,455.40
Department of Health,East Sussex Hospitals NHS Trust,14/08/2013,M&S GENERAL SUPPLIES-OTHER,Planned Care,ALTOMED LTD,0002119278,105.60
Department of Health,East Sussex Hospitals NHS Trust,14/08/2013,M&S GENERAL SUPPLIES-OTHER,Planned Care,ALCON EYE CARE UK LTD,0002119286,150.00
Department of Health,East Sussex Hospitals NHS Trust,14/08/2013,SURGICAL INSTRUMENTS,Planned Care,ALCON EYE CARE UK LTD,0002119286,390.00
Department of Health,East Sussex Hospitals NHS Trust,14/08/2013,SURGICAL INSTRUMENTS,Planned Care,PURPLE SURGICAL UK LTD,0002119291,1306.33
Department of Health,East Sussex Hospitals NHS Trust,14/08/2013,ARTHROSCOPY INSTRUMENTS,Planned Care,SMITH & NEPHEW ADVANCED SURGICAL DEVICES,0002119300,610.62
Department of Health,East Sussex Hospitals NHS Trust,14/08/2013,PROSTHESES-OTHER,Planned Care,SMITH & NEPHEW ADVANCED SURGICAL DEVICES,0002119300,131.26
Department of Health,East Sussex Hospitals NHS Trust,14/08/2013,M&S GENERAL SUPPLIES-OTHER,Planned Care,SMITH & NEPHEW ADVANCED SURGICAL DEVICES,0002119301,57.75
Department of Health,East Sussex Hospitals NHS Trust,14/08/2013,SURGICAL INSTRUMENTS,Planned Care,SMITH & NEPHEW ADVANCED SURGICAL DEVICES,0002119301,28.25
Department of Health,East Sussex Hospitals NHS Trust,14/08/2013,PROSTHESES-OTHER,Planned Care,SMITH & NEPHEW ADVANCED SURGICAL DEVICES,0002119301,974.69
Department of Health,East Sussex Hospitals NHS Trust,14/08/2013,GENERAL LAB. CONSUMABLES,Integrated Care,UK MEDICAL LTD,0002119318,1104.00
Department of Health,East Sussex Hospitals NHS Trust,14/08/2013,PROSTHESES-OTHER,Planned Care,SMITH & NEPHEW ADVANCED SURGICAL DEVICES,0002119331,687.36
Department of Health,East Sussex Hospitals NHS Trust,14/08/2013,M&S GENERAL SUPPLIES-OTHER,Planned Care,SMITH & NEPHEW ADVANCED SURGICAL DEVICES,0002119332,50.88
Department of Health,East Sussex Hospitals NHS Trust,14/08/2013,PROSTHESES-OTHER,Planned Care,SMITH & NEPHEW ADVANCED SURGICAL DEVICES,0002119332,1184.51
Department of Health,East Sussex Hospitals NHS Trust,14/08/2013,SUTURES,Planned Care,SMITH & NEPHEW ADVANCED SURGICAL DEVICES,0002119342,517.15
Department of Health,East Sussex Hospitals NHS Trust,14/08/2013,SURGICAL INSTRUMENTS,Planned Care,SMITH & NEPHEW ADVANCED SURGICAL DEVICES,0002119342,694.98
Department of Health,East Sussex Hospitals NHS Trust,14/08/2013,INTERVENTIONAL DISPOSABLES,Urgent Care,VASCULAR PERSECTIVES LTD,0002119344,564.00
Department of Health,East Sussex Hospitals NHS Trust,14/08/2013,M&S GENERAL SUPPLIES-OTHER,Urgent Care,ST JUDE MEDICAL UK LIMITED,0002119362,999.36
Department of Health,East Sussex Hospitals NHS Trust,14/08/2013,INTERVENTIONAL DISPOSABLES,Urgent Care,UK MEDICAL LTD,0002119401,540.00
Department of Health,East Sussex Hospitals NHS Trust,14/08/2013,SURGICAL INSTRUMENTS,Planned Care,SMITH & NEPHEW ADVANCED SURGICAL DEVICES,0002119438,159.97
Department of Health,East Sussex Hospitals NHS Trust,14/08/2013,PROSTHESES-OTHER,Planned Care,SMITH & NEPHEW ADVANCED SURGICAL DEVICES,0002119438,1545.09
Department of Health,East Sussex Hospitals NHS Trust,14/08/2013,INTERVENTIONAL DISPOSABLES,Urgent Care,ST JUDE MEDICAL UK LIMITED,0002119440,2520.00
Department of Health,East Sussex Hospitals NHS Trust,14/08/2013,CARDIOLOGY CATHETERS,Urgent Care,ST JUDE MEDICAL UK LIMITED,0002119441,3000.00
Department of Health,East Sussex Hospitals NHS Trust,14/08/2013,PROSTHESIS - UROLOGICAL,Planned Care,AMERICAN MEDICAL SYSTEMS UK LTD,0002119451,5670.00
Department of Health,East Sussex Hospitals NHS Trust,14/08/2013,MAINT-MEDICAL IMAGING CONSULT,Integrated Care,MED IMAGING LTD,0002119532,2766.00
Department of Health,East Sussex Hospitals NHS Trust,14/08/2013,M&S GENERAL SUPPLIES-OTHER,Planned Care,LINDSAY SURGICAL SUPPLIES LTD,0002119566,691.20
Department of Health,East Sussex Hospitals NHS Trust,14/08/2013,LAB MATERIALS - MAIN ANALYSER,Integrated Care,ALPHA LABORATORIES LTD,0002119567,1022.04
Department of Health,East Sussex Hospitals NHS Trust,14/08/2013,LASER/LAPARASCOPIC EQUIPMENT,Planned Care,PURPLE SURGICAL UK LTD,0002119572,5472.00
Department of Health,East Sussex Hospitals NHS Trust,14/08/2013,STAPLING DEVICES,Planned Care,PURPLE SURGICAL UK LTD,0002119573,2229.84
Department of Health,East Sussex Hospitals NHS Trust,14/08/2013,VAC WOUND M&S SUPPLIES,Urgent Care,KCI UK MEDICAL LTD,0002119591,722.05
Department of Health,East Sussex Hospitals NHS Trust,14/08/2013,PROSTHESES-HIP,Planned Care,LIMA ORTHOPAEDICS UK LIMITED,0002119693,832.80
Department of Health,East Sussex Hospitals NHS Trust,14/08/2013,PROSTHESES-OTHER,Planned Care,LIMA ORTHOPAEDICS UK LIMITED,0002119693,82.80
Department of Health,East Sussex Hospitals NHS Trust,14/08/2013,NATIONAL JOINT REGISTRY LEVY,Planned Care,LIMA ORTHOPAEDICS UK LIMITED,0002119693,20.00
Department of Health,East Sussex Hospitals NHS Trust,14/08/2013,INTERVENTIONAL DISPOSABLES,Urgent Care,TERUMO UK,0002119714,312.00
Department of Health,East Sussex Hospitals NHS Trust,14/08/2013,CARDIOLOGY CATHETERS,Urgent Care,TERUMO UK,0002119714,264.00
Department of Health,East Sussex Hospitals NHS Trust,14/08/2013,TRAINING COURSE FEES-OTHER,Planned Care,TRISOFT LIMITED,0002119728,1330.00
Department of Health,East Sussex Hospitals NHS Trust,14/08/2013,INTERVENTIONAL DISPOSABLES,Planned Care,SMITH & NEPHEW ADVANCED SURGICAL DEVICES,0002119729,88.27
Department of Health,East Sussex Hospitals NHS Trust,14/08/2013,TSSU INSTRUMENTATION,Planned Care,SMITH & NEPHEW ADVANCED SURGICAL DEVICES,0002119729,132.58
Department of Health,East Sussex Hospitals NHS Trust,14/08/2013,PROSTHESES-OTHER,Planned Care,SMITH & NEPHEW ADVANCED SURGICAL DEVICES,0002119729,393.77
Department of Health,East Sussex Hospitals NHS Trust,14/08/2013,SURGICAL INSTRUMENTS,Planned Care,SMITH & NEPHEW ADVANCED SURGICAL DEVICES,0002119730,34.37
Department of Health,East Sussex Hospitals NHS Trust,14/08/2013,PROSTHESES-OTHER,Planned Care,SMITH & NEPHEW ADVANCED SURGICAL DEVICES,0002119730,1015.15
Department of Health,East Sussex Hospitals NHS Trust,14/08/2013,CATARACT CONSUMABLES,Planned Care,ALCON EYE CARE UK LTD,0002119734,1887.48
Department of Health,East Sussex Hospitals NHS Trust,14/08/2013,COMPUTER HARDWARE,Planned Care,HEWLETT-PACKARD LTD,0002119769,699.92
Department of Health,East Sussex Hospitals NHS Trust,14/08/2013,COMPUTER HARDWARE,Integrated Care,HEWLETT-PACKARD LTD,0002119770,555.30
Department of Health,East Sussex Hospitals NHS Trust,14/08/2013,CAPITAL EXPENDITURE,Other Central,HEWLETT-PACKARD LTD,0002119771,820.60
Department of Health,East Sussex Hospitals NHS Trust,14/08/2013,PROSTHESES-OTHER,Planned Care,ZIMMER LTD,0002119775,2404.08
Department of Health,East Sussex Hospitals NHS Trust,14/08/2013,LAPARASCOPIC EQUIP-UROLOGICAL,Planned Care,CONMED LINVATEC UK,0002119806,600.00
Department of Health,East Sussex Hospitals NHS Trust,14/08/2013,LAB MATERIALS - MAIN ANALYSER,Integrated Care,ALPHA LABORATORIES LTD,0002119851,2735.78
Department of Health,East Sussex Hospitals NHS Trust,14/08/2013,PROSTHESES-HIP,Planned Care,LIMA ORTHOPAEDICS UK LIMITED,0002119941,1958.40
Department of Health,East Sussex Hospitals NHS Trust,14/08/2013,PROSTHESES-OTHER,Planned Care,LIMA ORTHOPAEDICS UK LIMITED,0002119941,82.80
Department of Health,East Sussex Hospitals NHS Trust,14/08/2013,NATIONAL JOINT REGISTRY LEVY,Planned Care,LIMA ORTHOPAEDICS UK LIMITED,0002119941,40.01
Department of Health,East Sussex Hospitals NHS Trust,14/08/2013,RADIOISOTOPES,Integrated Care,HIGH TECHNOLOGY SOURCES LTD,0002119982,888.00
Department of Health,East Sussex Hospitals NHS Trust,14/08/2013,FURNITURE & FITTINGS,Commercial,STORAGE CONSTRUCTION SERVICES,0002120059,6198.32
Department of Health,East Sussex Hospitals NHS Trust,14/08/2013,M&S EQUIPMENT - OTHER,Planned Care,GAMBRO LUNDIA AB,0002120066,642.00
Department of Health,East Sussex Hospitals NHS Trust,14/08/2013,LAB MATERIALS - LAUNCH,Integrated Care,LAUNCH DIAGNOSTICS LTD,0002120087,2014.99
Department of Health,East Sussex Hospitals NHS Trust,14/08/2013,GENERAL CHEMICALS,Integrated Care,LAUNCH DIAGNOSTICS LTD,0002120087,630.05
Department of Health,East Sussex Hospitals NHS Trust,14/08/2013,COMPUTER HARDWARE,Commercial,HEWLETT-PACKARD LTD,0002120098,818.55
Department of Health,East Sussex Hospitals NHS Trust,14/08/2013,COMPUTER MAINTENANCE-HARDWARE,Commercial,HEWLETT-PACKARD LTD,0002120098,60.48
Department of Health,East Sussex Hospitals NHS Trust,14/08/2013,LAB.REAGENTS-MISCELLANEOUS,Integrated Care,SEBIA UK LTD,0002120107,2165.45
Department of Health,East Sussex Hospitals NHS Trust,14/08/2013,LAB MATS - SYSMEX HAEM CONS,Integrated Care,SYSMEX UK LTD,0002120109,1149.19
Department of Health,East Sussex Hospitals NHS Trust,14/08/2013,M&S GENERAL SUPPLIES-OTHER,Planned Care,ARMSTRONG MEDICAL,0002120160,578.40
Department of Health,East Sussex Hospitals NHS Trust,14/08/2013,LAB MATERIALS - MAIN ANALYSER,Integrated Care,ORTHO-CLINICAL DIAGNOSTICS,0002120167,116789.11
Department of Health,East Sussex Hospitals NHS Trust,14/08/2013,PROSTHESES-HIP,Planned Care,LIMA ORTHOPAEDICS UK LIMITED,0002120230,928.80
Department of Health,East Sussex Hospitals NHS Trust,14/08/2013,"BOOKS, JOURNALS & SUBCRIPTIONS",Corporate Services,BLACKWELLS,0002120236,1017.27
Department of Health,East Sussex Hospitals NHS Trust,14/08/2013,OESOPHAGEAL (UPPER GI) STENTS,Planned Care,PYRAMED,0002120241,1464.00
Department of Health,East Sussex Hospitals NHS Trust,14/08/2013,LAB MATERIALS - OXOID,Integrated Care,OXOID LIMITED,0002120301,605.84
Department of Health,East Sussex Hospitals NHS Trust,14/08/2013,CONTRACT VEHICLE MAINTENANCE,Commercial,C BREWER & SONS LTD,0002120310,819.05
Department of Health,East Sussex Hospitals NHS Trust,14/08/2013,CARDIOLOGY CATHETERS,Urgent Care,PYRAMED,0002120369,1116.00
Department of Health,East Sussex Hospitals NHS Trust,14/08/2013,M&S EQUIPMENT - OTHER,Planned Care,INTERSURGICAL LTD,0002120403,540.00
Department of Health,East Sussex Hospitals NHS Trust,14/08/2013,PROSTHESIS - SPINAL,Planned Care,ZIMMER LTD,0002120409,1352.16
Department of Health,East Sussex Hospitals NHS Trust,14/08/2013,LAB MATERIALS - OXOID,Integrated Care,OXOID LIMITED,0002120460,1299.89
Department of Health,East Sussex Hospitals NHS Trust,14/08/2013,M&S GENERAL SUPPLIES-OTHER,Planned Care,BAXTER HEALTHCARE (BERKSHIRE)LTD,0002120468,1034.40
Department of Health,East Sussex Hospitals NHS Trust,14/08/2013,OESOPHAGEAL (UPPER GI) STENTS,Planned Care,PYRAMED,0002120469,744.00
Department of Health,East Sussex Hospitals NHS Trust,14/08/2013,FURNITURE & FITTINGS,Integrated Care,TEAL FURNITURE LTD,0002120523,650.08
Department of Health,East Sussex Hospitals NHS Trust,14/08/2013,FURNITURE & FITTINGS,Integrated Care,TEAL FURNITURE LTD,0002120524,650.08
Department of Health,East Sussex Hospitals NHS Trust,14/08/2013,X-RAY - EQUIPMENT,Integrated Care,MACROMED,0002120571,2220.00
Department of Health,East Sussex Hospitals NHS Trust,14/08/2013,ELECTRODES,Integrated Care,ROCKET MEDICAL PLC,0002120585,1110.00
Department of Health,East Sussex Hospitals NHS Trust,14/08/2013,PROSTHESIS - SPINAL,Planned Care,ZIMMER LTD,0002120662,3805.92
Department of Health,East Sussex Hospitals NHS Trust,14/08/2013,OESOPHAGEAL (UPPER GI) STENTS,Integrated Care,PYRAMED,0002120695,720.00
Department of Health,East Sussex Hospitals NHS Trust,14/08/2013,POSTAGE,Integrated Care,PYRAMED,0002120695,24.00
Department of Health,East Sussex Hospitals NHS Trust,14/08/2013,COMPUTER HARDWARE,Corporate Services,HEWLETT-PACKARD LTD,0002120705,-714.89
Department of Health,East Sussex Hospitals NHS Trust,14/08/2013,PROSTHESIS - SPINAL,Planned Care,ZIMMER LTD,0002120745,7179.84
Department of Health,East Sussex Hospitals NHS Trust,14/08/2013,LEASE CARS,Cross Site,INCHCAPE FLEET SOLUTIONS,0002120756,2053.48
Department of Health,East Sussex Hospitals NHS Trust,14/08/2013,LAB MATERIALS - OXOID,Integrated Care,OXOID LIMITED,0002121027,918.01
Department of Health,East Sussex Hospitals NHS Trust,14/08/2013,M&S GENERAL SUPPLIES-OTHER,Planned Care,BAXTER HEALTHCARE (BERKSHIRE)LTD,0002121047,517.20
Department of Health,East Sussex Hospitals NHS Trust,14/08/2013,M&S GENERAL SUPPLIES-OTHER,Integrated Care,PYRAMED,0002121052,792.00
Department of Health,East Sussex Hospitals NHS Trust,14/08/2013,POSTAGE,Integrated Care,PYRAMED,0002121052,24.00
Department of Health,East Sussex Hospitals NHS Trust,14/08/2013,PROSTHESIS - SPINAL,Planned Care,ZIMMER LTD,0002121059,-774.79
Department of Health,East Sussex Hospitals NHS Trust,14/08/2013,M&S GENERAL SUPPLIES-OTHER,Planned Care,CONMED LINVATEC UK,0002121091,792.00
Department of Health,East Sussex Hospitals NHS Trust,14/08/2013,LAB.REAGENTS-MISCELLANEOUS,Integrated Care,SEBIA UK LTD,0002121199,3941.06
Department of Health,East Sussex Hospitals NHS Trust,14/08/2013,CLEANING MATERIALS,Integrated Care,SEBIA UK LTD,0002121199,253.56
Department of Health,East Sussex Hospitals NHS Trust,14/08/2013,COLONIC STENTS,Planned Care,PYRAMED,0002121281,974.40
Department of Health,East Sussex Hospitals NHS Trust,14/08/2013,BONE BANK,Planned Care,HOSPITAL INNOVATIONS LTD,0002121283,777.00
Department of Health,East Sussex Hospitals NHS Trust,14/08/2013,LAB MATERIALS - OXOID,Integrated Care,OXOID LIMITED,0002121338,1127.08
Department of Health,East Sussex Hospitals NHS Trust,14/08/2013,SURGICAL INSTRUMENTS,Planned Care,STERICOM LTD,0002121468,864.00
Department of Health,East Sussex Hospitals NHS Trust,14/08/2013,HIRE WATER COOLERS,Planned Care,PHS GROUP PLC,0002214009,4849.78
Department of Health,East Sussex Hospitals NHS Trust,14/08/2013,PRINTING/PRINTED MATERIALS,Commercial,ENTERPRISE STATIONERY LTD,0002216143,1376.89
Department of Health,East Sussex Hospitals NHS Trust,14/08/2013,"BOOKS, JOURNALS & SUBCRIPTIONS",Planned Care,RESUSCITATION COUNCIL (UK) TRADING LTD,0002216388,528.00
Department of Health,East Sussex Hospitals NHS Trust,14/08/2013,M&S GENERAL SUPPLIES-OTHER,Urgent Care,ST JUDE MEDICAL UK LIMITED,0002216754,999.36
Department of Health,East Sussex Hospitals NHS Trust,14/08/2013,CARDIOLOGY CATHETERS,Urgent Care,ST JUDE MEDICAL UK LIMITED,0002216756,1800.00
Department of Health,East Sussex Hospitals NHS Trust,14/08/2013,LAUNDRY EQUIPMENT,Commercial,CLAY & ABBOTT LTD,0002216772,1668.00
Department of Health,East Sussex Hospitals NHS Trust,14/08/2013,LAB MATERIALS - OXOID,Integrated Care,OXOID LIMITED,0002216774,582.41
Department of Health,East Sussex Hospitals NHS Trust,14/08/2013,LAB MATERIALS - OXOID,Integrated Care,OXOID LIMITED,0002216776,618.96
Department of Health,East Sussex Hospitals NHS Trust,14/08/2013,INTERVENTIONAL DISPOSABLES,Urgent Care,TERUMO UK,0002216778,684.00
Department of Health,East Sussex Hospitals NHS Trust,14/08/2013,INTERVENTIONAL DISPOSABLES,Urgent Care,TERUMO UK,0002216779,1580.40
Department of Health,East Sussex Hospitals NHS Trust,14/08/2013,ENGINEERING MATERIALS,Commercial,MILLFIELDS CONVEYOR BELTING LIMITED,0002216801,567.87
Department of Health,East Sussex Hospitals NHS Trust,14/08/2013,GENERAL CHEMICALS,Planned Care,ELGA PROCESS WATER,0002216808,691.20
Department of Health,East Sussex Hospitals NHS Trust,14/08/2013,LAUNDRY MACHINES,Commercial,JLA TOTAL CARE LTD,0002216816,607.20
Department of Health,East Sussex Hospitals NHS Trust,14/08/2013,COMPUTER CONSUMABLES,Commercial,CROWN LABELS MFG CO LTD,0002216827,424.26
Department of Health,East Sussex Hospitals NHS Trust,14/08/2013,OTHER STATIONERY,Commercial,CROWN LABELS MFG CO LTD,0002216827,166.80
Department of Health,East Sussex Hospitals NHS Trust,14/08/2013,M&S GENERAL SUPPLIES-OTHER,Planned Care,STARMED,0002216851,924.00
Department of Health,East Sussex Hospitals NHS Trust,14/08/2013,PRINTING/PRINTED MATERIALS,Commercial,FASTNET TAPES LTD,0002216882,972.00
Department of Health,East Sussex Hospitals NHS Trust,14/08/2013,M&S GENERAL SUPPLIES-OTHER,Urgent Care,ST JUDE MEDICAL UK LIMITED,0002216886,1998.72
Department of Health,East Sussex Hospitals NHS Trust,14/08/2013,INTERVENTIONAL DISPOSABLES,Urgent Care,ST JUDE MEDICAL UK LIMITED,0002216887,2640.00
Department of Health,East Sussex Hospitals NHS Trust,14/08/2013,CARDIOLOGY CATHETERS,Urgent Care,ST JUDE MEDICAL UK LIMITED,0002216887,3348.00
Department of Health,East Sussex Hospitals NHS Trust,14/08/2013,CARDIOLOGY CATHETERS,Urgent Care,ST JUDE MEDICAL UK LIMITED,0002216888,720.00
Department of Health,East Sussex Hospitals NHS Trust,14/08/2013,M&S GENERAL SUPPLIES-OTHER,Urgent Care,FANNIN (UK) LIMITED,0002216890,723.96
Department of Health,East Sussex Hospitals NHS Trust,14/08/2013,PRE-STERILE COMMERCIAL PACKS,Commercial,RICHARDSON HEALTHCARE,0002216899,983.04
Department of Health,East Sussex Hospitals NHS Trust,14/08/2013,M&S GENERAL SUPPLIES-OTHER,Integrated Care,ST JUDE MEDICAL UK LIMITED,0002216912,1998.72
Department of Health,East Sussex Hospitals NHS Trust,14/08/2013,CARDIOLOGY CATHETERS,Urgent Care,ST JUDE MEDICAL UK LIMITED,0002216913,2400.00
Department of Health,East Sussex Hospitals NHS Trust,14/08/2013,INTERVENTIONAL DISPOSABLES,Urgent Care,ABBOTT VASCULAR,0002216922,540.00
Department of Health,East Sussex Hospitals NHS Trust,14/08/2013,PRE-STERILE COMMERCIAL PACKS,Commercial,UNIFIED MEDICAL PRODUCTS LTD,0002216953,529.20
Department of Health,East Sussex Hospitals NHS Trust,14/08/2013,CARDIOLOGY STENTS,Urgent Care,ABBOTT VASCULAR,0002216968,972.00
Department of Health,East Sussex Hospitals NHS Trust,14/08/2013,PROCEDURE PACKS,Commercial,MEDLINE INDUSTRIES LIMITED,0002216970,8864.60
Department of Health,East Sussex Hospitals NHS Trust,14/08/2013,CARDIOLOGY CATHETERS,Urgent Care,ABBOTT VASCULAR,0002217036,72.00
Department of Health,East Sussex Hospitals NHS Trust,14/08/2013,CARDIOLOGY STENTS,Urgent Care,ABBOTT VASCULAR,0002217036,486.00
Department of Health,East Sussex Hospitals NHS Trust,14/08/2013,M&S GENERAL SUPPLIES-OTHER,Commercial,UNISURGE INTERNATIONAL LTD,0002217048,720.40
Department of Health,East Sussex Hospitals NHS Trust,14/08/2013,PRE-STERILE COMMERCIAL PACKS,Commercial,UNISURGE INTERNATIONAL LTD,0002217048,1418.22
Department of Health,East Sussex Hospitals NHS Trust,14/08/2013,GENERAL CHEMICALS,Integrated Care,ROCHE DIAGNOSTICS LTD,0002217051,7430.44
Department of Health,East Sussex Hospitals NHS Trust,14/08/2013,LAB.REAGENTS-MISCELLANEOUS,Integrated Care,ROCHE DIAGNOSTICS LTD,0002217051,205.34
Department of Health,East Sussex Hospitals NHS Trust,14/08/2013,ROCHE 2010 REAGENTS,Integrated Care,ROCHE DIAGNOSTICS LTD,0002217051,48956.84
Department of Health,East Sussex Hospitals NHS Trust,14/08/2013,PROSTHESIS - GRAFTS,Planned Care,COOK (UK) LTD,0002217061,2457.00
Department of Health,East Sussex Hospitals NHS Trust,14/08/2013,INTERVENTIONAL DISPOSABLES,Urgent Care,TERUMO UK,0002217064,790.20
Department of Health,East Sussex Hospitals NHS Trust,14/08/2013,LAB MATERIALS - OXOID,Integrated Care,OXOID LIMITED,0002217066,1087.13
Department of Health,East Sussex Hospitals NHS Trust,14/08/2013,LAB MATERIALS - OXOID,Integrated Care,OXOID LIMITED,0002217068,607.66
Department of Health,East Sussex Hospitals NHS Trust,14/08/2013,M&S GENERAL SUPPLIES-OTHER,Integrated Care,POLYBAGS LTD,0002217119,1716.60
Department of Health,East Sussex Hospitals NHS Trust,14/08/2013,M&S EQUIPMENT - OTHER,Planned Care,GLAMOX LUXO LIGHTING LIMITED,0002217125,648.00
Department of Health,East Sussex Hospitals NHS Trust,14/08/2013,FURNITURE & FITTINGS,Planned Care,GLAMOX LUXO LIGHTING LIMITED,0002217125,235.80
Department of Health,East Sussex Hospitals NHS Trust,14/08/2013,PRE-STERILE COMMERCIAL PACKS,Commercial,FULL SUPPORT HEALTHCARE LTD,0002217131,5407.51
Department of Health,East Sussex Hospitals NHS Trust,14/08/2013,STAFF UNIFORMS,Commercial,FULL SUPPORT HEALTHCARE LTD,0002217131,399.55
Department of Health,East Sussex Hospitals NHS Trust,14/08/2013,DISPOSABLE DRAPES,Commercial,FULL SUPPORT HEALTHCARE LTD,0002217131,441.06
Department of Health,East Sussex Hospitals NHS Trust,14/08/2013,TSSU INSTRUMENTATION,Commercial,REAM SURGICAL LTD,0002217163,1266.49
Department of Health,East Sussex Hospitals NHS Trust,14/08/2013,M&S GENERAL SUPPLIES-OTHER,Commercial,DLS MEDICAL (DIRECT LEISURE SUPPLIES),0002217169,172.80
Department of Health,East Sussex Hospitals NHS Trust,14/08/2013,PRE-STERILE COMMERCIAL PACKS,Commercial,DLS MEDICAL (DIRECT LEISURE SUPPLIES),0002217169,356.04
Department of Health,East Sussex Hospitals NHS Trust,14/08/2013,CARDIOLOGY CATHETERS,Urgent Care,ST JUDE MEDICAL UK LIMITED,0002217247,5400.00
Department of Health,East Sussex Hospitals NHS Trust,14/08/2013,M&S GENERAL SUPPLIES-OTHER,Urgent Care,ST JUDE MEDICAL UK LIMITED,0002217248,750.00
Department of Health,East Sussex Hospitals NHS Trust,14/08/2013,INTERVENTIONAL DISPOSABLES,Urgent Care,ST JUDE MEDICAL UK LIMITED,0002217248,600.00
Department of Health,East Sussex Hospitals NHS Trust,14/08/2013,M&S GENERAL SUPPLIES-OTHER,Commercial,CROWN LABELS MFG CO LTD,0002217249,1293.12
Department of Health,East Sussex Hospitals NHS Trust,14/08/2013,FURNITURE & FITTINGS,Commercial,TEAL FURNITURE LTD,0002217250,1247.58
Department of Health,East Sussex Hospitals NHS Trust,14/08/2013,M&S GENERAL SUPPLIES-OTHER,Commercial,UNISURGE INTERNATIONAL LTD,0002217261,625.37
Department of Health,East Sussex Hospitals NHS Trust,14/08/2013,PRE-STERILE COMMERCIAL PACKS,Commercial,UNISURGE INTERNATIONAL LTD,0002217261,773.12
Department of Health,East Sussex Hospitals NHS Trust,14/08/2013,VAC WOUND M&S SUPPLIES,Urgent Care,KCI UK MEDICAL LTD,0002217273,722.05
Department of Health,East Sussex Hospitals NHS Trust,14/08/2013,PROCEDURE PACKS,Commercial,MEDLINE INDUSTRIES LIMITED,0002217313,510.48
Department of Health,East Sussex Hospitals NHS Trust,14/08/2013,INTERVASCULAR STENTS,Integrated Care,W L  GORE & ASSOCIATES,0002217314,2295.60
Department of Health,East Sussex Hospitals NHS Trust,14/08/2013,ALPHA REAGENTS,Integrated Care,ALPHA LABORATORIES LTD,0002217315,13251.42
Department of Health,East Sussex Hospitals NHS Trust,14/08/2013,LAB MATERIALS - MAIN ANALYSER,Integrated Care,ALPHA LABORATORIES LTD,0002217320,3806.41
Department of Health,East Sussex Hospitals NHS Trust,14/08/2013,TSSU INSTRUMENTATION,Commercial,SMITH & NEPHEW ADVANCED SURGICAL DEVICES,0002217359,1083.60
Department of Health,East Sussex Hospitals NHS Trust,14/08/2013,DIAMED CONSUMABLES,Integrated Care,DIAMED-GB LTD,0002217361,434.64
Department of Health,East Sussex Hospitals NHS Trust,14/08/2013,GENERAL CHEMICALS,Integrated Care,DIAMED-GB LTD,0002217361,546.72
Department of Health,East Sussex Hospitals NHS Trust,14/08/2013,COMPUTER CONSUMABLES,Integrated Care,DIAMED-GB LTD,0002217361,216.00
Department of Health,East Sussex Hospitals NHS Trust,14/08/2013,POSTAGE,Integrated Care,DIAMED-GB LTD,0002217361,36.00
Department of Health,East Sussex Hospitals NHS Trust,14/08/2013,HIRE OF SPECIAL BEDS,Urgent Care,POSHCHAIR MEDICAL LTD,0002217391,1344.00
Department of Health,East Sussex Hospitals NHS Trust,14/08/2013,LAB MATERIALS - LAUNCH,Integrated Care,LAUNCH DIAGNOSTICS LTD,0002217503,2197.20
Department of Health,East Sussex Hospitals NHS Trust,14/08/2013,COMPUTER HARDWARE,Corporate Services,HEWLETT-PACKARD LTD,0002217519,647.98
Department of Health,East Sussex Hospitals NHS Trust,14/08/2013,COMPUTER MAINTENANCE-HARDWARE,Corporate Services,HEWLETT-PACKARD LTD,0002217519,120.96
Department of Health,East Sussex Hospitals NHS Trust,14/08/2013,FURNITURE & FITTINGS,Commercial,KNIGHTSBRIDGE FURNISHINGS LTS,0002217547,916.80
Department of Health,East Sussex Hospitals NHS Trust,14/08/2013,LAB MATERIALS - OXOID,Integrated Care,OXOID LIMITED,0002217592,1069.22
Department of Health,East Sussex Hospitals NHS Trust,14/08/2013,LAB MATERIALS - OXOID,Integrated Care,OXOID LIMITED,0002217594,576.05
Department of Health,East Sussex Hospitals NHS Trust,14/08/2013,COMPUTER HARDWARE,Integrated Care,HEWLETT-PACKARD LTD,0002217749,711.78
Department of Health,East Sussex Hospitals NHS Trust,14/08/2013,COMPUTER HARDWARE,Planned Care,HEWLETT-PACKARD LTD,0002217750,824.15
Department of Health,East Sussex Hospitals NHS Trust,14/08/2013,LAB MATERIALS - OXOID,Integrated Care,OXOID LIMITED,0002217792,1030.03
Department of Health,East Sussex Hospitals NHS Trust,14/08/2013,GENERAL LAB. CONSUMABLES,Integrated Care,GREINER BIO-ONE LTD,0002217847,2725.90
Department of Health,East Sussex Hospitals NHS Trust,14/08/2013,X-RAY - EQUIPMENT,Urgent Care,KENEX (ELECTRO-MEDICAL) LTD,0002217859,1442.40
Department of Health,East Sussex Hospitals NHS Trust,14/08/2013,HIRE WATER COOLERS,Planned Care,PHS GROUP PLC,0002217876,-3967.67
Department of Health,East Sussex Hospitals NHS Trust,14/08/2013,COMPUTER SOFTWARE,Corporate Services,SAFESCRIPT LTD,0002217980,1500.00
Department of Health,East Sussex Hospitals NHS Trust,14/08/2013,TSSU INSTRUMENTATION,Commercial,SD HEALTHCARE LTD,0002217996,1418.39
Department of Health,East Sussex Hospitals NHS Trust,14/08/2013,LAB MATERIALS - MAIN ANALYSER,Integrated Care,ORTHO-CLINICAL DIAGNOSTICS,0002218004,120612.36
Department of Health,East Sussex Hospitals NHS Trust,14/08/2013,"BOOKS, JOURNALS & SUBCRIPTIONS",Corporate Services,BMJ PUBLISHING GROUP LIMITED,0002218014,3164.16
Department of Health,East Sussex Hospitals NHS Trust,14/08/2013,LAB MATERIALS - OXOID,Integrated Care,OXOID LIMITED,0002218054,1441.12
Department of Health,East Sussex Hospitals NHS Trust,14/08/2013,CARDIOLOGY CATHETERS,Urgent Care,PYRAMED,0002218089,528.00
Department of Health,East Sussex Hospitals NHS Trust,14/08/2013,OESOPHAGEAL (UPPER GI) STENTS,Integrated Care,PYRAMED,0002218090,744.00
Department of Health,East Sussex Hospitals NHS Trust,14/08/2013,BILIARY STENTS,Integrated Care,PYRAMED,0002218290,909.60
Department of Health,East Sussex Hospitals NHS Trust,14/08/2013,CARDIOLOGY CATHETERS,Urgent Care,PYRAMED,0002218294,1032.00
Department of Health,East Sussex Hospitals NHS Trust,14/08/2013,GENERAL LAB. CONSUMABLES,Integrated Care,GREINER BIO-ONE LTD,0002218312,615.54
Department of Health,East Sussex Hospitals NHS Trust,14/08/2013,SENSITIVITY DISKS,Integrated Care,OXOID LIMITED,0002218401,30.30
Department of Health,East Sussex Hospitals NHS Trust,14/08/2013,LAB MATERIALS - OXOID,Integrated Care,OXOID LIMITED,0002218401,1483.84
Department of Health,East Sussex Hospitals NHS Trust,14/08/2013,GENERAL LAB. CONSUMABLES,Integrated Care,VITECH SCIENTIFIC LTD,0002218420,460.80
Department of Health,East Sussex Hospitals NHS Trust,14/08/2013,LAB.REAGENTS-MISCELLANEOUS,Integrated Care,VITECH SCIENTIFIC LTD,0002218420,624.00
Department of Health,East Sussex Hospitals NHS Trust,14/08/2013,QUALITY CONTROL MATERIAL,Integrated Care,VITECH SCIENTIFIC LTD,0002218420,151.20
Department of Health,East Sussex Hospitals NHS Trust,14/08/2013,GENERAL LAB. CONSUMABLES,Integrated Care,SEBIA UK LTD,0002218496,143.48
Department of Health,East Sussex Hospitals NHS Trust,14/08/2013,LAB.REAGENTS-MISCELLANEOUS,Integrated Care,SEBIA UK LTD,0002218496,2441.49
Department of Health,East Sussex Hospitals NHS Trust,14/08/2013,LAB MATERIALS - OXOID,Integrated Care,OXOID LIMITED,0002218588,1573.79
Department of Health,East Sussex Hospitals NHS Trust,14/08/2013,GENERAL LABORATORY EQUIPMENT,Integrated Care,ELGA PROCESS WATER,0002218651,162.00
Department of Health,East Sussex Hospitals NHS Trust,14/08/2013,GENERAL LAB. CONSUMABLES,Integrated Care,ELGA PROCESS WATER,0002218651,962.40
Department of Health,East Sussex Hospitals NHS Trust,14/08/2013,LAB.REAGENTS-MISCELLANEOUS,Integrated Care,ELGA PROCESS WATER,0002218651,514.80
Department of Health,East Sussex Hospitals NHS Trust,14/08/2013,STORAGE - EXTERNAL FACILITIES,Commercial,RESTORE PLC,0002218857,561.65
Department of Health,East Sussex Hospitals NHS Trust,14/08/2013,FURNITURE & FITTINGS,Commercial,RESTORE PLC,0002218857,157.92
Department of Health,East Sussex Hospitals NHS Trust,14/08/2013,M&S GENERAL SUPPLIES-OTHER,Commercial,NIDA SOLUTIONS LTD,0002218897,528.00
Department of Health,East Sussex Hospitals NHS Trust,14/08/2013,PRE-STERILE COMMERCIAL PACKS,Commercial,NIDA SOLUTIONS LTD,0002218897,239.94
Department of Health,East Sussex Hospitals NHS Trust,14/08/2013,"BOOKS, JOURNALS & SUBCRIPTIONS",Planned Care,PROFESSIONAL BOOKSHOPS LTD,0002219023,1134.69
Department of Health,East Sussex Hospitals NHS Trust,14/08/2013,OESOPHAGEAL (UPPER GI) STENTS,Integrated Care,PYRAMED,0002219036,744.00
Department of Health,East Sussex Hospitals NHS Trust,14/08/2013,STOCK-ASCRIBE EDGH,Pharmacy Stock,PIERRE FABRE ONCOLOGY,0013006294,1319.52
Department of Health,East Sussex Hospitals NHS Trust,14/08/2013,STOCK-ASCRIBE EDGH,Pharmacy Stock,HOSPIRA UK LIMITED,0013006297,1068.00
Department of Health,East Sussex Hospitals NHS Trust,14/08/2013,STOCK-ASCRIBE EDGH,Pharmacy Stock,HOSPIRA UK LIMITED,0013006310,1620.00
Department of Health,East Sussex Hospitals NHS Trust,14/08/2013,STOCK-ASCRIBE EDGH,Pharmacy Stock,BAXTER HEALTHCARE (BERKSHIRE)LTD,0013006627,2203.30
Department of Health,East Sussex Hospitals NHS Trust,14/08/2013,STOCK-ASCRIBE EDGH,Pharmacy Stock,BAXTER HEALTHCARE (BERKSHIRE)LTD,0013006878,2144.22
Department of Health,East Sussex Hospitals NHS Trust,14/08/2013,STOCK-ASCRIBE EDGH,Pharmacy Stock,BAXTER HEALTHCARE (BERKSHIRE)LTD,0013006890,4425.41
Department of Health,East Sussex Hospitals NHS Trust,14/08/2013,STOCK-ASCRIBE EDGH,Pharmacy Stock,ALCON EYE CARE UK LTD,0013006910,878.40
Department of Health,East Sussex Hospitals NHS Trust,14/08/2013,STOCK-ASCRIBE EDGH,Pharmacy Stock,HOSPIRA UK LIMITED,0013006916,1080.00
Department of Health,East Sussex Hospitals NHS Trust,14/08/2013,STOCK-ASCRIBE EDGH,Pharmacy Stock,MEDCO HEALTH SOLUTIONS LTD,0013007056,762.97
Department of Health,East Sussex Hospitals NHS Trust,14/08/2013,STOCK-ASCRIBE EDGH,Pharmacy Stock,BAXTER HEALTHCARE (BERKSHIRE)LTD,0013007324,3211.58
Department of Health,East Sussex Hospitals NHS Trust,14/08/2013,STOCK-ASCRIBE EDGH,Pharmacy Stock,ROCHE PRODUCTS LTD,0013007495,31433.40
Department of Health,East Sussex Hospitals NHS Trust,14/08/2013,STOCK-ASCRIBE EDGH,Pharmacy Stock,GAMBRO LUNDIA AB,0013007496,1260.00
Department of Health,East Sussex Hospitals NHS Trust,14/08/2013,STOCK-ASCRIBE EDGH,Pharmacy Stock,ROCHE PRODUCTS LTD,0013007511,1455.96
Department of Health,East Sussex Hospitals NHS Trust,14/08/2013,STOCK-ASCRIBE EDGH,Pharmacy Stock,ROCHE PRODUCTS LTD,0013007512,4191.00
Department of Health,East Sussex Hospitals NHS Trust,14/08/2013,STOCK-ASCRIBE EDGH,Pharmacy Stock,BAXTER HEALTHCARE (BERKSHIRE)LTD,0013007515,2481.60
Department of Health,East Sussex Hospitals NHS Trust,14/08/2013,STOCK-ASCRIBE EDGH,Pharmacy Stock,BAXTER HEALTHCARE (BERKSHIRE)LTD,0013007516,4489.99
Department of Health,East Sussex Hospitals NHS Trust,14/08/2013,STOCK-ASCRIBE EDGH,Pharmacy Stock,ROCHE PRODUCTS LTD,0013007525,18857.40
Department of Health,East Sussex Hospitals NHS Trust,14/08/2013,STOCK-ASCRIBE EDGH,Pharmacy Stock,NOVARTIS PHARMACEUTICALS UK LTD,0013007526,1523.88
Department of Health,East Sussex Hospitals NHS Trust,14/08/2013,STOCK-ASCRIBE EDGH,Pharmacy Stock,BAXTER HEALTHCARE (BERKSHIRE)LTD,0013007656,1768.46
Department of Health,East Sussex Hospitals NHS Trust,14/08/2013,STOCK-ASCRIBE EDGH,Pharmacy Stock,ROCHE PRODUCTS LTD,0013007708,33024.98
Department of Health,East Sussex Hospitals NHS Trust,14/08/2013,STOCK-ASCRIBE EDGH,Pharmacy Stock,ROCHE PRODUCTS LTD,0013007710,2168.71
Department of Health,East Sussex Hospitals NHS Trust,14/08/2013,STOCK-ASCRIBE EDGH,Pharmacy Stock,BAXTER HEALTHCARE (BERKSHIRE)LTD,0013007714,2626.33
Department of Health,East Sussex Hospitals NHS Trust,14/08/2013,STOCK-ASCRIBE EDGH,Pharmacy Stock,BAXTER HEALTHCARE (BERKSHIRE)LTD,0013007715,707.71
Department of Health,East Sussex Hospitals NHS Trust,14/08/2013,STOCK-ASCRIBE EDGH,Pharmacy Stock,NOVARTIS PHARMACEUTICALS UK LTD,0013007840,3040.56
Department of Health,East Sussex Hospitals NHS Trust,14/08/2013,STOCK-ASCRIBE EDGH,Pharmacy Stock,NOVARTIS PHARMACEUTICALS UK LTD,0013007843,2700.00
Department of Health,East Sussex Hospitals NHS Trust,14/08/2013,STOCK-ASCRIBE EDGH,Pharmacy Stock,BAXTER HEALTHCARE (BERKSHIRE)LTD,0013007852,1107.00
Department of Health,East Sussex Hospitals NHS Trust,14/08/2013,STOCK-ASCRIBE EDGH,Pharmacy Stock,BAXTER HEALTHCARE (BERKSHIRE)LTD,0013007858,840.00
Department of Health,East Sussex Hospitals NHS Trust,14/08/2013,STOCK-ASCRIBE EDGH,Pharmacy Stock,BAXTER HEALTHCARE (BERKSHIRE)LTD,0013007860,504.00
Department of Health,East Sussex Hospitals NHS Trust,14/08/2013,STOCK-ASCRIBE EDGH,Pharmacy Stock,ROCHE PRODUCTS LTD,0013007863,7084.82
Department of Health,East Sussex Hospitals NHS Trust,14/08/2013,STOCK-ASCRIBE EDGH,Pharmacy Stock,NOVARTIS PHARMACEUTICALS UK LTD,0013007864,3385.80
Department of Health,East Sussex Hospitals NHS Trust,14/08/2013,STOCK-ASCRIBE EDGH,Pharmacy Stock,BAXTER HEALTHCARE (BERKSHIRE)LTD,0013007869,821.76
Department of Health,East Sussex Hospitals NHS Trust,14/08/2013,STOCK-ASCRIBE EDGH,Pharmacy Stock,BAXTER HEALTHCARE (BERKSHIRE)LTD,0013007923,4405.34
Department of Health,East Sussex Hospitals NHS Trust,14/08/2013,STOCK-ASCRIBE EDGH,Pharmacy Stock,ROCHE PRODUCTS LTD,0013007925,4581.84
Department of Health,East Sussex Hospitals NHS Trust,14/08/2013,STOCK-ASCRIBE EDGH,Pharmacy Stock,NOVARTIS PHARMACEUTICALS UK LTD,0013007928,3385.80
Department of Health,East Sussex Hospitals NHS Trust,14/08/2013,STOCK-ASCRIBE EDGH,Pharmacy Stock,ROCHE PRODUCTS LTD,0013008021,4191.00
Department of Health,East Sussex Hospitals NHS Trust,14/08/2013,STOCK-ASCRIBE EDGH,Pharmacy Stock,NOVARTIS PHARMACEUTICALS UK LTD,0013008022,2700.00
Department of Health,East Sussex Hospitals NHS Trust,14/08/2013,STOCK-ASCRIBE EDGH,Pharmacy Stock,NOVARTIS PHARMACEUTICALS UK LTD,0013008023,5400.00
Department of Health,East Sussex Hospitals NHS Trust,14/08/2013,STOCK-ASCRIBE EDGH,Pharmacy Stock,ROCHE PRODUCTS LTD,0013008025,14666.40
Department of Health,East Sussex Hospitals NHS Trust,14/08/2013,STOCK-ASCRIBE EDGH,Pharmacy Stock,BIO PRODUCTS LABORATORY,0013008028,3095.00
Department of Health,East Sussex Hospitals NHS Trust,14/08/2013,STOCK-ASCRIBE EDGH,Pharmacy Stock,ROCHE PRODUCTS LTD,0013008034,38518.22
Department of Health,East Sussex Hospitals NHS Trust,14/08/2013,STOCK-ASCRIBE EDGH,Pharmacy Stock,ROCHE PRODUCTS LTD,0013008035,2168.71
Department of Health,East Sussex Hospitals NHS Trust,14/08/2013,STOCK-ASCRIBE EDGH,Pharmacy Stock,BAXTER HEALTHCARE (BERKSHIRE)LTD,0013008042,2245.85
Department of Health,East Sussex Hospitals NHS Trust,14/08/2013,STOCK-ASCRIBE EDGH,Pharmacy Stock,BAXTER HEALTHCARE (BERKSHIRE)LTD,0013008043,3234.40
Department of Health,East Sussex Hospitals NHS Trust,21/08/2013,INTERNAL AUDIT,Corporate Services,SUSSEX COMMUNITY NHS TRUST,0000135748,14361.00
Department of Health,East Sussex Hospitals NHS Trust,21/08/2013,INTERNAL AUDIT,Corporate Services,SUSSEX COMMUNITY NHS TRUST,0000136006,14361.00
Department of Health,East Sussex Hospitals NHS Trust,21/08/2013,WHEELCHAIR,Integrated Care,SUSSEX COMMUNITY NHS TRUST,0000136269,1430.40
Department of Health,East Sussex Hospitals NHS Trust,21/08/2013,SPECIAL SEATING,Integrated Care,SUSSEX COMMUNITY NHS TRUST,0000136271,2000.00
Department of Health,East Sussex Hospitals NHS Trust,21/08/2013,WHEELCHAIR,Integrated Care,SUSSEX COMMUNITY NHS TRUST,0000136461,1031.30
Department of Health,East Sussex Hospitals NHS Trust,21/08/2013,YEAR END NRVS JV GENERAL CRS,NHS Creditors,SUSSEX COMMUNITY NHS TRUST,0000136570,1119.82
Department of Health,East Sussex Hospitals NHS Trust,21/08/2013,YEAR END NRVS JV GENERAL CRS,NHS Creditors,SUSSEX COMMUNITY NHS TRUST,0000136573,1104.00
Department of Health,East Sussex Hospitals NHS Trust,21/08/2013,WHEELCHAIR,Integrated Care,SUSSEX COMMUNITY NHS TRUST,0000136574,2023.70
Department of Health,East Sussex Hospitals NHS Trust,21/08/2013,YEAR END NRVS JV GENERAL CRS,NHS Creditors,SUSSEX COMMUNITY NHS TRUST,0000136591,3249.80
Department of Health,East Sussex Hospitals NHS Trust,21/08/2013,SUSSEX COMMUNITY NHS TRUST,Commercial,SUSSEX COMMUNITY NHS TRUST,0000136675,9686.00
Department of Health,East Sussex Hospitals NHS Trust,21/08/2013,ADVERT-OTHER,Corporate Services,ISLE OF WIGHT NHS TRUST,0000137147,2063.54
Department of Health,East Sussex Hospitals NHS Trust,21/08/2013,ADVERT-OTHER,Corporate Services,ISLE OF WIGHT NHS TRUST,0000137147,376.20
Department of Health,East Sussex Hospitals NHS Trust,21/08/2013,ADVERT-MEDICAL & DENTAL,Corporate Services,ISLE OF WIGHT NHS TRUST,0000137147,1198.88
Department of Health,East Sussex Hospitals NHS Trust,21/08/2013,SR SHEFFIELD TEACHING HOSP,Integrated Care,SHEFFIELD TEACHING HOSP NHS FOUNDATION T,0000137149,1228.28
Department of Health,East Sussex Hospitals NHS Trust,21/08/2013,SR SHEFFIELD TEACHING HOSP,Integrated Care,SHEFFIELD TEACHING HOSP NHS FOUNDATION T,0000137149,160.76
Department of Health,East Sussex Hospitals NHS Trust,21/08/2013,SR SHEFFIELD TEACHING HOSP,Integrated Care,SHEFFIELD TEACHING HOSP NHS FOUNDATION T,0000137149,2352.65
Department of Health,East Sussex Hospitals NHS Trust,21/08/2013,TRAINING COURSE FEES-OTHER,Integrated Care,NHS CENTRAL MIDLANDS CSU,0000137242,7687.50
Department of Health,East Sussex Hospitals NHS Trust,21/08/2013,NHS SUPPLY CHAIN CREDITORS,Cross Site,NHS SUPPLY CHAIN,0000137291,172201.84
Department of Health,East Sussex Hospitals NHS Trust,21/08/2013,SR GREAT ORMOND STREET NHSFT,Integrated Care,GREAT ORMOND STREET HOSPITAL FOR CHILDRE,0000137298,793.80
Department of Health,East Sussex Hospitals NHS Trust,21/08/2013,NHS SUPPLY CHAIN CREDITORS,Cross Site,NHS SUPPLY CHAIN,0000137323,229997.99
Department of Health,East Sussex Hospitals NHS Trust,21/08/2013,DATA LANDLINE RENTAL,Corporate Services,NHS SURREY & SUSSEX CSU,0000137341,109224.00
Department of Health,East Sussex Hospitals NHS Trust,21/08/2013,SLA SURREY & SUSSEX  CSU,Corporate Services,NHS SURREY & SUSSEX CSU,0000137343,67794.00
Department of Health,East Sussex Hospitals NHS Trust,21/08/2013,SR SHEFFIELD TEACHING HOSP,Integrated Care,SHEFFIELD TEACHING HOSP NHS FOUNDATION T,0000137374,2251.46
Department of Health,East Sussex Hospitals NHS Trust,21/08/2013,SR SHEFFIELD TEACHING HOSP,Integrated Care,SHEFFIELD TEACHING HOSP NHS FOUNDATION T,0000137374,132.16
Department of Health,East Sussex Hospitals NHS Trust,21/08/2013,COMPUTER SOFTWARE,Corporate Services,NHS SURREY & SUSSEX CSU,0000137449,1104.00
Department of Health,East Sussex Hospitals NHS Trust,21/08/2013,AGENCY SHO,Planned Care,MYLOCUM LTD,0000289265,3113.22
Department of Health,East Sussex Hospitals NHS Trust,21/08/2013,AGENCY NURSE - QUALIFIED,Urgent Care,MAYDAY HEALTHCARE PLC,0000289659,538.76
Department of Health,East Sussex Hospitals NHS Trust,21/08/2013,AGENCY NURSE - QUALIFIED,Urgent Care,MAYDAY HEALTHCARE PLC,0000289660,736.74
Department of Health,East Sussex Hospitals NHS Trust,21/08/2013,AGENCY NURSE - QUALIFIED,Urgent Care,MAYDAY HEALTHCARE PLC,0000289666,828.14
Department of Health,East Sussex Hospitals NHS Trust,21/08/2013,AGENCY NURSE - QUALIFIED,Urgent Care,MAYDAY HEALTHCARE PLC,0000289667,1976.93
Department of Health,East Sussex Hospitals NHS Trust,21/08/2013,AGENCY NURSE - QUALIFIED,Urgent Care,MAYDAY HEALTHCARE PLC,0000289673,1593.35
Department of Health,East Sussex Hospitals NHS Trust,21/08/2013,AGENCY NURSE - QUALIFIED,Urgent Care,MAYDAY HEALTHCARE PLC,0000289674,507.86
Department of Health,East Sussex Hospitals NHS Trust,21/08/2013,AGENCY NURSE - QUALIFIED,Urgent Care,MAYDAY HEALTHCARE PLC,0000289678,572.47
Department of Health,East Sussex Hospitals NHS Trust,21/08/2013,AGENCY NURSE - QUALIFIED,Urgent Care,MAYDAY HEALTHCARE PLC,0000289679,1085.49
Department of Health,East Sussex Hospitals NHS Trust,21/08/2013,AGENCY NURSE - QUALIFIED,Urgent Care,MAYDAY HEALTHCARE PLC,0000289680,572.47
Department of Health,East Sussex Hospitals NHS Trust,21/08/2013,AGENCY NURSE - QUALIFIED,Urgent Care,MAYDAY HEALTHCARE PLC,0000289690,507.86
Department of Health,East Sussex Hospitals NHS Trust,21/08/2013,AGENCY NURSE - QUALIFIED,Urgent Care,MAYDAY HEALTHCARE PLC,0000289691,538.87
Department of Health,East Sussex Hospitals NHS Trust,21/08/2013,AGENCY NURSE - QUALIFIED,Urgent Care,MAYDAY HEALTHCARE PLC,0000289693,507.86
Department of Health,East Sussex Hospitals NHS Trust,21/08/2013,AGENCY NURSE - QUALIFIED,Urgent Care,MAYDAY HEALTHCARE PLC,0000289694,597.36
Department of Health,East Sussex Hospitals NHS Trust,21/08/2013,AGENCY NURSE - QUALIFIED,Urgent Care,MAYDAY HEALTHCARE PLC,0000289695,1561.46
Department of Health,East Sussex Hospitals NHS Trust,21/08/2013,AGENCY NURSE - QUALIFIED,Urgent Care,MAYDAY HEALTHCARE PLC,0000289696,547.58
Department of Health,East Sussex Hospitals NHS Trust,21/08/2013,AGENCY NURSE - QUALIFIED,Urgent Care,MAYDAY HEALTHCARE PLC,0000289721,840.61
Department of Health,East Sussex Hospitals NHS Trust,21/08/2013,AGENCY RADIOGRAPHY STAFF,Integrated Care,RIG LOCUMS LIMITED,0000289877,2385.00
Department of Health,East Sussex Hospitals NHS Trust,21/08/2013,AGENCY NURSE - QUALIFIED,Urgent Care,MAYDAY HEALTHCARE PLC,0000289897,507.86
Department of Health,East Sussex Hospitals NHS Trust,21/08/2013,AGENCY NURSE - QUALIFIED,Urgent Care,MAYDAY HEALTHCARE PLC,0000289898,1473.48
Department of Health,East Sussex Hospitals NHS Trust,21/08/2013,AGENCY NURSE - QUALIFIED,Integrated Care,MAYDAY HEALTHCARE PLC,0000289903,1712.36
Department of Health,East Sussex Hospitals NHS Trust,21/08/2013,AGENCY NURSE - QUALIFIED,Planned Care,MAYDAY HEALTHCARE PLC,0000289907,736.74
Department of Health,East Sussex Hospitals NHS Trust,21/08/2013,AGENCY NURSE - QUALIFIED,Urgent Care,MAYDAY HEALTHCARE PLC,0000289920,507.86
Department of Health,East Sussex Hospitals NHS Trust,21/08/2013,AGENCY NURSE - QUALIFIED,Urgent Care,MAYDAY HEALTHCARE PLC,0000289922,507.86
Department of Health,East Sussex Hospitals NHS Trust,21/08/2013,AGENCY NURSE - QUALIFIED,Urgent Care,MAYDAY HEALTHCARE PLC,0000289925,2089.80
Department of Health,East Sussex Hospitals NHS Trust,21/08/2013,AGENCY NURSE - QUALIFIED,Urgent Care,MAYDAY HEALTHCARE PLC,0000289929,1621.97
Department of Health,East Sussex Hospitals NHS Trust,21/08/2013,AGENCY NURSE - QUALIFIED,Planned Care,MAYDAY HEALTHCARE PLC,0000289932,1150.44
Department of Health,East Sussex Hospitals NHS Trust,21/08/2013,AGENCY MLSO,Integrated Care,DAY WEBSTER LTD,0000289938,1031.74
Department of Health,East Sussex Hospitals NHS Trust,21/08/2013,AGENCY MLSO,Integrated Care,DAY WEBSTER LTD,0000289939,1973.32
Department of Health,East Sussex Hospitals NHS Trust,21/08/2013,AGENCY MLSO,Integrated Care,DAY WEBSTER LTD,0000289940,2453.56
Department of Health,East Sussex Hospitals NHS Trust,21/08/2013,AGENCY MLSO,Integrated Care,DAY WEBSTER LTD,0000289942,1415.47
Department of Health,East Sussex Hospitals NHS Trust,21/08/2013,AGENCY MLSO,Integrated Care,DAY WEBSTER LTD,0000289943,2106.52
Department of Health,East Sussex Hospitals NHS Trust,21/08/2013,AGENCY RADIOGRAPHY STAFF,Integrated Care,RIG MEDICAL RECRUIT LTD,0000289957,2677.14
Department of Health,East Sussex Hospitals NHS Trust,21/08/2013,AGENCY RADIOGRAPHY STAFF,Integrated Care,RIG MEDICAL RECRUIT LTD,0000289958,627.31
Department of Health,East Sussex Hospitals NHS Trust,21/08/2013,AGENCY RADIOGRAPHY STAFF,Integrated Care,RIG MEDICAL RECRUIT LTD,0000289959,1003.80
Department of Health,East Sussex Hospitals NHS Trust,21/08/2013,AGENCY RADIOGRAPHY STAFF,Integrated Care,RIG MEDICAL RECRUIT LTD,0000289960,1003.80
Department of Health,East Sussex Hospitals NHS Trust,21/08/2013,AGENCY RADIOGRAPHY STAFF,Integrated Care,RIG MEDICAL RECRUIT LTD,0000289961,808.92
Department of Health,East Sussex Hospitals NHS Trust,21/08/2013,AGENCY RADIOGRAPHY STAFF,Integrated Care,RIG MEDICAL RECRUIT LTD,0000289962,1254.62
Department of Health,East Sussex Hospitals NHS Trust,21/08/2013,AGENCY RADIOGRAPHY STAFF,Integrated Care,RIG MEDICAL RECRUIT LTD,0000289967,1003.80
Department of Health,East Sussex Hospitals NHS Trust,21/08/2013,AGENCY RADIOGRAPHY STAFF,Integrated Care,RIG MEDICAL RECRUIT LTD,0000289968,630.00
Department of Health,East Sussex Hospitals NHS Trust,21/08/2013,AGENCY NURSE - UNQUALIFIED,Urgent Care,PREMIERCARE NETWORK LTD,0000289994,556.90
Department of Health,East Sussex Hospitals NHS Trust,21/08/2013,AGENCY RADIOGRAPHY STAFF,Integrated Care,RIG MEDICAL RECRUIT LTD,0000290015,1003.80
Department of Health,East Sussex Hospitals NHS Trust,21/08/2013,AGENCY RADIOGRAPHY STAFF,Integrated Care,RIG MEDICAL RECRUIT LTD,0000290018,1197.00
Department of Health,East Sussex Hospitals NHS Trust,21/08/2013,AGENCY RADIOGRAPHY STAFF,Integrated Care,RIG MEDICAL RECRUIT LTD,0000290019,1089.84
Department of Health,East Sussex Hospitals NHS Trust,21/08/2013,AGENCY OCC THERAPY STAFF,Integrated Care,RIG MEDICAL RECRUIT LTD,0000290020,1579.50
Department of Health,East Sussex Hospitals NHS Trust,21/08/2013,AGENCY RADIOGRAPHY STAFF,Integrated Care,RIG MEDICAL RECRUIT LTD,0000290029,1003.80
Department of Health,East Sussex Hospitals NHS Trust,21/08/2013,AGENCY NURSE - QUALIFIED,Urgent Care,MAYDAY HEALTHCARE PLC,0000290068,538.87
Department of Health,East Sussex Hospitals NHS Trust,21/08/2013,AGENCY NURSE - QUALIFIED,Urgent Care,MAYDAY HEALTHCARE PLC,0000290069,546.62
Department of Health,East Sussex Hospitals NHS Trust,21/08/2013,AGENCY NURSE - QUALIFIED,Urgent Care,MAYDAY HEALTHCARE PLC,0000290070,1505.14
Department of Health,East Sussex Hospitals NHS Trust,21/08/2013,AGENCY NURSE - QUALIFIED,Urgent Care,MAYDAY HEALTHCARE PLC,0000290076,752.57
Department of Health,East Sussex Hospitals NHS Trust,21/08/2013,AGENCY NURSE - QUALIFIED,Urgent Care,MAYDAY HEALTHCARE PLC,0000290129,1551.83
Department of Health,East Sussex Hospitals NHS Trust,21/08/2013,AGENCY NURSE - QUALIFIED,Urgent Care,MAYDAY HEALTHCARE PLC,0000290159,513.02
Department of Health,East Sussex Hospitals NHS Trust,21/08/2013,AGENCY PHYSIOTHERAPY STAFF,Integrated Care,PIERS MEADOWS RECRUITMENT LIMITED,0000290184,963.65
Department of Health,East Sussex Hospitals NHS Trust,21/08/2013,AGENCY PHYSIOTHERAPY STAFF,Integrated Care,PIERS MEADOWS RECRUITMENT LIMITED,0000290185,1442.70
Department of Health,East Sussex Hospitals NHS Trust,21/08/2013,AGENCY PHYSIOTHERAPY STAFF,Integrated Care,PIERS MEADOWS RECRUITMENT LIMITED,0000290186,1407.60
Department of Health,East Sussex Hospitals NHS Trust,21/08/2013,AGENCY OCC THERAPY STAFF,Integrated Care,THE ID GROUP LTD (MEDICAL),0000290434,1743.76
Department of Health,East Sussex Hospitals NHS Trust,21/08/2013,AGENCY OCC THERAPY STAFF,Integrated Care,THE ID GROUP LTD (MEDICAL),0000290435,1743.76
Department of Health,East Sussex Hospitals NHS Trust,21/08/2013,AGENCY OCC THERAPY STAFF,Integrated Care,THE ID GROUP LTD (MEDICAL),0000290436,1743.76
Department of Health,East Sussex Hospitals NHS Trust,21/08/2013,AGENCY OCC THERAPY STAFF,Integrated Care,THE ID GROUP LTD (MEDICAL),0000290437,1743.76
Department of Health,East Sussex Hospitals NHS Trust,21/08/2013,AGENCY RADIOGRAPHY STAFF,Integrated Care,RIG MEDICAL RECRUIT LTD,0000290444,539.28
Department of Health,East Sussex Hospitals NHS Trust,21/08/2013,AGENCY RADIOGRAPHY STAFF,Integrated Care,RIG MEDICAL RECRUIT LTD,0000290446,539.28
Department of Health,East Sussex Hospitals NHS Trust,21/08/2013,AGENCY RADIOGRAPHY STAFF,Integrated Care,RIG MEDICAL RECRUIT LTD,0000290454,663.40
Department of Health,East Sussex Hospitals NHS Trust,21/08/2013,AGENCY RADIOGRAPHY STAFF,Integrated Care,RIG MEDICAL RECRUIT LTD,0000290455,1032.48
Department of Health,East Sussex Hospitals NHS Trust,21/08/2013,AGENCY RADIOGRAPHY STAFF,Integrated Care,RIG MEDICAL RECRUIT LTD,0000290456,651.00
Department of Health,East Sussex Hospitals NHS Trust,21/08/2013,AGENCY RADIOGRAPHY STAFF,Integrated Care,RIG LOCUMS LIMITED,0000290460,4524.00
Department of Health,East Sussex Hospitals NHS Trust,21/08/2013,AGENCY PHYSIOTHERAPY STAFF,Integrated Care,PIERS MEADOWS RECRUITMENT LIMITED,0000290499,1764.19
Department of Health,East Sussex Hospitals NHS Trust,21/08/2013,AGENCY PHYSIOTHERAPY STAFF,Integrated Care,PIERS MEADOWS RECRUITMENT LIMITED,0000290501,1126.08
Department of Health,East Sussex Hospitals NHS Trust,21/08/2013,AGENCY SPEECH THERAPIST,Integrated Care,PIERS MEADOWS RECRUITMENT LIMITED,0000290502,2684.75
Department of Health,East Sussex Hospitals NHS Trust,21/08/2013,AGENCY SHO,Urgent Care,MEDACS HEALTHCARE SERVICES LTD,0000290557,2491.84
Department of Health,East Sussex Hospitals NHS Trust,21/08/2013,AGENCY STAFF GRADE,Urgent Care,ATHONA LIMITED,0000290559,1099.38
Department of Health,East Sussex Hospitals NHS Trust,21/08/2013,AGENCY CONSULTANT,Planned Care,ATHONA LIMITED,0000290560,5299.20
Department of Health,East Sussex Hospitals NHS Trust,21/08/2013,AGENCY SHO,Urgent Care,MEDACS HEALTHCARE SERVICES LTD,0000290561,2582.44
Department of Health,East Sussex Hospitals NHS Trust,21/08/2013,AGENCY SHO,Urgent Care,MEDACS HEALTHCARE SERVICES LTD,0000290562,1359.19
Department of Health,East Sussex Hospitals NHS Trust,21/08/2013,AGENCY SHO,Urgent Care,MEDACS HEALTHCARE SERVICES LTD,0000290563,2718.36
Department of Health,East Sussex Hospitals NHS Trust,21/08/2013,AGENCY CONSULTANT,Planned Care,MEDACS HEALTHCARE SERVICES LTD,0000290578,5313.11
Department of Health,East Sussex Hospitals NHS Trust,21/08/2013,AGENCY PHYSIOTHERAPY STAFF,Integrated Care,SANCTUARY PERSONNEL LTD,0000290606,1492.73
Department of Health,East Sussex Hospitals NHS Trust,21/08/2013,AGENCY NURSE - QUALIFIED,Planned Care,MAYDAY HEALTHCARE PLC,0000290654,596.21
Department of Health,East Sussex Hospitals NHS Trust,21/08/2013,AGENCY CONSULTANT,Urgent Care,MYLOCUM LTD,0000290813,7056.00
Department of Health,East Sussex Hospitals NHS Trust,21/08/2013,AGENCY CONSULTANT,Urgent Care,MYLOCUM LTD,0000290814,2898.00
Department of Health,East Sussex Hospitals NHS Trust,21/08/2013,AGENCY RADIOGRAPHY STAFF,Integrated Care,RIG LOCUMS LIMITED,0000290816,1632.00
Department of Health,East Sussex Hospitals NHS Trust,21/08/2013,AGENCY NURSE - QUALIFIED,Urgent Care,PREMIERCARE NETWORK LTD,0000290851,650.03
Department of Health,East Sussex Hospitals NHS Trust,21/08/2013,AGENCY SHO,Planned Care,MEDACS HEALTHCARE SERVICES LTD,0000290867,3624.48
Department of Health,East Sussex Hospitals NHS Trust,21/08/2013,AGENCY SHO,Planned Care,MEDACS HEALTHCARE SERVICES LTD,0000290868,2567.35
Department of Health,East Sussex Hospitals NHS Trust,21/08/2013,AGENCY SPECIALIST REG,Urgent Care,MEDACS HEALTHCARE SERVICES LTD,0000290869,2858.98
Department of Health,East Sussex Hospitals NHS Trust,21/08/2013,AGENCY SPECIALIST REG,Urgent Care,MEDACS HEALTHCARE SERVICES LTD,0000290870,1843.96
Department of Health,East Sussex Hospitals NHS Trust,21/08/2013,AGENCY NURSE - UNQUALIFIED,Urgent Care,PREMIERCARE NETWORK LTD,0000290954,1859.42
Department of Health,East Sussex Hospitals NHS Trust,21/08/2013,AGENCY NURSE - UNQUALIFIED,Urgent Care,PREMIERCARE NETWORK LTD,0000290956,2962.07
Department of Health,East Sussex Hospitals NHS Trust,21/08/2013,AGENCY RADIOGRAPHY STAFF,Integrated Care,RIG LOCUMS LIMITED,0000291086,1632.00
Department of Health,East Sussex Hospitals NHS Trust,21/08/2013,AGENCY CONSULTANT,Urgent Care,MYLOCUM LTD,0000291089,1008.00
Department of Health,East Sussex Hospitals NHS Trust,21/08/2013,AGENCY - GENERAL GRADES,Commercial,INTERWORK RECRUITMENT CONSULTANTS LTD,0000291099,976.99
Department of Health,East Sussex Hospitals NHS Trust,21/08/2013,AGENCY ANCILLARY,Commercial,INTERWORK RECRUITMENT CONSULTANTS LTD,0000291103,5665.34
Department of Health,East Sussex Hospitals NHS Trust,21/08/2013,AGENCY ANCILLARY,Commercial,INTERWORK RECRUITMENT CONSULTANTS LTD,0000291106,2152.83
Department of Health,East Sussex Hospitals NHS Trust,21/08/2013,AGENCY ANCILLARY,Commercial,INTERWORK RECRUITMENT CONSULTANTS LTD,0000291107,576.34
Department of Health,East Sussex Hospitals NHS Trust,21/08/2013,AGENCY OCC THERAPY STAFF,Integrated Care,REAL STAFFING LTD,0000291174,1064.18
Department of Health,East Sussex Hospitals NHS Trust,21/08/2013,AGENCY NURSE - QUALIFIED,Urgent Care,MAYDAY HEALTHCARE PLC,0000291198,815.78
Department of Health,East Sussex Hospitals NHS Trust,21/08/2013,AGENCY NURSE - QUALIFIED,Urgent Care,MAYDAY HEALTHCARE PLC,0000291200,1933.25
Department of Health,East Sussex Hospitals NHS Trust,21/08/2013,AGENCY NURSE - QUALIFIED,Urgent Care,THORNBURY NURSING SERVICES,0000291204,523.77
Department of Health,East Sussex Hospitals NHS Trust,21/08/2013,AGENCY NURSE - QUALIFIED,Urgent Care,PREMIERCARE NETWORK LTD,0000291210,1338.38
Department of Health,East Sussex Hospitals NHS Trust,21/08/2013,AGENCY TECHNICIAN,Urgent Care,ABSOLUTE ACCOUNTING & TAX SOLS LTD,0000291215,1295.00
Department of Health,East Sussex Hospitals NHS Trust,21/08/2013,AGENCY STAFF GRADE,Urgent Care,BCRADIOMED LTD,0000291286,8700.00
Department of Health,East Sussex Hospitals NHS Trust,21/08/2013,AGENCY STAFF GRADE,Urgent Care,BCRADIOMED LTD,0000291287,7900.00
Department of Health,East Sussex Hospitals NHS Trust,21/08/2013,AGENCY STAFF GRADE,Urgent Care,BCRADIOMED LTD,0000291288,7950.00
Department of Health,East Sussex Hospitals NHS Trust,21/08/2013,AGENCY NURSE - QUALIFIED,Integrated Care,TEAM24 LTD,0000291320,541.69
Department of Health,East Sussex Hospitals NHS Trust,21/08/2013,AGENCY NURSE - QUALIFIED,Integrated Care,TEAM24 LTD,0000291322,1120.75
Department of Health,East Sussex Hospitals NHS Trust,21/08/2013,AGENCY NURSE - QUALIFIED,Integrated Care,TEAM24 LTD,0000291326,541.69
Department of Health,East Sussex Hospitals NHS Trust,21/08/2013,AGENCY NURSE - QUALIFIED,Integrated Care,TEAM24 LTD,0000291327,1383.58
Department of Health,East Sussex Hospitals NHS Trust,21/08/2013,AGENCY NURSE - QUALIFIED,Integrated Care,TEAM24 LTD,0000291328,545.45
Department of Health,East Sussex Hospitals NHS Trust,21/08/2013,AGENCY NURSE - QUALIFIED,Integrated Care,TEAM24 LTD,0000291330,592.30
Department of Health,East Sussex Hospitals NHS Trust,21/08/2013,AGENCY NURSE - QUALIFIED,Integrated Care,TEAM24 LTD,0000291331,1625.07
Department of Health,East Sussex Hospitals NHS Trust,21/08/2013,AGENCY NURSE - QUALIFIED,Integrated Care,TEAM24 LTD,0000291332,541.69
Department of Health,East Sussex Hospitals NHS Trust,21/08/2013,AGENCY NURSE - QUALIFIED,Integrated Care,TEAM24 LTD,0000291333,1131.53
Department of Health,East Sussex Hospitals NHS Trust,21/08/2013,AGENCY NURSE - QUALIFIED,Integrated Care,TEAM24 LTD,0000291334,545.44
Department of Health,East Sussex Hospitals NHS Trust,21/08/2013,AGENCY NURSE - QUALIFIED,Integrated Care,TEAM24 LTD,0000291336,589.84
Department of Health,East Sussex Hospitals NHS Trust,21/08/2013,AGENCY NURSE - QUALIFIED,Integrated Care,TEAM24 LTD,0000291364,537.76
Department of Health,East Sussex Hospitals NHS Trust,21/08/2013,AGENCY NURSE - QUALIFIED,Integrated Care,TEAM24 LTD,0000291365,1083.38
Department of Health,East Sussex Hospitals NHS Trust,21/08/2013,AGENCY NURSE - QUALIFIED,Integrated Care,TEAM24 LTD,0000291366,1087.14
Department of Health,East Sussex Hospitals NHS Trust,21/08/2013,AGENCY NURSE - QUALIFIED,Integrated Care,TEAM24 LTD,0000291367,541.69
Department of Health,East Sussex Hospitals NHS Trust,21/08/2013,AGENCY NURSE - QUALIFIED,Integrated Care,TEAM24 LTD,0000291368,1528.62
Department of Health,East Sussex Hospitals NHS Trust,21/08/2013,AGENCY NURSE - QUALIFIED,Integrated Care,TEAM24 LTD,0000291369,541.69
Department of Health,East Sussex Hospitals NHS Trust,21/08/2013,AGENCY NURSE - QUALIFIED,Integrated Care,TEAM24 LTD,0000291370,541.69
Department of Health,East Sussex Hospitals NHS Trust,21/08/2013,AGENCY TECHNICIAN,Urgent Care,ABSOLUTE ACCOUNTING & TAX SOLS LTD,0000291427,1258.00
Department of Health,East Sussex Hospitals NHS Trust,21/08/2013,AGENCY NURSE - QUALIFIED,Urgent Care,PREMIERCARE NETWORK LTD,0000291438,1145.40
Department of Health,East Sussex Hospitals NHS Trust,21/08/2013,AGENCY SPECIALIST REG,Urgent Care,PAPADI LTD,0000291439,950.00
Department of Health,East Sussex Hospitals NHS Trust,21/08/2013,AGENCY NURSE - QUALIFIED,Urgent Care,PREMIERCARE NETWORK LTD,0000291516,572.70
Department of Health,East Sussex Hospitals NHS Trust,21/08/2013,AGENCY ANCILLARY,Commercial,INTERWORK RECRUITMENT CONSULTANTS LTD,0000291559,5311.97
Department of Health,East Sussex Hospitals NHS Trust,21/08/2013,AGENCY OCC THERAPY STAFF,Integrated Care,REAL STAFFING LTD,0000291632,609.00
Department of Health,East Sussex Hospitals NHS Trust,21/08/2013,AGENCY ANCILLARY,Commercial,INTERWORK RECRUITMENT CONSULTANTS LTD,0000291724,5558.12
Department of Health,East Sussex Hospitals NHS Trust,21/08/2013,MEDICAL GAS - VIE RENTAL,Commercial,BOC (MANCHESTER)LTD,0000362048,805.29
Department of Health,East Sussex Hospitals NHS Trust,21/08/2013,MEDICAL GAS - CYLINDER RENTAL,Commercial,BOC (MANCHESTER)LTD,0000362068,500.86
Department of Health,East Sussex Hospitals NHS Trust,21/08/2013,LAUNDRY MACHINES,Commercial,JLA TOTAL CARE LTD,0000362090,2404.80
Department of Health,East Sussex Hospitals NHS Trust,21/08/2013,MEDICAL GASES,Urgent Care,BOC (MANCHESTER)LTD,0000362150,52.08
Department of Health,East Sussex Hospitals NHS Trust,21/08/2013,MEDICAL GAS - CYLINDER RENTAL,Commercial,BOC (MANCHESTER)LTD,0000362150,2806.97
Department of Health,East Sussex Hospitals NHS Trust,21/08/2013,MEDICAL GAS - VIE RENTAL,Commercial,BOC (MANCHESTER)LTD,0000362226,758.19
Department of Health,East Sussex Hospitals NHS Trust,21/08/2013,MEDICAL GAS - CYLINDER RENTAL,Commercial,BOC (MANCHESTER)LTD,0000362229,714.35
Department of Health,East Sussex Hospitals NHS Trust,21/08/2013,CAPITAL EXPENDITURE,Other Central,H WILSON (ALFRISTON) LTD,0000362418,37726.84
Department of Health,East Sussex Hospitals NHS Trust,21/08/2013,CAPITAL EXPENDITURE,Other Central,H WILSON (ALFRISTON) LTD,0000362419,4612.48
Department of Health,East Sussex Hospitals NHS Trust,21/08/2013,CAPITAL EXPENDITURE,Other Central,H WILSON (ALFRISTON) LTD,0000362420,4369.31
Department of Health,East Sussex Hospitals NHS Trust,21/08/2013,PROFESSIONAL FEES,Commercial,KEVAN CORNWALL,0000362422,816.30
Department of Health,East Sussex Hospitals NHS Trust,21/08/2013,CAPITAL EXPENDITURE,Other Central,H WILSON (ALFRISTON) LTD,0000362424,25194.79
Department of Health,East Sussex Hospitals NHS Trust,21/08/2013,PROFESSIONAL FEES,Commercial,EIDOS VISUALS,0000362426,1332.00
Department of Health,East Sussex Hospitals NHS Trust,21/08/2013,MINOR WORKS - BUILDING,Integrated Care,BOOKER & BEST LIMITED,0000362427,500.00
Department of Health,East Sussex Hospitals NHS Trust,21/08/2013,PROFESSIONAL FEES,Commercial,LAVINE CONSULTING,0000362429,585.00
Department of Health,East Sussex Hospitals NHS Trust,21/08/2013,PROFESSIONAL FEES,Commercial,LAVINE CONSULTING,0000362430,1440.00
Department of Health,East Sussex Hospitals NHS Trust,21/08/2013,CAPITAL EXPENDITURE,Other Central,TYRESIAS LTD,0000362432,5709.00
Department of Health,East Sussex Hospitals NHS Trust,21/08/2013,DISPOSAL OF FLIORESCENT TUBES,Commercial,CITY ELECTRICAL FACTORS,0000622366,9.90
Department of Health,East Sussex Hospitals NHS Trust,21/08/2013,EDGH BLDING & ENGINEERING MATS,Commercial,CITY ELECTRICAL FACTORS,0000622366,556.26
Department of Health,East Sussex Hospitals NHS Trust,21/08/2013,MEDICAL GAS - VIE RENTAL,Commercial,BOC (MANCHESTER)LTD,0000622529,602.78
Department of Health,East Sussex Hospitals NHS Trust,21/08/2013,MEDICAL GAS - VIE RENTAL,Commercial,BOC (MANCHESTER)LTD,0000622538,1005.27
Department of Health,East Sussex Hospitals NHS Trust,21/08/2013,MEDICAL GAS - CYLINDER RENTAL,Commercial,BOC (MANCHESTER)LTD,0000622540,3559.66
Department of Health,East Sussex Hospitals NHS Trust,21/08/2013,POSTAGE - MAINTENANCE STOCK,Commercial,ARJO HUNTLEIGH,0000622573,15.00
Department of Health,East Sussex Hospitals NHS Trust,21/08/2013,EDGH BLDING & ENGINEERING MATS,Commercial,ARJO HUNTLEIGH,0000622573,900.00
Department of Health,East Sussex Hospitals NHS Trust,21/08/2013,MEDICAL GAS - VIE RENTAL,Commercial,BOC (MANCHESTER)LTD,0000622618,728.42
Department of Health,East Sussex Hospitals NHS Trust,21/08/2013,OFFICE EQUIPMENT,Planned Care,IMAGE CONTRACT FLOORING LTD,0000622620,485.00
Department of Health,East Sussex Hospitals NHS Trust,21/08/2013,GE MED EXERCISE EQUIP EDGH,Urgent Care,UDM DISTRIBUTION,0000622623,1050.00
Department of Health,East Sussex Hospitals NHS Trust,21/08/2013,CONTRACT ENGINEERING MAINT,Commercial,ARJO HUNTLEIGH (ARJO MED AB LTD),0000622630,2348.98
Department of Health,East Sussex Hospitals NHS Trust,21/08/2013,CONTRACT ENGINEERING MAINT,Commercial,ARJO HUNTLEIGH (ARJO MED AB LTD),0000622630,108.60
Department of Health,East Sussex Hospitals NHS Trust,21/08/2013,CONT.MAIN-MED & SURG EQUIP,Commercial,ARCOOL LTD,0000622645,497.60
Department of Health,East Sussex Hospitals NHS Trust,21/08/2013,MEDICAL GAS - VIE RENTAL,Commercial,BOC (MANCHESTER)LTD,0000622660,684.98
Department of Health,East Sussex Hospitals NHS Trust,21/08/2013,FURNITURE & FITTINGS,Urgent Care,IMAGE CONTRACT FLOORING LTD,0000622665,601.05
Department of Health,East Sussex Hospitals NHS Trust,21/08/2013,MEDICAL GAS - VIE RENTAL,Commercial,BOC (MANCHESTER)LTD,0000622669,652.54
Department of Health,East Sussex Hospitals NHS Trust,21/08/2013,CONTRACT ENGINEERING MAINT,Commercial,ACCESS SCAFFOLDING (HASTINGS) LTD,0000622685,501.60
Department of Health,East Sussex Hospitals NHS Trust,21/08/2013,MEDICAL GAS - VIE RENTAL,Commercial,BOC (MANCHESTER)LTD,0000622688,542.57
Department of Health,East Sussex Hospitals NHS Trust,21/08/2013,ENGINEERING MATERIALS,Commercial,"SUSSEX TUBES, FITTING & VALVES",0000622694,412.56
Department of Health,East Sussex Hospitals NHS Trust,21/08/2013,EDGH BLDING & ENGINEERING MATS,Commercial,"SUSSEX TUBES, FITTING & VALVES",0000622694,492.07
Department of Health,East Sussex Hospitals NHS Trust,21/08/2013,CONTINENCE PRODUCTS,Urgent Care,PAUL HARTMANN LTD,0000897536,27.85
Department of Health,East Sussex Hospitals NHS Trust,21/08/2013,CONTINENCE PRODUCTS,Urgent Care,PAUL HARTMANN LTD,0000897536,104.03
Department of Health,East Sussex Hospitals NHS Trust,21/08/2013,CONTINENCE PRODUCTS,Urgent Care,PAUL HARTMANN LTD,0000897536,197.25
Department of Health,East Sussex Hospitals NHS Trust,21/08/2013,CONTINENCE PRODUCTS,Planned Care,PAUL HARTMANN LTD,0000897536,129.59
Department of Health,East Sussex Hospitals NHS Trust,21/08/2013,CONTINENCE PRODUCTS,Planned Care,PAUL HARTMANN LTD,0000897536,93.18
Department of Health,East Sussex Hospitals NHS Trust,21/08/2013,CONTINENCE PRODUCTS,Planned Care,PAUL HARTMANN LTD,0000897536,26.38
Department of Health,East Sussex Hospitals NHS Trust,21/08/2013,CONTINENCE PRODUCTS,Urgent Care,PAUL HARTMANN LTD,0000897536,44.42
Department of Health,East Sussex Hospitals NHS Trust,21/08/2013,SURGICAL INSTRUMENTS,Planned Care,MDM MEDICAL LTD,0000897847,723.00
Department of Health,East Sussex Hospitals NHS Trust,21/08/2013,CONTINENCE PRODUCTS,Urgent Care,PAUL HARTMANN LTD,0000897959,153.86
Department of Health,East Sussex Hospitals NHS Trust,21/08/2013,CONTINENCE PRODUCTS,Urgent Care,PAUL HARTMANN LTD,0000897959,38.41
Department of Health,East Sussex Hospitals NHS Trust,21/08/2013,CONTINENCE PRODUCTS,Urgent Care,PAUL HARTMANN LTD,0000897959,55.52
Department of Health,East Sussex Hospitals NHS Trust,21/08/2013,CONTINENCE PRODUCTS,Urgent Care,PAUL HARTMANN LTD,0000897959,271.79
Department of Health,East Sussex Hospitals NHS Trust,21/08/2013,CONTINENCE PRODUCTS,Planned Care,PAUL HARTMANN LTD,0000897959,65.90
Department of Health,East Sussex Hospitals NHS Trust,21/08/2013,CONTINENCE PRODUCTS,Planned Care,PAUL HARTMANN LTD,0000897959,10.94
Department of Health,East Sussex Hospitals NHS Trust,21/08/2013,CONTINENCE PRODUCTS,Urgent Care,PAUL HARTMANN LTD,0000897959,73.02
Department of Health,East Sussex Hospitals NHS Trust,21/08/2013,CONTINENCE PRODUCTS,Urgent Care,PAUL HARTMANN LTD,0000897959,196.46
Department of Health,East Sussex Hospitals NHS Trust,21/08/2013,PROCEDURE PACKS,Urgent Care,ARCROYAL LTD,0000898137,1818.00
Department of Health,East Sussex Hospitals NHS Trust,21/08/2013,SURGICAL INSTRUMENTS,Planned Care,TIMESCO HEALTHCARE LIMITED,0000898144,575.40
Department of Health,East Sussex Hospitals NHS Trust,21/08/2013,M&S GENERAL SUPPLIES-OTHER,Planned Care,COOK (UK) LTD,0000898147,687.60
Department of Health,East Sussex Hospitals NHS Trust,21/08/2013,M&S GENERAL SUPPLIES-OTHER,Planned Care,BARD LTD,0000898170,504.00
Department of Health,East Sussex Hospitals NHS Trust,21/08/2013,PROSTHESIS - SPINAL,Planned Care,SURGI C LTD,0000898219,858.00
Department of Health,East Sussex Hospitals NHS Trust,21/08/2013,SURGICAL INSTRUMENTS,Planned Care,LINA MEDICAL UK LTD,0000898224,485.76
Department of Health,East Sussex Hospitals NHS Trust,21/08/2013,VAGINAL/HYSTERECT REPAIR INSTR,Planned Care,LINA MEDICAL UK LTD,0000898224,540.00
Department of Health,East Sussex Hospitals NHS Trust,21/08/2013,PROSTHESIS - SPINAL,Planned Care,SURGI C LTD,0000898231,858.00
Department of Health,East Sussex Hospitals NHS Trust,21/08/2013,DRESSINGS-OTHER,Planned Care,FREELANCE SURGICAL LTD,0000898242,513.60
Department of Health,East Sussex Hospitals NHS Trust,21/08/2013,PROCEDURE PACKS,Urgent Care,ARCROYAL LTD,0000898387,2424.00
Department of Health,East Sussex Hospitals NHS Trust,21/08/2013,PROSTHESES-KNEES,Planned Care,BIOMET UK HEALTHCARE LTD,0000898475,1350.00
Department of Health,East Sussex Hospitals NHS Trust,21/08/2013,NATIONAL JOINT REGISTRY LEVY,Planned Care,BIOMET UK HEALTHCARE LTD,0000898475,20.00
Department of Health,East Sussex Hospitals NHS Trust,21/08/2013,PROSTHESES-KNEES,Planned Care,BIOMET UK HEALTHCARE LTD,0000898588,4050.00
Department of Health,East Sussex Hospitals NHS Trust,21/08/2013,NATIONAL JOINT REGISTRY LEVY,Planned Care,BIOMET UK HEALTHCARE LTD,0000898588,60.01
Department of Health,East Sussex Hospitals NHS Trust,21/08/2013,PROSTHESES-KNEES,Planned Care,BIOMET UK HEALTHCARE LTD,0000898591,2338.20
Department of Health,East Sussex Hospitals NHS Trust,21/08/2013,NATIONAL JOINT REGISTRY LEVY,Planned Care,BIOMET UK HEALTHCARE LTD,0000898591,20.00
Department of Health,East Sussex Hospitals NHS Trust,21/08/2013,PROCEDURE PACKS,Urgent Care,ARCROYAL LTD,0000898652,1212.00
Department of Health,East Sussex Hospitals NHS Trust,21/08/2013,PROSTHESES-KNEES,Planned Care,BIOMET UK HEALTHCARE LTD,0000898664,529.20
